Transaction Date,Local Authority Department,BENEFICIARY,Purpose,Amount,Non Recoverable,Merchant Category
01-09-2023,Children and Young People,Mr Lindsay G Knight t/a Human Stories,Events,915.8,0,COMMERCIAL SUPPLIER
01-09-2023,Adults & Health,Vibrance,Daycare - Private Contractors Payment,820.48,0,VOLUNTARY ORGANISATION
01-09-2023,Adults & Health,Vibrance,Daycare - Private Contractors Payment,874.2,0,VOLUNTARY ORGANISATION
01-09-2023,Adults & Health,Vibrance,Daycare - Private Contractors Payment,874.2,0,VOLUNTARY ORGANISATION
01-09-2023,Adults & Health,Vibrance,Daycare - Private Contractors Payment,874.2,0,VOLUNTARY ORGANISATION
01-09-2023,Adults & Health,Vibrance,Daycare - Private Contractors Payment,874.2,0,VOLUNTARY ORGANISATION
01-09-2023,Adults & Health,Vibrance,Daycare - Private Contractors Payment,874.04,0,VOLUNTARY ORGANISATION
01-09-2023,Adults & Health,Vibrance,Daycare - Private Contractors Payment,874.2,0,VOLUNTARY ORGANISATION
01-09-2023,Adults & Health,Vibrance,Daycare - Private Contractors Payment,874.2,0,VOLUNTARY ORGANISATION
01-09-2023,Adults & Health,Vibrance,Daycare - Private Contractors Payment,874.2,0,VOLUNTARY ORGANISATION
01-09-2023,Adults & Health,Vibrance,Daycare - Private Contractors Payment,874.2,0,VOLUNTARY ORGANISATION
01-09-2023,Adults & Health,Vibrance,Daycare - Private Contractors Payment,784.88,0,VOLUNTARY ORGANISATION
01-09-2023,Adults & Health,Vibrance,Daycare - Private Contractors Payment,874.2,0,VOLUNTARY ORGANISATION
01-09-2023,Adults & Health,Vibrance,Daycare - Private Contractors Payment,874.2,0,VOLUNTARY ORGANISATION
01-09-2023,Adults & Health,Vibrance,Daycare - Private Contractors Payment,874.2,0,VOLUNTARY ORGANISATION
01-09-2023,Adults & Health,Vibrance,Daycare - Private Contractors Payment,726.86,0,VOLUNTARY ORGANISATION
01-09-2023,Adults & Health,Vibrance,Daycare - Private Contractors Payment,874.2,0,VOLUNTARY ORGANISATION
01-09-2023,oneSource,Personal Information - Redacted,Legal Fees,650,0,INDIVIDUALS
01-09-2023,oneSource,Personal Information - Redacted,Legal Fees,7500,0,INDIVIDUALS
01-09-2023,Marketing,Rights & Equalities In Newham (Rein),Private Contractors Payment - Other,1500,0,VENDOR
01-09-2023,Adults & Health,Stannah Lift Services Ltd,Private Contractors Payment - Other,7232,0,CIS
01-09-2023,Environment and Sustainable Transport,Sai-Pac (UK) Ltd,Highway Services,4500,0,COMMERCIAL SUPPLIER
01-09-2023,oneSource - Non Shared,Bellrock Property & Facilities Management Ltd,"Maintenance - Equipment, Furniture And Materials",6408.87,0,
01-09-2023,oneSource - Non Shared,Bellrock Property & Facilities Management Ltd,"Maintenance - Equipment, Furniture And Materials",445.21,0,
01-09-2023,oneSource - Non Shared,Bellrock Property & Facilities Management Ltd,"Maintenance - Equipment, Furniture And Materials",5953.5,0,
01-09-2023,oneSource - Non Shared,Bellrock Property & Facilities Management Ltd,"Maintenance - Equipment, Furniture And Materials",1090.98,0,
01-09-2023,oneSource - Non Shared,Bellrock Property & Facilities Management Ltd,"Maintenance - Equipment, Furniture And Materials",311.07,0,
01-09-2023,oneSource - Non Shared,Bellrock Property & Facilities Management Ltd,"Maintenance - Equipment, Furniture And Materials",3043.13,0,
01-09-2023,Environment and Sustainable Transport,Bellrock Property & Facilities Management Ltd,Facilities Management,2300,0,
01-09-2023,oneSource - Non Shared,Bellrock Property & Facilities Management Ltd,"Maintenance - Equipment, Furniture And Materials",2804.72,0,
01-09-2023,oneSource - Non Shared,Bellrock Property & Facilities Management Ltd,"Maintenance - Equipment, Furniture And Materials",1863.46,0,
01-09-2023,Housing Revenue Account,Daisy Corporate Services Trading Ltd,Cyclical/Planned Maintenance - Mechanical And Electrical,347.81,0,COMMERCIAL SUPPLIER
01-09-2023,oneSource,Daisy Corporate Services Trading Ltd,Land Line Telephone Costs,14377.52,0,COMMERCIAL SUPPLIER
01-09-2023,Dedicated Schools Budget,Personal Information - Redacted,Private Contractors Payment - Other,4289.2,0,COMMERCIAL SUPPLIER
01-09-2023,Adults & Health,L.A.Services & Solutions Limited,Building Alterations And Materials,2700,0,COMMERCIAL SUPPLIER
01-09-2023,Adults & Health,L.A.Services & Solutions Limited,Building Alterations And Materials,3200,0,COMMERCIAL SUPPLIER
01-09-2023,Adults & Health,L.A.Services & Solutions Limited,Building Alterations And Materials,1750,0,COMMERCIAL SUPPLIER
01-09-2023,Adults & Health,L.A.Services & Solutions Limited,Building Alterations And Materials,3450,0,COMMERCIAL SUPPLIER
01-09-2023,Adults & Health,L.A.Services & Solutions Limited,Building Alterations And Materials,2850,0,COMMERCIAL SUPPLIER
01-09-2023,Adults & Health,L.A.Services & Solutions Limited,Building Alterations And Materials,3150,0,COMMERCIAL SUPPLIER
01-09-2023,Adults & Health,L.A.Services & Solutions Limited,Building Alterations And Materials,1950,0,COMMERCIAL SUPPLIER
01-09-2023,Marketing,Personal Information - Redacted,Consultancy Fees,787.5,0,VENDOR
01-09-2023,oneSource,Coppermill Press,Printing,620,0,VENDOR
01-09-2023,Inclusive Economy & Housing,A DAKRI AND CO LTD T/A GREENLEAF HOTEL,Rents Payable,2250,0,CARERS
01-09-2023,Environment and Sustainable Transport,Enterprise Flex-E-Rent,Highway Services,783.83,0,COMMERCIAL SUPPLIER
01-09-2023,Environment and Sustainable Transport,Enterprise Flex-E-Rent,Highway Services,783.83,0,COMMERCIAL SUPPLIER
01-09-2023,Environment and Sustainable Transport,Enterprise Flex-E-Rent,Highway Services,686.42,0,COMMERCIAL SUPPLIER
01-09-2023,Environment and Sustainable Transport,Enterprise Flex-E-Rent,Highway Services,783.83,0,COMMERCIAL SUPPLIER
01-09-2023,Environment and Sustainable Transport,Enterprise Flex-E-Rent,Highway Services,681.85,0,COMMERCIAL SUPPLIER
01-09-2023,Environment and Sustainable Transport,Enterprise Flex-E-Rent,Highway Services,681.85,0,COMMERCIAL SUPPLIER
01-09-2023,Environment and Sustainable Transport,Enterprise Flex-E-Rent,Highway Services,681.85,0,COMMERCIAL SUPPLIER
01-09-2023,Environment and Sustainable Transport,Enterprise Flex-E-Rent,Highway Services,686.42,0,COMMERCIAL SUPPLIER
01-09-2023,Environment and Sustainable Transport,Enterprise Flex-E-Rent,Highway Services,686.42,0,COMMERCIAL SUPPLIER
01-09-2023,Environment and Sustainable Transport,Enterprise Flex-E-Rent,Highway Services,686.42,0,COMMERCIAL SUPPLIER
01-09-2023,Environment and Sustainable Transport,Enterprise Flex-E-Rent,Highway Services,686.42,0,COMMERCIAL SUPPLIER
01-09-2023,Environment and Sustainable Transport,Enterprise Flex-E-Rent,Highway Services,686.42,0,COMMERCIAL SUPPLIER
01-09-2023,Environment and Sustainable Transport,Enterprise Flex-E-Rent,Highway Services,686.42,0,COMMERCIAL SUPPLIER
01-09-2023,Environment and Sustainable Transport,Enterprise Flex-E-Rent,Highway Services,686.42,0,COMMERCIAL SUPPLIER
01-09-2023,Environment and Sustainable Transport,Enterprise Flex-E-Rent,Highway Services,686.42,0,COMMERCIAL SUPPLIER
01-09-2023,Environment and Sustainable Transport,Enterprise Flex-E-Rent,Highway Services,686.42,0,COMMERCIAL SUPPLIER
01-09-2023,Environment and Sustainable Transport,Enterprise Flex-E-Rent,Highway Services,686.42,0,COMMERCIAL SUPPLIER
01-09-2023,RMS,BJM Waste Ltd,Refuse Collection,320,0,CIS
01-09-2023,RMS,BJM Waste Ltd,Refuse Collection,550,0,CIS
01-09-2023,Housing Revenue Account,The Design Cabin Community C.I.C,Events,840,0,COMMERCIAL SUPPLIER
01-09-2023,Environment and Sustainable Transport,L & F Plant Hire Co Ltd T/A Ti,Vehicle Hire,989,0,VENDOR
01-09-2023,Environment and Sustainable Transport,L & F Plant Hire Co Ltd T/A Ti,Vehicle Hire,989,0,VENDOR
01-09-2023,Environment and Sustainable Transport,L & F Plant Hire Co Ltd T/A Ti,Vehicle Hire,989,0,VENDOR
01-09-2023,Environment and Sustainable Transport,L & F Plant Hire Co Ltd T/A Ti,Vehicle Hire,989,0,VENDOR
01-09-2023,Environment and Sustainable Transport,L & F Plant Hire Co Ltd T/A Ti,Vehicle Hire,1081,0,VENDOR
01-09-2023,Housing Revenue Account,Gas Contract Services LTD,Cyclical/Planned Maintenance - Mechanical And Electrical,3283.5,0,LOCAL AUTHORITY SERVICES
01-09-2023,oneSource,Dataforms Chartered Press Ltd,Printing,4000,0,COMMERCIAL SUPPLIER
01-09-2023,RMS,Master Locking Systems Ltd,Building Alterations And Materials,635.62,0,COMMERCIAL SUPPLIER
01-09-2023,RMS,Master Locking Systems Ltd,Building Alterations And Materials,55.94,0,COMMERCIAL SUPPLIER
01-09-2023,RMS,Master Locking Systems Ltd,Building Alterations And Materials,10.42,0,COMMERCIAL SUPPLIER
01-09-2023,RMS,Master Locking Systems Ltd,Building Alterations And Materials,204.36,0,COMMERCIAL SUPPLIER
01-09-2023,RMS,Loughton Self Drive,Vehicle Hire,975,0,COMMERCIAL SUPPLIER
01-09-2023,Inclusive Economy & Housing,Hmg building services ltd,"Maintenance - Equipment, Furniture And Materials",9957.17,0,CIS
01-09-2023,Inclusive Economy & Housing,Hmg building services ltd,"Maintenance - Equipment, Furniture And Materials",851.72,0,CIS
01-09-2023,Adults & Health,Crown Records Management Ltd,Private Contractors Payment - Other,703.66,0,VENDOR
01-09-2023,Housing Revenue Account,Crown Records Management Ltd,Private Contractors Payment - Other,215.72,0,VENDOR
01-09-2023,oneSource - Non Shared,Crown Records Management Ltd,Private Contractors Payment - Other,262.99,0,VENDOR
01-09-2023,Children and Young People,Crown Records Management Ltd,Private Contractors Payment - Other,237.3,0,VENDOR
01-09-2023,Adults & Health,Crown Records Management Ltd,Private Contractors Payment - Other,601.94,0,VENDOR
01-09-2023,Inclusive Economy & Housing,Titan Containers A/S,Hire - Equipment Furniture And Materials,225,0,VENDOR
01-09-2023,Adults & Health,Chosen Care Group Ltd,Supported Other Accommodation - Private Contractors Payment,47240.36,0,VENDOR
01-09-2023,Environment and Sustainable Transport,U2View Media Limited,Ict Software,3675,0,COMMERCIAL SUPPLIER
01-09-2023,Environment and Sustainable Transport,Richard C Bircher (Holdings) Ltd,Professional Services - General,525,0,COMMERCIAL SUPPLIER
01-09-2023,Environment and Sustainable Transport,Richard C Bircher (Holdings) Ltd,Professional Services - General,2110,0,COMMERCIAL SUPPLIER
01-09-2023,Environment and Sustainable Transport,Richard C Bircher (Holdings) Ltd,Professional Services - General,700,0,COMMERCIAL SUPPLIER
01-09-2023,Environment and Sustainable Transport,Richard C Bircher (Holdings) Ltd,Professional Services - General,780,0,COMMERCIAL SUPPLIER
01-09-2023,Environment and Sustainable Transport,Richard C Bircher (Holdings) Ltd,Professional Services - General,1650,0,COMMERCIAL SUPPLIER
01-09-2023,Environment and Sustainable Transport,Richard C Bircher (Holdings) Ltd,Professional Services - General,1100,0,COMMERCIAL SUPPLIER
01-09-2023,Environment and Sustainable Transport,Richard C Bircher (Holdings) Ltd,Professional Services - General,791.25,0,COMMERCIAL SUPPLIER
01-09-2023,Environment and Sustainable Transport,Richard C Bircher (Holdings) Ltd,Professional Services - General,525,0,COMMERCIAL SUPPLIER
01-09-2023,Environment and Sustainable Transport,Richard C Bircher (Holdings) Ltd,Professional Services - General,1100,0,COMMERCIAL SUPPLIER
01-09-2023,Environment and Sustainable Transport,Richard C Bircher (Holdings) Ltd,Professional Services - General,3025,0,COMMERCIAL SUPPLIER
01-09-2023,Environment and Sustainable Transport,Gristwood & Toms,Tree Works,35188.38,0,COMMERCIAL SUPPLIER
01-09-2023,Environment and Sustainable Transport,Gristwood & Toms,Tree Works,34973,0,COMMERCIAL SUPPLIER
01-09-2023,RMS,Travis Perkins Trading Company Ltd,Building Alterations And Materials,979.4,0,COMMERCIAL SUPPLIER
01-09-2023,RMS,Travis Perkins Trading Company Ltd,Building Alterations And Materials,18.6,0,COMMERCIAL SUPPLIER
01-09-2023,RMS,Travis Perkins Trading Company Ltd,Building Alterations And Materials,100,0,COMMERCIAL SUPPLIER
01-09-2023,RMS,Travis Perkins Trading Company Ltd,Building Alterations And Materials,57.5,0,COMMERCIAL SUPPLIER
01-09-2023,RMS,Travis Perkins Trading Company Ltd,Building Alterations And Materials,52.2,0,COMMERCIAL SUPPLIER
01-09-2023,RMS,Travis Perkins Trading Company Ltd,Building Alterations And Materials,37.4,0,COMMERCIAL SUPPLIER
01-09-2023,RMS,Travis Perkins Trading Company Ltd,Building Alterations And Materials,74.6,0,COMMERCIAL SUPPLIER
01-09-2023,RMS,Travis Perkins Trading Company Ltd,Building Alterations And Materials,175,0,COMMERCIAL SUPPLIER
01-09-2023,RMS,Travis Perkins Trading Company Ltd,Building Alterations And Materials,399.36,0,COMMERCIAL SUPPLIER
01-09-2023,RMS,Travis Perkins Trading Company Ltd,Building Alterations And Materials,63,0,COMMERCIAL SUPPLIER
01-09-2023,RMS,Travis Perkins Trading Company Ltd,Building Alterations And Materials,101.12,0,COMMERCIAL SUPPLIER
01-09-2023,RMS,Travis Perkins Trading Company Ltd,Building Alterations And Materials,41.58,0,COMMERCIAL SUPPLIER
01-09-2023,RMS,Travis Perkins Trading Company Ltd,Building Alterations And Materials,38,0,COMMERCIAL SUPPLIER
01-09-2023,RMS,Travis Perkins Trading Company Ltd,Building Alterations And Materials,37.7,0,COMMERCIAL SUPPLIER
01-09-2023,RMS,Travis Perkins Trading Company Ltd,Building Alterations And Materials,53.6,0,COMMERCIAL SUPPLIER
01-09-2023,RMS,Travis Perkins Trading Company Ltd,Building Alterations And Materials,63.8,0,COMMERCIAL SUPPLIER
01-09-2023,RMS,Travis Perkins Trading Company Ltd,Building Alterations And Materials,76.7,0,COMMERCIAL SUPPLIER
01-09-2023,RMS,Travis Perkins Trading Company Ltd,Building Alterations And Materials,45,0,COMMERCIAL SUPPLIER
01-09-2023,RMS,Travis Perkins Trading Company Ltd,Building Alterations And Materials,651.2,0,COMMERCIAL SUPPLIER
01-09-2023,RMS,Travis Perkins Trading Company Ltd,Building Alterations And Materials,4016.46,0,COMMERCIAL SUPPLIER
01-09-2023,RMS,Travis Perkins Trading Company Ltd,Building Alterations And Materials,305.36,0,COMMERCIAL SUPPLIER
01-09-2023,RMS,Travis Perkins Trading Company Ltd,Building Alterations And Materials,257.38,0,COMMERCIAL SUPPLIER
01-09-2023,RMS,Travis Perkins Trading Company Ltd,Building Alterations And Materials,916.2,0,COMMERCIAL SUPPLIER
01-09-2023,RMS,Travis Perkins Trading Company Ltd,Building Alterations And Materials,264.4,0,COMMERCIAL SUPPLIER
01-09-2023,RMS,Travis Perkins Trading Company Ltd,Building Alterations And Materials,183.5,0,COMMERCIAL SUPPLIER
01-09-2023,RMS,Travis Perkins Trading Company Ltd,Building Alterations And Materials,226.8,0,COMMERCIAL SUPPLIER
01-09-2023,RMS,Travis Perkins Trading Company Ltd,Building Alterations And Materials,130.32,0,COMMERCIAL SUPPLIER
01-09-2023,RMS,Travis Perkins Trading Company Ltd,Building Alterations And Materials,134.4,0,COMMERCIAL SUPPLIER
01-09-2023,RMS,Travis Perkins Trading Company Ltd,Building Alterations And Materials,135.2,0,COMMERCIAL SUPPLIER
01-09-2023,RMS,Travis Perkins Trading Company Ltd,Building Alterations And Materials,114.8,0,COMMERCIAL SUPPLIER
01-09-2023,RMS,Travis Perkins Trading Company Ltd,Building Alterations And Materials,234,0,COMMERCIAL SUPPLIER
01-09-2023,RMS,Travis Perkins Trading Company Ltd,Building Alterations And Materials,1438.8,0,COMMERCIAL SUPPLIER
01-09-2023,RMS,Travis Perkins Trading Company Ltd,Building Alterations And Materials,5272.8,0,COMMERCIAL SUPPLIER
01-09-2023,RMS,Travis Perkins Trading Company Ltd,Building Alterations And Materials,710.75,0,COMMERCIAL SUPPLIER
01-09-2023,RMS,Travis Perkins Trading Company Ltd,Building Alterations And Materials,27.8,0,COMMERCIAL SUPPLIER
01-09-2023,RMS,Travis Perkins Trading Company Ltd,Building Alterations And Materials,41.26,0,COMMERCIAL SUPPLIER
01-09-2023,RMS,Travis Perkins Trading Company Ltd,Building Alterations And Materials,15.87,0,COMMERCIAL SUPPLIER
01-09-2023,RMS,Travis Perkins Trading Company Ltd,Building Alterations And Materials,25,0,COMMERCIAL SUPPLIER
01-09-2023,RMS,Travis Perkins Trading Company Ltd,Building Alterations And Materials,3834.24,0,COMMERCIAL SUPPLIER
01-09-2023,RMS,Travis Perkins Trading Company Ltd,Building Alterations And Materials,250.92,0,COMMERCIAL SUPPLIER
01-09-2023,RMS,Travis Perkins Trading Company Ltd,Building Alterations And Materials,2814,0,COMMERCIAL SUPPLIER
01-09-2023,RMS,Travis Perkins Trading Company Ltd,Building Alterations And Materials,214.9,0,COMMERCIAL SUPPLIER
01-09-2023,RMS,Travis Perkins Trading Company Ltd,Building Alterations And Materials,944.7,0,COMMERCIAL SUPPLIER
01-09-2023,Resources,Tameside MBC,Private Contractors Payment - Other,1021.15,0,COMMERCIAL SUPPLIER
01-09-2023,Resources,Tameside MBC,Private Contractors Payment - Other,65.1,0,COMMERCIAL SUPPLIER
01-09-2023,Adults & Health,GatenbySanderson Ltd,Agency Staff,16120,0,COMMERCIAL SUPPLIER
01-09-2023,oneSource - Non Shared,Able Shutter Services Ltd,Facilities Management,5850.84,0,COMMERCIAL SUPPLIER
01-09-2023,Housing Revenue Account,J.A. Steel & Son Ltd,Private Contractors Payment - Other,736,0,COMMERCIAL SUPPLIER
01-09-2023,Housing Revenue Account,J.A. Steel & Son Ltd,Private Contractors Payment - Other,738,0,COMMERCIAL SUPPLIER
01-09-2023,Housing Revenue Account,J.A. Steel & Son Ltd,Private Contractors Payment - Other,397,0,COMMERCIAL SUPPLIER
01-09-2023,Housing Revenue Account,J.A. Steel & Son Ltd,Private Contractors Payment - Other,900,0,COMMERCIAL SUPPLIER
01-09-2023,Adults & Health,Sayers (Car Hire),Payments To Voluntary Sector,120,0,VENDOR
01-09-2023,Adults & Health,Sayers (Car Hire),Payments To Voluntary Sector,120,0,VENDOR
01-09-2023,Environment and Sustainable Transport,Willow Pumps Limited,Waste Disposal Costs,416.5,0,COMMERCIAL SUPPLIER
01-09-2023,Housing Revenue Account,Willow Pumps Limited,Responsive Repairs - Mechanical And Electrical,495,0,COMMERCIAL SUPPLIER
01-09-2023,oneSource - Non Shared,Willow Pumps Limited,Waste Disposal Costs,855,0,COMMERCIAL SUPPLIER
01-09-2023,Environment and Sustainable Transport,Portakabin Ltd,Premises Hire - Facilities,2373.33,0,COMMERCIAL SUPPLIER
01-09-2023,oneSource - Non Shared,Building A Future (Newham Schools) Limited,"Maintenance - Equipment, Furniture And Materials",292527.89,0,VENDOR
01-09-2023,oneSource - Non Shared,Building A Future (Newham Schools) Limited,"Maintenance - Equipment, Furniture And Materials",77432.53,0,VENDOR
01-09-2023,oneSource - Non Shared,Building A Future (Newham Schools) Limited,"Maintenance - Equipment, Furniture And Materials",77505.14,0,VENDOR
01-09-2023,Marketing,Centre Stage,Events,1390,0,COMMERCIAL SUPPLIER
01-09-2023,RMS,Wolseley Uk Ltd,Building Alterations And Materials,514.08,0,COMMERCIAL SUPPLIER
01-09-2023,Children and Young People,Personal Information - Redacted,Client Transport,1068,0,LOCAL AUTHORITY SERVICES
01-09-2023,RMS,Benchmarx Kitchens and Joinery,Building Alterations And Materials,1382.02,0,COMMERCIAL SUPPLIER
01-09-2023,Environment and Sustainable Transport,Worldline IT Services UK Ltd Re Fuel Genie,Transport Fuel,485.74,0,COMMERCIAL SUPPLIER
01-09-2023,Environment and Sustainable Transport,Worldline IT Services UK Ltd Re Fuel Genie,Transport Fuel,1024.52,0,COMMERCIAL SUPPLIER
01-09-2023,Adults & Health,Setup 4 Life,Other Social Services Transfer Payments,3200,0,COMMERCIAL SUPPLIER
01-09-2023,Adults & Health,Look Ahead Housing and Care Ltd,Supported Other Accommodation - Private Contractors Payment,901.53,0,COMMERCIAL SUPPLIER
01-09-2023,Adults & Health,Look Ahead Housing and Care Ltd,Supported Other Accommodation - Private Contractors Payment,901.53,0,COMMERCIAL SUPPLIER
01-09-2023,Adults & Health,Look Ahead Housing and Care Ltd,Supported Other Accommodation - Private Contractors Payment,665.61,0,COMMERCIAL SUPPLIER
01-09-2023,Adults & Health,Look Ahead Housing and Care Ltd,Supported Other Accommodation - Private Contractors Payment,901.53,0,COMMERCIAL SUPPLIER
01-09-2023,Adults & Health,Look Ahead Housing and Care Ltd,Supported Other Accommodation - Private Contractors Payment,674.52,0,COMMERCIAL SUPPLIER
01-09-2023,Adults & Health,Look Ahead Housing and Care Ltd,Supported Other Accommodation - Private Contractors Payment,913.6,0,COMMERCIAL SUPPLIER
01-09-2023,Adults & Health,Look Ahead Housing and Care Ltd,Supported Other Accommodation - Private Contractors Payment,913.6,0,COMMERCIAL SUPPLIER
01-09-2023,Adults & Health,Look Ahead Housing and Care Ltd,Supported Other Accommodation - Private Contractors Payment,913.6,0,COMMERCIAL SUPPLIER
01-09-2023,Adults & Health,Look Ahead Housing and Care Ltd,Supported Other Accommodation - Private Contractors Payment,901.53,0,COMMERCIAL SUPPLIER
01-09-2023,Adults & Health,Look Ahead Housing and Care Ltd,Supported Other Accommodation - Private Contractors Payment,901.53,0,COMMERCIAL SUPPLIER
01-09-2023,Adults & Health,Look Ahead Housing and Care Ltd,Supported Other Accommodation - Private Contractors Payment,665.61,0,COMMERCIAL SUPPLIER
01-09-2023,Adults & Health,Look Ahead Housing and Care Ltd,Supported Other Accommodation - Private Contractors Payment,901.53,0,COMMERCIAL SUPPLIER
01-09-2023,RMS,Tgl,"Purchase - Equipment, Furniture And Materials",1178.04,0,VENDOR
01-09-2023,RMS,Tgl,"Purchase - Equipment, Furniture And Materials",660,0,VENDOR
01-09-2023,RMS,Tgl,"Purchase - Equipment, Furniture And Materials",277.07,0,VENDOR
01-09-2023,Children and Young People,Newham Partnership Working Ltd,Professional Services - General,575,0,VENDOR
01-09-2023,Children and Young People,Personal Information - Redacted,Legal Fees,660,0,LEGAL SERVICES
01-09-2023,Inclusive Economy & Housing,Personal Information - Redacted,Legal Fees,2500,0,COMMERCIAL SUPPLIER
01-09-2023,Environment and Sustainable Transport,Andrew Pritchard Ltd,Consultancy Fees,4320,0,INDIVIDUALS
01-09-2023,Marketing,Personal Information - Redacted,Events,1304.76,0,COMMERCIAL SUPPLIER
01-09-2023,oneSource - Non Shared,Palmsprings Solutions Ltd,Consultancy Fees,536.84,0,COMMERCIAL SUPPLIER
01-09-2023,Children and Young People,Orchid Place Ltd,Supported Other Accommodation - Private Contractors Payment,400,0,VENDOR
01-09-2023,Children and Young People,Orchid Place Ltd,Supported Other Accommodation - Private Contractors Payment,400,0,VENDOR
01-09-2023,Children and Young People,Orchid Place Ltd,Supported Other Accommodation - Private Contractors Payment,400,0,VENDOR
01-09-2023,Children and Young People,Orchid Place Ltd,Supported Other Accommodation - Private Contractors Payment,400,0,VENDOR
01-09-2023,Children and Young People,Orchid Place Ltd,Supported Other Accommodation - Private Contractors Payment,400,0,VENDOR
01-09-2023,Children and Young People,Orchid Place Ltd,Supported Other Accommodation - Private Contractors Payment,400,0,VENDOR
01-09-2023,Children and Young People,Orchid Place Ltd,Supported Other Accommodation - Private Contractors Payment,400,0,VENDOR
01-09-2023,Children and Young People,Orchid Place Ltd,Supported Other Accommodation - Private Contractors Payment,400,0,VENDOR
01-09-2023,Children and Young People,Orchid Place Ltd,Supported Other Accommodation - Private Contractors Payment,400,0,VENDOR
01-09-2023,Children and Young People,Orchid Place Ltd,Supported Other Accommodation - Private Contractors Payment,400,0,VENDOR
01-09-2023,Children and Young People,Orchid Place Ltd,Supported Other Accommodation - Private Contractors Payment,400,0,VENDOR
01-09-2023,Children and Young People,Orchid Place Ltd,Supported Other Accommodation - Private Contractors Payment,400,0,VENDOR
01-09-2023,Children and Young People,Orchid Place Ltd,Supported Other Accommodation - Private Contractors Payment,400,0,VENDOR
01-09-2023,Children and Young People,Orchid Place Ltd,Supported Other Accommodation - Private Contractors Payment,400,0,VENDOR
01-09-2023,Children and Young People,Orchid Place Ltd,Supported Other Accommodation - Private Contractors Payment,400,0,VENDOR
01-09-2023,Children and Young People,Orchid Place Ltd,Supported Other Accommodation - Private Contractors Payment,400,0,VENDOR
01-09-2023,Children and Young People,Orchid Place Ltd,Supported Other Accommodation - Private Contractors Payment,905,0,VENDOR
01-09-2023,Children and Young People,Orchid Place Ltd,Supported Other Accommodation - Private Contractors Payment,905,0,VENDOR
01-09-2023,Children and Young People,Orchid Place Ltd,Supported Other Accommodation - Private Contractors Payment,905,0,VENDOR
01-09-2023,Children and Young People,Orchid Place Ltd,Supported Other Accommodation - Private Contractors Payment,905,0,VENDOR
01-09-2023,Children and Young People,Orchid Place Ltd,Supported Other Accommodation - Private Contractors Payment,995,0,VENDOR
01-09-2023,Children and Young People,Orchid Place Ltd,Supported Other Accommodation - Private Contractors Payment,995,0,VENDOR
01-09-2023,Children and Young People,Orchid Place Ltd,Supported Other Accommodation - Private Contractors Payment,646.43,0,VENDOR
01-09-2023,Children and Young People,Orchid Place Ltd,Supported Other Accommodation - Private Contractors Payment,905,0,VENDOR
01-09-2023,Children and Young People,Orchid Place Ltd,Supported Other Accommodation - Private Contractors Payment,995,0,VENDOR
01-09-2023,Children and Young People,Orchid Place Ltd,Recharges - Income From Other,493.47,0,VENDOR
01-09-2023,Children and Young People,Elliot Leigh TLC Ltd,Supported Other Accommodation - Private Contractors Payment,292.86,0,COMMERCIAL SUPPLIER
01-09-2023,Children and Young People,Elliot Leigh TLC Ltd,Supported Other Accommodation - Private Contractors Payment,410,0,COMMERCIAL SUPPLIER
01-09-2023,Children and Young People,Elliot Leigh TLC Ltd,Supported Other Accommodation - Private Contractors Payment,410,0,COMMERCIAL SUPPLIER
01-09-2023,Children and Young People,Elliot Leigh TLC Ltd,Supported Other Accommodation - Private Contractors Payment,410,0,COMMERCIAL SUPPLIER
01-09-2023,oneSource,Bdi Securities,Security Services (Excluding Premises),1044,0,COMMERCIAL SUPPLIER
01-09-2023,Housing Revenue Account,Mcdermottsmith Law Ltd,Legal Fees,4200,0,COMMERCIAL SUPPLIER
01-09-2023,Adults & Health,Setup 4 Life,Other Social Services Transfer Payments,550,0,COMMERCIAL SUPPLIER
01-09-2023,Adults & Health,Setup 4 Life,Other Social Services Transfer Payments,500,0,COMMERCIAL SUPPLIER
01-09-2023,Environment and Sustainable Transport,Chipside Ltd,Private Contractors Payment - Other,660,0,COMMERCIAL SUPPLIER
01-09-2023,Dedicated Schools Budget,Personal Information - Redacted,Schools - Transfer Payment,128023,0,COMMERCIAL SUPPLIER
01-09-2023,Dedicated Schools Budget,Personal Information - Redacted,Schools - Transfer Payment,366888,0,NON COMMERCIAL SUPPLIER
01-09-2023,Dedicated Schools Budget,Personal Information - Redacted,Schools - Transfer Payment,15977,0,VENDOR
01-09-2023,Dedicated Schools Budget,Personal Information - Redacted,Schools - Transfer Payment,26435.5,0,COMMERCIAL SUPPLIER
01-09-2023,Dedicated Schools Budget,Personal Information - Redacted,Schools - Transfer Payment,18870,0,COMMERCIAL SUPPLIER
01-09-2023,Dedicated Schools Budget,Personal Information - Redacted,Schools - Transfer Payment,70718,0,NON COMMERCIAL SUPPLIER
01-09-2023,Dedicated Schools Budget,Personal Information - Redacted,Schools - Transfer Payment,26861.5,0,COMMERCIAL SUPPLIER
01-09-2023,Dedicated Schools Budget,Personal Information - Redacted,Schools - Transfer Payment,20442.5,0,COMMERCIAL SUPPLIER
01-09-2023,Dedicated Schools Budget,Personal Information - Redacted,Schools - Transfer Payment,21401,0,COMMERCIAL SUPPLIER
01-09-2023,Dedicated Schools Budget,Personal Information - Redacted,Schools - Transfer Payment,46772.5,0,COMMERCIAL SUPPLIER
01-09-2023,Dedicated Schools Budget,Personal Information - Redacted,Schools - Transfer Payment,23588,0,NON COMMERCIAL SUPPLIER
01-09-2023,Dedicated Schools Budget,Personal Information - Redacted,Schools - Transfer Payment,22015,0,COMMERCIAL SUPPLIER
01-09-2023,Dedicated Schools Budget,Personal Information - Redacted,Schools - Transfer Payment,21341,0,COMMERCIAL SUPPLIER
01-09-2023,Dedicated Schools Budget,Personal Information - Redacted,Schools - Transfer Payment,4225,0,NON COMMERCIAL SUPPLIER
01-09-2023,Dedicated Schools Budget,Personal Information - Redacted,Schools - Transfer Payment,25774,0,COMMERCIAL SUPPLIER
01-09-2023,Dedicated Schools Budget,Personal Information - Redacted,Schools - Transfer Payment,31296.9,0,LOCAL AUTHORITY SERVICES
01-09-2023,Dedicated Schools Budget,Personal Information - Redacted,Schools - Transfer Payment,11159.5,0,COMMERCIAL SUPPLIER
01-09-2023,Dedicated Schools Budget,Personal Information - Redacted,Schools - Transfer Payment,20561.78,0,COMMERCIAL SUPPLIER
01-09-2023,Dedicated Schools Budget,Personal Information - Redacted,Schools - Transfer Payment,9308,0,COMMERCIAL SUPPLIER
01-09-2023,Dedicated Schools Budget,Personal Information - Redacted,Schools - Transfer Payment,35615,0,COMMERCIAL SUPPLIER
01-09-2023,Dedicated Schools Budget,Personal Information - Redacted,Schools - Transfer Payment,17465,0,COMMERCIAL SUPPLIER
01-09-2023,Dedicated Schools Budget,Personal Information - Redacted,Schools - Transfer Payment,16824.75,0,COMMERCIAL SUPPLIER
01-09-2023,Dedicated Schools Budget,Personal Information - Redacted,Schools - Transfer Payment,23507.75,0,COMMERCIAL SUPPLIER
01-09-2023,Dedicated Schools Budget,Personal Information - Redacted,Schools - Transfer Payment,28379,0,COMMERCIAL SUPPLIER
01-09-2023,Dedicated Schools Budget,Personal Information - Redacted,Schools - Transfer Payment,18797.25,0,NON COMMERCIAL SUPPLIER
01-09-2023,Dedicated Schools Budget,Personal Information - Redacted,Schools - Transfer Payment,41556.5,0,COMMERCIAL SUPPLIER
01-09-2023,Dedicated Schools Budget,Personal Information - Redacted,Schools - Transfer Payment,13884.67,0,COMMERCIAL SUPPLIER
01-09-2023,Dedicated Schools Budget,Personal Information - Redacted,Schools - Transfer Payment,22105.03,0,COMMERCIAL SUPPLIER
01-09-2023,Dedicated Schools Budget,Personal Information - Redacted,Schools - Transfer Payment,22646.33,0,NON COMMERCIAL SUPPLIER
01-09-2023,Dedicated Schools Budget,Personal Information - Redacted,Schools - Transfer Payment,29047.5,0,COMMERCIAL SUPPLIER
01-09-2023,Dedicated Schools Budget,Personal Information - Redacted,Schools - Transfer Payment,23709,0,NON COMMERCIAL SUPPLIER
01-09-2023,Dedicated Schools Budget,Personal Information - Redacted,Schools - Transfer Payment,37587.04,0,NON COMMERCIAL SUPPLIER
01-09-2023,Dedicated Schools Budget,Personal Information - Redacted,Schools - Transfer Payment,16054,0,COMMERCIAL SUPPLIER
01-09-2023,Dedicated Schools Budget,Personal Information - Redacted,Schools - Transfer Payment,62798.17,0,COMMERCIAL SUPPLIER
01-09-2023,Dedicated Schools Budget,Personal Information - Redacted,Schools - Transfer Payment,16355,0,COMMERCIAL SUPPLIER
01-09-2023,Dedicated Schools Budget,Personal Information - Redacted,Schools - Transfer Payment,73240,0,VENDOR
01-09-2023,Dedicated Schools Budget,Personal Information - Redacted,Schools - Transfer Payment,7250,0,INDIVIDUALS
01-09-2023,Dedicated Schools Budget,Personal Information - Redacted,Schools - Transfer Payment,53720.83,0,COMMERCIAL SUPPLIER
01-09-2023,Dedicated Schools Budget,Personal Information - Redacted,Schools - Transfer Payment,8760,0,VENDOR
01-09-2023,Dedicated Schools Budget,Personal Information - Redacted,Schools - Transfer Payment,38497,0,VENDOR
01-09-2023,Dedicated Schools Budget,Personal Information - Redacted,Schools - Transfer Payment,24188.5,0,COMMERCIAL SUPPLIER
01-09-2023,Dedicated Schools Budget,Personal Information - Redacted,Schools - Transfer Payment,14293,0,VENDOR
01-09-2023,Dedicated Schools Budget,Personal Information - Redacted,Schools - Transfer Payment,35847.92,0,LOCAL AUTHORITY SERVICES
01-09-2023,Dedicated Schools Budget,Personal Information - Redacted,Schools - Transfer Payment,11826.83,0,COMMERCIAL SUPPLIER
01-09-2023,Dedicated Schools Budget,Personal Information - Redacted,Schools - Transfer Payment,30478.67,0,NON COMMERCIAL SUPPLIER
01-09-2023,Dedicated Schools Budget,Personal Information - Redacted,Schools - Transfer Payment,34631.94,0,NON COMMERCIAL SUPPLIER
01-09-2023,oneSource - Non Shared,Education Support (Newham) Ltd,"Maintenance - Equipment, Furniture And Materials",354317.8,0,VENDOR
01-09-2023,Children and Young People,Tillian Consultancy Ltd,Consultancy Fees,6500,0,COMMERCIAL SUPPLIER
01-09-2023,Inclusive Economy & Housing,Castle Water Ltd,Water And Sewerage,143.36,0,COMMERCIAL SUPPLIER
01-09-2023,Inclusive Economy & Housing,Castle Water Ltd,Water And Sewerage,164.39,0,COMMERCIAL SUPPLIER
01-09-2023,Children and Young People,Personal Information - Redacted,Vehicle Hire,960,0,INDIVIDUALS
01-09-2023,Children and Young People,Personal Information - Redacted,Vehicle Hire,360,0,INDIVIDUALS
01-09-2023,Children and Young People,Personal Information - Redacted,Vehicle Hire,400,0,INDIVIDUALS
01-09-2023,Children and Young People,Personal Information - Redacted,Vehicle Hire,500,0,INDIVIDUALS
01-09-2023,Children and Young People,Personal Information - Redacted,Vehicle Hire,400,0,INDIVIDUALS
01-09-2023,Children and Young People,Personal Information - Redacted,Vehicle Hire,400,0,INDIVIDUALS
01-09-2023,Children and Young People,Personal Information - Redacted,Vehicle Hire,320,0,INDIVIDUALS
01-09-2023,Children and Young People,Personal Information - Redacted,Vehicle Hire,300,0,INDIVIDUALS
01-09-2023,Children and Young People,Personal Information - Redacted,Vehicle Hire,480,0,INDIVIDUALS
01-09-2023,Children and Young People,Personal Information - Redacted,Vehicle Hire,1340,0,INDIVIDUALS
01-09-2023,Children and Young People,Personal Information - Redacted,Vehicle Hire,280,0,INDIVIDUALS
01-09-2023,Children and Young People,Personal Information - Redacted,Vehicle Hire,1040,0,INDIVIDUALS
01-09-2023,Children and Young People,Personal Information - Redacted,Vehicle Hire,480,0,INDIVIDUALS
01-09-2023,Children and Young People,Personal Information - Redacted,Vehicle Hire,829.5,0,INDIVIDUALS
01-09-2023,Children and Young People,Personal Information - Redacted,Vehicle Hire,800,0,INDIVIDUALS
01-09-2023,Children and Young People,Personal Information - Redacted,Vehicle Hire,480,0,INDIVIDUALS
01-09-2023,Children and Young People,Personal Information - Redacted,Vehicle Hire,600,0,INDIVIDUALS
01-09-2023,Children and Young People,Personal Information - Redacted,Vehicle Hire,1200,0,INDIVIDUALS
01-09-2023,Children and Young People,Personal Information - Redacted,Vehicle Hire,720,0,INDIVIDUALS
01-09-2023,Housing Revenue Account,Swan Housing Group,Professional Services - General,863016.3,0,VENDOR
02-09-2023,Environment and Sustainable Transport,Floglass Limited,"Purchase - Equipment, Furniture And Materials",665,0,COMMERCIAL SUPPLIER
02-09-2023,Children and Young People,Clayhall Executive Cars Ltd,Contact Costs (Placements),400,0,COMMERCIAL SUPPLIER
02-09-2023,Children and Young People,Clayhall Executive Cars Ltd,Contact Costs (Placements),400,0,COMMERCIAL SUPPLIER
02-09-2023,Children and Young People,Better Families Social Work Services Ltd,Equipment & Adaptation - Private Contractors Payment,5465.6,0,NON COMMERCIAL SUPPLIER
02-09-2023,Children and Young People,Better Families Social Work Services Ltd,Equipment & Adaptation - Private Contractors Payment,5465.6,0,NON COMMERCIAL SUPPLIER
02-09-2023,Children and Young People,Better Families Social Work Services Ltd,Equipment & Adaptation - Private Contractors Payment,5465.6,0,NON COMMERCIAL SUPPLIER
02-09-2023,Children and Young People,Better Families Social Work Services Ltd,Equipment & Adaptation - Private Contractors Payment,5465.6,0,NON COMMERCIAL SUPPLIER
02-09-2023,Children and Young People,Potton Kare Services,Equipment & Adaptation - Private Contractors Payment,1303.59,0,VENDOR
02-09-2023,Children and Young People,Gordon Care Services Limited,Contact Costs (Placements),825,0,COMMERCIAL SUPPLIER
02-09-2023,Children and Young People,Gordon Care Services Limited,Equipment & Adaptation - Private Contractors Payment,755.47,0,COMMERCIAL SUPPLIER
02-09-2023,Children and Young People,Gordon Care Services Limited,Contact Costs (Placements),825,0,COMMERCIAL SUPPLIER
02-09-2023,Children and Young People,Gordon Care Services Limited,Contact Costs (Placements),825,0,COMMERCIAL SUPPLIER
02-09-2023,Children and Young People,Gordon Care Services Limited,Equipment & Adaptation - Private Contractors Payment,743.57,0,COMMERCIAL SUPPLIER
02-09-2023,Children and Young People,Gordon Care Services Limited,Contact Costs (Placements),825,0,COMMERCIAL SUPPLIER
02-09-2023,Children and Young People,Gordon Care Services Limited,Contact Costs (Placements),825,0,COMMERCIAL SUPPLIER
02-09-2023,Children and Young People,Gordon Care Services Limited,Contact Costs (Placements),825,0,COMMERCIAL SUPPLIER
02-09-2023,Children and Young People,Gordon Care Services Limited,Equipment & Adaptation - Private Contractors Payment,755.47,0,COMMERCIAL SUPPLIER
02-09-2023,Children and Young People,Gordon Care Services Limited,Contact Costs (Placements),825,0,COMMERCIAL SUPPLIER
02-09-2023,Children and Young People,Gordon Care Services Limited,Contact Costs (Placements),825,0,COMMERCIAL SUPPLIER
02-09-2023,Children and Young People,Gordon Care Services Limited,Equipment & Adaptation - Private Contractors Payment,755.47,0,COMMERCIAL SUPPLIER
02-09-2023,Children and Young People,Gordon Care Services Limited,Equipment & Adaptation - Private Contractors Payment,743.57,0,COMMERCIAL SUPPLIER
02-09-2023,Children and Young People,Gordon Care Services Limited,Contact Costs (Placements),825,0,COMMERCIAL SUPPLIER
02-09-2023,Children and Young People,Gordon Care Services Limited,Contact Costs (Placements),825,0,COMMERCIAL SUPPLIER
02-09-2023,Children and Young People,Gordon Care Services Limited,Equipment & Adaptation - Private Contractors Payment,743.57,0,COMMERCIAL SUPPLIER
02-09-2023,Children and Young People,Gordon Care Services Limited,Contact Costs (Placements),825,0,COMMERCIAL SUPPLIER
02-09-2023,Children and Young People,Gordon Care Services Limited,Contact Costs (Placements),825,0,COMMERCIAL SUPPLIER
02-09-2023,Children and Young People,Gordon Care Services Limited,Equipment & Adaptation - Private Contractors Payment,1787.5,0,COMMERCIAL SUPPLIER
02-09-2023,Children and Young People,Gordon Care Services Limited,Equipment & Adaptation - Private Contractors Payment,537.5,0,COMMERCIAL SUPPLIER
02-09-2023,Children and Young People,Gordon Care Services Limited,Equipment & Adaptation - Private Contractors Payment,537.5,0,COMMERCIAL SUPPLIER
02-09-2023,Children and Young People,Gordon Care Services Limited,Equipment & Adaptation - Private Contractors Payment,1787.5,0,COMMERCIAL SUPPLIER
02-09-2023,Children and Young People,Gordon Care Services Limited,Equipment & Adaptation - Private Contractors Payment,1787.5,0,COMMERCIAL SUPPLIER
02-09-2023,Children and Young People,Gordon Care Services Limited,Equipment & Adaptation - Private Contractors Payment,537.5,0,COMMERCIAL SUPPLIER
02-09-2023,Children and Young People,Clayhall Executive Cars Ltd,Contact Costs (Placements),240,0,COMMERCIAL SUPPLIER
02-09-2023,Children and Young People,Gordon Care Services Limited,Contact Costs (Placements),589.29,0,COMMERCIAL SUPPLIER
02-09-2023,Children and Young People,Clayhall Executive Cars Ltd,Contact Costs (Placements),400,0,COMMERCIAL SUPPLIER
02-09-2023,Children and Young People,Gordon Care Services Limited,Equipment & Adaptation - Private Contractors Payment,539.62,0,COMMERCIAL SUPPLIER
02-09-2023,Children and Young People,Gordon Care Services Limited,Contact Costs (Placements),589.29,0,COMMERCIAL SUPPLIER
02-09-2023,Children and Young People,Gordon Care Services Limited,Equipment & Adaptation - Private Contractors Payment,531.12,0,COMMERCIAL SUPPLIER
02-09-2023,Children and Young People,Gordon Care Services Limited,Equipment & Adaptation - Private Contractors Payment,383.93,0,COMMERCIAL SUPPLIER
02-09-2023,Children and Young People,Gordon Care Services Limited,Equipment & Adaptation - Private Contractors Payment,1276.79,0,COMMERCIAL SUPPLIER
02-09-2023,Children and Young People,Gordon Care Services Limited,Contact Costs (Placements),589.29,0,COMMERCIAL SUPPLIER
02-09-2023,Children and Young People,Potton Kare Services,Additional Placements - Third Party,1514.07,0,VENDOR
02-09-2023,Children and Young People,Potton Kare Services,Client Expenses - Third Party,465.3,0,VENDOR
02-09-2023,Children and Young People,Potton Kare Services,Additional Placements - Third Party,1393.05,0,VENDOR
02-09-2023,Children and Young People,Potton Kare Services,Equipment & Adaptation - Private Contractors Payment,5285.5,0,VENDOR
02-09-2023,Children and Young People,Potton Kare Services,Client Expenses - Third Party,465.3,0,VENDOR
02-09-2023,Children and Young People,Potton Kare Services,Additional Placements - Third Party,1440.75,0,VENDOR
02-09-2023,Children and Young People,Potton Kare Services,Additional Placements - Third Party,1548.75,0,VENDOR
02-09-2023,Children and Young People,Potton Kare Services,Client Expenses - Third Party,465.3,0,VENDOR
02-09-2023,Children and Young People,Potton Kare Services,Equipment & Adaptation - Private Contractors Payment,772.13,0,VENDOR
02-09-2023,Children and Young People,Potton Kare Services,Equipment & Adaptation - Private Contractors Payment,5364,0,VENDOR
02-09-2023,Children and Young People,Potton Kare Services,Additional Placements - Third Party,1154.33,0,VENDOR
02-09-2023,Children and Young People,Potton Kare Services,Additional Placements - Third Party,1488.75,0,VENDOR
02-09-2023,Children and Young People,Potton Kare Services,Additional Placements - Third Party,299.1,0,VENDOR
02-09-2023,Children and Young People,Potton Kare Services,Additional Placements - Third Party,537.9,0,VENDOR
02-09-2023,Children and Young People,Potton Kare Services,Equipment & Adaptation - Private Contractors Payment,5510.69,0,VENDOR
02-09-2023,Children and Young People,Potton Kare Services,Equipment & Adaptation - Private Contractors Payment,5289.5,0,VENDOR
03-09-2023,Dedicated Schools Budget,Personal Information - Redacted,Professional Services - General,120516,0,LOCAL AUTHORITY SERVICES
03-09-2023,Inclusive Economy & Housing,J.A. Steel & Son Ltd,Private Contractors Payment - Other,575.5,0,COMMERCIAL SUPPLIER
03-09-2023,Inclusive Economy & Housing,J.A. Steel & Son Ltd,Private Contractors Payment - Other,250,0,COMMERCIAL SUPPLIER
03-09-2023,Inclusive Economy & Housing,J.A. Steel & Son Ltd,Private Contractors Payment - Other,234,0,COMMERCIAL SUPPLIER
03-09-2023,Inclusive Economy & Housing,J.A. Steel & Son Ltd,Private Contractors Payment - Other,563.35,0,COMMERCIAL SUPPLIER
03-09-2023,Inclusive Economy & Housing,J.A. Steel & Son Ltd,Private Contractors Payment - Other,267,0,COMMERCIAL SUPPLIER
03-09-2023,Inclusive Economy & Housing,J.A. Steel & Son Ltd,Private Contractors Payment - Other,736,0,COMMERCIAL SUPPLIER
03-09-2023,Inclusive Economy & Housing,J.A. Steel & Son Ltd,Private Contractors Payment - Other,790,0,COMMERCIAL SUPPLIER
03-09-2023,Inclusive Economy & Housing,J.A. Steel & Son Ltd,Private Contractors Payment - Other,458.5,0,COMMERCIAL SUPPLIER
03-09-2023,Inclusive Economy & Housing,J.A. Steel & Son Ltd,Private Contractors Payment - Other,650,0,COMMERCIAL SUPPLIER
03-09-2023,Inclusive Economy & Housing,J.A. Steel & Son Ltd,Private Contractors Payment - Other,995.5,0,COMMERCIAL SUPPLIER
03-09-2023,Inclusive Economy & Housing,J.A. Steel & Son Ltd,Private Contractors Payment - Other,890,0,COMMERCIAL SUPPLIER
03-09-2023,Environment and Sustainable Transport,Hungerburger Ltd T/a Barking Hotel,Rents Payable,246,0,COMMERCIAL SUPPLIER
03-09-2023,Adults & Health,Voyage 1 Ltd,Residential Placements - Private Contractors Payment,1289.15,0,COMMERCIAL SUPPLIER
03-09-2023,Adults & Health,Voyage 1 Ltd,Residential Placements - Private Contractors Payment,1289.15,0,COMMERCIAL SUPPLIER
03-09-2023,Adults & Health,Voyage 1 Ltd,Residential Placements - Private Contractors Payment,1289.15,0,COMMERCIAL SUPPLIER
03-09-2023,Adults & Health,Voyage 1 Ltd,Residential Placements - Private Contractors Payment,1289.15,0,COMMERCIAL SUPPLIER
03-09-2023,Adults & Health,Caring Homes Healthcare Group t/a Moorlands,Residential Care Income,-172.8,0,NON COMMERCIAL SUPPLIER
03-09-2023,Adults & Health,Caring Homes Healthcare Group t/a Moorlands,Nursing Homes - Private Contractors Payment,750,0,NON COMMERCIAL SUPPLIER
03-09-2023,Adults & Health,Caring Homes Healthcare Group t/a Moorlands,Residential Care Income,-172.8,0,NON COMMERCIAL SUPPLIER
03-09-2023,Adults & Health,Caring Homes Healthcare Group t/a Moorlands,Nursing Homes - Private Contractors Payment,750,0,NON COMMERCIAL SUPPLIER
03-09-2023,Adults & Health,Caring Homes Healthcare Group t/a Moorlands,Nursing Homes - Private Contractors Payment,750,0,NON COMMERCIAL SUPPLIER
03-09-2023,Adults & Health,Caring Homes Healthcare Group t/a Moorlands,Residential Care Income,-172.8,0,NON COMMERCIAL SUPPLIER
03-09-2023,Adults & Health,Caring Homes Healthcare Group t/a Moorlands,Residential Care Income,-172.8,0,NON COMMERCIAL SUPPLIER
03-09-2023,Adults & Health,Caring Homes Healthcare Group t/a Moorlands,Nursing Homes - Private Contractors Payment,750,0,NON COMMERCIAL SUPPLIER
03-09-2023,Adults & Health,Runwood Homes Plc,Residential Placements - Private Contractors Payment,615,0,VENDOR
03-09-2023,Adults & Health,Runwood Homes Plc,Residential Care Income,-172.8,0,VENDOR
03-09-2023,Adults & Health,Runwood Homes Plc,Residential Care Income,-172.8,0,VENDOR
03-09-2023,Adults & Health,Runwood Homes Plc,Residential Placements - Private Contractors Payment,615,0,VENDOR
03-09-2023,Adults & Health,Runwood Homes Plc,Residential Care Income,-172.8,0,VENDOR
03-09-2023,Adults & Health,Runwood Homes Plc,Residential Placements - Private Contractors Payment,615,0,VENDOR
03-09-2023,Adults & Health,Runwood Homes Plc,Residential Care Income,-172.8,0,VENDOR
03-09-2023,Adults & Health,Runwood Homes Plc,Residential Placements - Private Contractors Payment,615,0,VENDOR
03-09-2023,Adults & Health,Outward Housing,Daycare - Private Contractors Payment,441.45,0,VENDOR
03-09-2023,Adults & Health,Outward Housing,Daycare - Private Contractors Payment,441.45,0,VENDOR
03-09-2023,Adults & Health,Outward Housing,Daycare - Private Contractors Payment,441.45,0,VENDOR
03-09-2023,Adults & Health,Outward Housing,Daycare - Private Contractors Payment,441.45,0,VENDOR
03-09-2023,Adults & Health,Four Seasons No.7 Limited ( Norwood Green Care Home) ,Nursing Homes - Private Contractors Payment,848.12,0,NON COMMERCIAL SUPPLIER
03-09-2023,Adults & Health,Four Seasons No.7 Limited ( Norwood Green Care Home) ,Nursing Homes - Private Contractors Payment,848.12,0,NON COMMERCIAL SUPPLIER
03-09-2023,Adults & Health,Four Seasons No.7 Limited ( Norwood Green Care Home) ,Nursing Homes - Private Contractors Payment,848.12,0,NON COMMERCIAL SUPPLIER
03-09-2023,Adults & Health,Four Seasons No.7 Limited ( Norwood Green Care Home) ,Nursing Homes - Private Contractors Payment,848.12,0,NON COMMERCIAL SUPPLIER
03-09-2023,Adults & Health,Westminster Health Care Limited,Nursing Homes - Private Contractors Payment,719.08,0,COMMERCIAL SUPPLIER
03-09-2023,Adults & Health,Westminster Health Care Limited,Nursing Homes - Private Contractors Payment,719.08,0,COMMERCIAL SUPPLIER
03-09-2023,Adults & Health,Westminster Health Care Limited,Nursing Homes - Private Contractors Payment,719.08,0,COMMERCIAL SUPPLIER
03-09-2023,Adults & Health,Westminster Health Care Limited,Nursing Homes - Private Contractors Payment,719.08,0,COMMERCIAL SUPPLIER
03-09-2023,Adults & Health,L & Q Living,Residential Placements - Private Contractors Payment,1457,0,VENDOR
03-09-2023,Adults & Health,L & Q Living,Residential Placements - Private Contractors Payment,1457,0,VENDOR
03-09-2023,Adults & Health,L & Q Living,Residential Placements - Private Contractors Payment,1457,0,VENDOR
03-09-2023,Adults & Health,L & Q Living,Residential Placements - Private Contractors Payment,1457,0,VENDOR
03-09-2023,Adults & Health,Four Seasons 2000 Limited-Marlborough Court Care Home,Nursing Homes - Private Contractors Payment,617.44,0,NON COMMERCIAL SUPPLIER
03-09-2023,Adults & Health,Four Seasons 2000 Limited-Marlborough Court Care Home,Nursing Homes - Private Contractors Payment,617.44,0,NON COMMERCIAL SUPPLIER
03-09-2023,Adults & Health,Four Seasons 2000 Limited-Marlborough Court Care Home,Nursing Homes - Private Contractors Payment,617.44,0,NON COMMERCIAL SUPPLIER
03-09-2023,Adults & Health,Four Seasons 2000 Limited-Marlborough Court Care Home,Nursing Homes - Private Contractors Payment,617.44,0,NON COMMERCIAL SUPPLIER
03-09-2023,Adults & Health,Leyton House Community Care Ltd,Supported Other Accommodation - Private Contractors Payment,502.43,0,COMMERCIAL SUPPLIER
03-09-2023,Adults & Health,Leyton House Community Care Ltd,Supported Other Accommodation - Private Contractors Payment,502.43,0,COMMERCIAL SUPPLIER
03-09-2023,Adults & Health,Leyton House Community Care Ltd,Supported Other Accommodation - Private Contractors Payment,502.43,0,COMMERCIAL SUPPLIER
03-09-2023,Adults & Health,Leyton House Community Care Ltd,Supported Other Accommodation - Private Contractors Payment,502.43,0,COMMERCIAL SUPPLIER
03-09-2023,Adults & Health,Abbeyfield Society,Residential Placements - Private Contractors Payment,602.65,0,COMMERCIAL SUPPLIER
03-09-2023,Adults & Health,Abbeyfield Society,Residential Care Income,-172.8,0,COMMERCIAL SUPPLIER
03-09-2023,Adults & Health,Abbeyfield Society,Residential Placements - Private Contractors Payment,602.65,0,COMMERCIAL SUPPLIER
03-09-2023,Adults & Health,Abbeyfield Society,Residential Care Income,-172.8,0,COMMERCIAL SUPPLIER
03-09-2023,Adults & Health,Abbeyfield Society,Residential Care Income,-172.8,0,COMMERCIAL SUPPLIER
03-09-2023,Adults & Health,Abbeyfield Society,Residential Placements - Private Contractors Payment,602.65,0,COMMERCIAL SUPPLIER
03-09-2023,Adults & Health,Abbeyfield Society,Residential Placements - Private Contractors Payment,602.65,0,COMMERCIAL SUPPLIER
03-09-2023,Adults & Health,Abbeyfield Society,Residential Care Income,-172.8,0,COMMERCIAL SUPPLIER
03-09-2023,Adults & Health,TLC Care Homes Ltd,Residential Care Income,-101.25,0,COMMERCIAL SUPPLIER
03-09-2023,Adults & Health,TLC Care Homes Ltd,Residential Placements - Private Contractors Payment,913.5,0,COMMERCIAL SUPPLIER
03-09-2023,Adults & Health,Saffron Care Homes,Residential Placements - Private Contractors Payment,2255.84,0,VENDOR
03-09-2023,Adults & Health,Saffron Care Homes,Residential Care Income,-120.8,0,VENDOR
03-09-2023,Adults & Health,TLC Care Homes Ltd,Residential Placements - Private Contractors Payment,913.5,0,COMMERCIAL SUPPLIER
03-09-2023,Adults & Health,TLC Care Homes Ltd,Residential Care Income,-101.25,0,COMMERCIAL SUPPLIER
03-09-2023,Adults & Health,Alpam Homes,Residential Care Income,-120.8,0,VENDOR
03-09-2023,Adults & Health,Alpam Homes,Residential Placements - Private Contractors Payment,1753.07,0,VENDOR
03-09-2023,Adults & Health,Saffron Care Homes,Residential Care Income,-120.8,0,VENDOR
03-09-2023,Adults & Health,Saffron Care Homes,Residential Placements - Private Contractors Payment,2255.84,0,VENDOR
03-09-2023,Adults & Health,Wortley Lodge,Residential Placements - Private Contractors Payment,1365.32,0,VENDOR
03-09-2023,Adults & Health,TLC Care Homes Ltd,Residential Placements - Private Contractors Payment,913.5,0,COMMERCIAL SUPPLIER
03-09-2023,Adults & Health,TLC Care Homes Ltd,Residential Care Income,-101.25,0,COMMERCIAL SUPPLIER
03-09-2023,Adults & Health,Alpam Homes,Residential Placements - Private Contractors Payment,1753.07,0,VENDOR
03-09-2023,Adults & Health,Alpam Homes,Residential Care Income,-120.8,0,VENDOR
03-09-2023,Adults & Health,Saffron Care Homes,Residential Care Income,-120.8,0,VENDOR
03-09-2023,Adults & Health,Saffron Care Homes,Residential Placements - Private Contractors Payment,2255.84,0,VENDOR
03-09-2023,Adults & Health,Wortley Lodge,Residential Placements - Private Contractors Payment,1365.32,0,VENDOR
03-09-2023,Adults & Health,Alpam Homes,Residential Care Income,-120.8,0,VENDOR
03-09-2023,Adults & Health,Alpam Homes,Residential Placements - Private Contractors Payment,1753.07,0,VENDOR
03-09-2023,Adults & Health,Saffron Care Homes,Residential Placements - Private Contractors Payment,2255.84,0,VENDOR
03-09-2023,Adults & Health,Saffron Care Homes,Residential Care Income,-120.8,0,VENDOR
03-09-2023,Adults & Health,Wortley Lodge,Residential Placements - Private Contractors Payment,1365.32,0,VENDOR
03-09-2023,Adults & Health,TLC Care Homes Ltd,Residential Care Income,-101.25,0,COMMERCIAL SUPPLIER
03-09-2023,Adults & Health,TLC Care Homes Ltd,Residential Placements - Private Contractors Payment,913.5,0,COMMERCIAL SUPPLIER
03-09-2023,Adults & Health,Alpam Homes,Residential Placements - Private Contractors Payment,1753.07,0,VENDOR
03-09-2023,Adults & Health,Alpam Homes,Residential Care Income,-120.8,0,VENDOR
03-09-2023,Adults & Health,Wortley Lodge,Residential Placements - Private Contractors Payment,1365.32,0,VENDOR
03-09-2023,Adults & Health,Grange Residential Care Ltd,Residential Care Income,-120.8,0,VENDOR
03-09-2023,Adults & Health,Grange Residential Care Ltd,Residential Placements - Private Contractors Payment,1198.83,0,VENDOR
03-09-2023,Adults & Health,Grange Residential Care Ltd,Residential Placements - Private Contractors Payment,1198.83,0,VENDOR
03-09-2023,Adults & Health,Grange Residential Care Ltd,Residential Care Income,-120.8,0,VENDOR
03-09-2023,Adults & Health,Grange Residential Care Ltd,Residential Placements - Private Contractors Payment,1198.83,0,VENDOR
03-09-2023,Adults & Health,Grange Residential Care Ltd,Residential Care Income,-120.8,0,VENDOR
03-09-2023,Adults & Health,Grange Residential Care Ltd,Residential Care Income,-120.8,0,VENDOR
03-09-2023,Adults & Health,Grange Residential Care Ltd,Residential Placements - Private Contractors Payment,1198.83,0,VENDOR
03-09-2023,Adults & Health,Meadow View Residential Homes,Residential Care Income,-120.8,0,VENDOR
03-09-2023,Adults & Health,Meadow View Residential Homes,Residential Placements - Private Contractors Payment,1605,0,VENDOR
03-09-2023,Adults & Health,Meadow View Residential Homes,Residential Placements - Private Contractors Payment,1605,0,VENDOR
03-09-2023,Adults & Health,Meadow View Residential Homes,Residential Care Income,-120.8,0,VENDOR
03-09-2023,Adults & Health,Meadow View Residential Homes,Residential Placements - Private Contractors Payment,1605,0,VENDOR
03-09-2023,Adults & Health,Meadow View Residential Homes,Residential Care Income,-120.8,0,VENDOR
03-09-2023,Adults & Health,Meadow View Residential Homes,Residential Placements - Private Contractors Payment,1605,0,VENDOR
03-09-2023,Adults & Health,Meadow View Residential Homes,Residential Care Income,-120.8,0,VENDOR
03-09-2023,Adults & Health,Barchester Healthcare Homes Limited t/a Westgate House,Residential Placements - Private Contractors Payment,954,0,NON COMMERCIAL SUPPLIER
03-09-2023,Adults & Health,Barchester Healthcare Homes Limited t/a Westgate House,Residential Placements - Private Contractors Payment,954,0,NON COMMERCIAL SUPPLIER
03-09-2023,Adults & Health,Barchester Healthcare Homes Limited t/a Westgate House,Residential Placements - Private Contractors Payment,954,0,NON COMMERCIAL SUPPLIER
03-09-2023,Adults & Health,Barchester Healthcare Homes Limited t/a Westgate House,Residential Placements - Private Contractors Payment,954,0,NON COMMERCIAL SUPPLIER
03-09-2023,Adults & Health,Woodlands Nursing Home,Nursing Homes - Private Contractors Payment,639.31,0,COMMERCIAL SUPPLIER
03-09-2023,Adults & Health,Woodlands Nursing Home,Nursing Homes - Private Contractors Payment,639.31,0,COMMERCIAL SUPPLIER
03-09-2023,Adults & Health,Woodlands Nursing Home,Nursing Homes - Private Contractors Payment,639.31,0,COMMERCIAL SUPPLIER
03-09-2023,Adults & Health,Woodlands Nursing Home,Nursing Homes - Private Contractors Payment,639.31,0,COMMERCIAL SUPPLIER
03-09-2023,Adults & Health,Advance Housing & Support Ltd,Residential Placements - Private Contractors Payment,2858.26,0,VENDOR
03-09-2023,Adults & Health,Nightingale Residential Care Home Ltd,Residential Placements - Private Contractors Payment,1200,0,COMMERCIAL SUPPLIER
03-09-2023,Adults & Health,Nightingale Residential Care Home Ltd,Residential Care Income,-170.8,0,COMMERCIAL SUPPLIER
03-09-2023,Adults & Health,Advance Housing & Support Ltd,Residential Placements - Private Contractors Payment,2858.26,0,VENDOR
03-09-2023,Adults & Health,Nightingale Residential Care Home Ltd,Residential Care Income,-170.8,0,COMMERCIAL SUPPLIER
03-09-2023,Adults & Health,Nightingale Residential Care Home Ltd,Residential Placements - Private Contractors Payment,1200,0,COMMERCIAL SUPPLIER
03-09-2023,Adults & Health,Nightingale Residential Care Home Ltd,Residential Placements - Private Contractors Payment,1200,0,COMMERCIAL SUPPLIER
03-09-2023,Adults & Health,Nightingale Residential Care Home Ltd,Residential Care Income,-170.8,0,COMMERCIAL SUPPLIER
03-09-2023,Adults & Health,Advance Housing & Support Ltd,Residential Placements - Private Contractors Payment,2858.26,0,VENDOR
03-09-2023,Adults & Health,Advance Housing & Support Ltd,Residential Placements - Private Contractors Payment,2858.26,0,VENDOR
03-09-2023,Adults & Health,Nightingale Residential Care Home Ltd,Residential Placements - Private Contractors Payment,1200,0,COMMERCIAL SUPPLIER
03-09-2023,Adults & Health,Nightingale Residential Care Home Ltd,Residential Care Income,-170.8,0,COMMERCIAL SUPPLIER
03-09-2023,Adults & Health,Four Seasons 2000 Limited-Marlborough Court Care Home,Residential Placements - Private Contractors Payment,581.56,0,NON COMMERCIAL SUPPLIER
03-09-2023,Adults & Health,Four Seasons 2000 Limited-Marlborough Court Care Home,Residential Care Income,-172.8,0,NON COMMERCIAL SUPPLIER
03-09-2023,Adults & Health,Four Seasons 2000 Limited-Marlborough Court Care Home,Residential Placements - Private Contractors Payment,581.56,0,NON COMMERCIAL SUPPLIER
03-09-2023,Adults & Health,Four Seasons 2000 Limited-Marlborough Court Care Home,Residential Care Income,-172.8,0,NON COMMERCIAL SUPPLIER
03-09-2023,Adults & Health,Four Seasons 2000 Limited-Marlborough Court Care Home,Residential Placements - Private Contractors Payment,581.56,0,NON COMMERCIAL SUPPLIER
03-09-2023,Adults & Health,Four Seasons 2000 Limited-Marlborough Court Care Home,Residential Care Income,-172.8,0,NON COMMERCIAL SUPPLIER
03-09-2023,Adults & Health,Four Seasons 2000 Limited-Marlborough Court Care Home,Residential Placements - Private Contractors Payment,581.56,0,NON COMMERCIAL SUPPLIER
03-09-2023,Adults & Health,Four Seasons 2000 Limited-Marlborough Court Care Home,Residential Care Income,-172.8,0,NON COMMERCIAL SUPPLIER
03-09-2023,Adults & Health,Nightingale Residential Care Home Ltd,Residential Placements - Private Contractors Payment,656,0,COMMERCIAL SUPPLIER
03-09-2023,Adults & Health,Nightingale Residential Care Home Ltd,Residential Care Income,-242.63,0,COMMERCIAL SUPPLIER
03-09-2023,Adults & Health,Nightingale Residential Care Home Ltd,Residential Care Income,-242.63,0,COMMERCIAL SUPPLIER
03-09-2023,Adults & Health,Nightingale Residential Care Home Ltd,Residential Placements - Private Contractors Payment,656,0,COMMERCIAL SUPPLIER
03-09-2023,Adults & Health,Nightingale Residential Care Home Ltd,Residential Care Income,-242.63,0,COMMERCIAL SUPPLIER
03-09-2023,Adults & Health,Nightingale Residential Care Home Ltd,Residential Placements - Private Contractors Payment,656,0,COMMERCIAL SUPPLIER
03-09-2023,Adults & Health,Nightingale Residential Care Home Ltd,Residential Placements - Private Contractors Payment,656,0,COMMERCIAL SUPPLIER
03-09-2023,Adults & Health,Nightingale Residential Care Home Ltd,Residential Care Income,-242.63,0,COMMERCIAL SUPPLIER
03-09-2023,Adults & Health,Alpam Homes,Residential Placements - Private Contractors Payment,1550.37,0,VENDOR
03-09-2023,Adults & Health,Alpam Homes,Residential Care Income,-120.8,0,VENDOR
03-09-2023,Adults & Health,Alpam Homes,Residential Placements - Private Contractors Payment,1660.83,0,VENDOR
03-09-2023,Adults & Health,Alpam Homes,Residential Placements - Private Contractors Payment,1550.38,0,VENDOR
03-09-2023,Adults & Health,Alpam Homes,Residential Placements - Private Contractors Payment,1830.61,0,VENDOR
03-09-2023,Adults & Health,Alpam Homes,Residential Care Income,-120.8,0,VENDOR
03-09-2023,Adults & Health,Alpam Homes,Residential Placements - Private Contractors Payment,1660.83,0,VENDOR
03-09-2023,Adults & Health,Alpam Homes,Residential Placements - Private Contractors Payment,1550.38,0,VENDOR
03-09-2023,Adults & Health,Alpam Homes,Residential Placements - Private Contractors Payment,1830.61,0,VENDOR
03-09-2023,Adults & Health,Alpam Homes,Residential Placements - Private Contractors Payment,1550.37,0,VENDOR
03-09-2023,Adults & Health,Alpam Homes,Residential Care Income,-120.8,0,VENDOR
03-09-2023,Adults & Health,Alpam Homes,Residential Placements - Private Contractors Payment,1465.94,0,VENDOR
03-09-2023,Adults & Health,Alpam Homes,Residential Placements - Private Contractors Payment,1830.61,0,VENDOR
03-09-2023,Adults & Health,Alpam Homes,Residential Care Income,-120.8,0,VENDOR
03-09-2023,Adults & Health,Alpam Homes,Residential Placements - Private Contractors Payment,1465.94,0,VENDOR
03-09-2023,Adults & Health,Alpam Homes,Residential Care Income,-120.8,0,VENDOR
03-09-2023,Adults & Health,Alpam Homes,Residential Placements - Private Contractors Payment,1660.83,0,VENDOR
03-09-2023,Adults & Health,Alpam Homes,Residential Placements - Private Contractors Payment,1550.38,0,VENDOR
03-09-2023,Adults & Health,Alpam Homes,Residential Placements - Private Contractors Payment,1465.94,0,VENDOR
03-09-2023,Adults & Health,Alpam Homes,Residential Care Income,-120.8,0,VENDOR
03-09-2023,Adults & Health,Alpam Homes,Residential Placements - Private Contractors Payment,1830.61,0,VENDOR
03-09-2023,Adults & Health,Alpam Homes,Residential Placements - Private Contractors Payment,1550.37,0,VENDOR
03-09-2023,Adults & Health,Alpam Homes,Residential Placements - Private Contractors Payment,1550.37,0,VENDOR
03-09-2023,Adults & Health,Alpam Homes,Residential Placements - Private Contractors Payment,1465.94,0,VENDOR
03-09-2023,Adults & Health,Alpam Homes,Residential Care Income,-120.8,0,VENDOR
03-09-2023,Adults & Health,Alpam Homes,Residential Placements - Private Contractors Payment,1660.83,0,VENDOR
03-09-2023,Adults & Health,Alpam Homes,Residential Care Income,-120.8,0,VENDOR
03-09-2023,Adults & Health,Alpam Homes,Residential Placements - Private Contractors Payment,1550.38,0,VENDOR
03-09-2023,Adults & Health,Oakwood Lodge,Residential Placements - Private Contractors Payment,950,0,VENDOR
03-09-2023,Adults & Health,Oakwood Lodge,Residential Placements - Private Contractors Payment,950,0,VENDOR
03-09-2023,Adults & Health,Oakwood Lodge,Residential Placements - Private Contractors Payment,950,0,VENDOR
03-09-2023,Adults & Health,Oakwood Lodge,Residential Placements - Private Contractors Payment,950,0,VENDOR
03-09-2023,Adults & Health,Langley House (Parcs Healthcare Limited),Residential Care Income,-244.56,0,COMMERCIAL SUPPLIER
03-09-2023,Adults & Health,Langley House (Parcs Healthcare Limited),Residential Placements - Private Contractors Payment,584,0,COMMERCIAL SUPPLIER
03-09-2023,Adults & Health,Langley House (Parcs Healthcare Limited),Residential Care Income,-244.56,0,COMMERCIAL SUPPLIER
03-09-2023,Adults & Health,Langley House (Parcs Healthcare Limited),Residential Placements - Private Contractors Payment,584,0,COMMERCIAL SUPPLIER
03-09-2023,Adults & Health,Langley House (Parcs Healthcare Limited),Residential Placements - Private Contractors Payment,584,0,COMMERCIAL SUPPLIER
03-09-2023,Adults & Health,Langley House (Parcs Healthcare Limited),Residential Care Income,-244.56,0,COMMERCIAL SUPPLIER
03-09-2023,Adults & Health,Langley House (Parcs Healthcare Limited),Residential Care Income,-244.56,0,COMMERCIAL SUPPLIER
03-09-2023,Adults & Health,Langley House (Parcs Healthcare Limited),Residential Placements - Private Contractors Payment,584,0,COMMERCIAL SUPPLIER
03-09-2023,Adults & Health,Zero Three Care Homes LLP,Residential Care Income,-120.8,0,COMMERCIAL SUPPLIER
03-09-2023,Adults & Health,Zero Three Care Homes LLP,Residential Placements - Private Contractors Payment,3049.58,0,COMMERCIAL SUPPLIER
03-09-2023,Adults & Health,Zero Three Care Homes LLP,Residential Placements - Private Contractors Payment,3049.58,0,COMMERCIAL SUPPLIER
03-09-2023,Adults & Health,Zero Three Care Homes LLP,Residential Care Income,-120.8,0,COMMERCIAL SUPPLIER
03-09-2023,Adults & Health,Pathways,Residential Placements - Private Contractors Payment,893.97,0,VENDOR
03-09-2023,Adults & Health,Pathways,Residential Care Income,-120.8,0,VENDOR
03-09-2023,Adults & Health,Zero Three Care Homes LLP,Residential Placements - Private Contractors Payment,3049.58,0,COMMERCIAL SUPPLIER
03-09-2023,Adults & Health,Zero Three Care Homes LLP,Residential Care Income,-120.8,0,COMMERCIAL SUPPLIER
03-09-2023,Adults & Health,Pathways,Residential Placements - Private Contractors Payment,893.97,0,VENDOR
03-09-2023,Adults & Health,Pathways,Residential Care Income,-120.8,0,VENDOR
03-09-2023,Adults & Health,Zero Three Care Homes LLP,Residential Care Income,-120.8,0,COMMERCIAL SUPPLIER
03-09-2023,Adults & Health,Zero Three Care Homes LLP,Residential Placements - Private Contractors Payment,3049.58,0,COMMERCIAL SUPPLIER
03-09-2023,Adults & Health,Pathways,Residential Care Income,-120.8,0,VENDOR
03-09-2023,Adults & Health,Pathways,Residential Placements - Private Contractors Payment,893.97,0,VENDOR
03-09-2023,Adults & Health,Pathways,Residential Care Income,-120.8,0,VENDOR
03-09-2023,Adults & Health,Pathways,Residential Placements - Private Contractors Payment,893.97,0,VENDOR
03-09-2023,Adults & Health,Runwood Homes Plc,Residential Placements - Private Contractors Payment,615,0,VENDOR
03-09-2023,Adults & Health,Runwood Homes Plc,Residential Placements - Private Contractors Payment,615,0,VENDOR
03-09-2023,Adults & Health,Runwood Homes Plc,Residential Placements - Private Contractors Payment,615,0,VENDOR
03-09-2023,Adults & Health,Runwood Homes Plc,Residential Placements - Private Contractors Payment,615,0,VENDOR
03-09-2023,Adults & Health,Grange Residential Care Ltd,Residential Placements - Private Contractors Payment,1320,0,VENDOR
03-09-2023,Adults & Health,Grange Residential Care Ltd,Residential Care Income,-120.8,0,VENDOR
03-09-2023,Adults & Health,Grange Residential Care Ltd,Residential Care Income,-120.8,0,VENDOR
03-09-2023,Adults & Health,Grange Residential Care Ltd,Residential Placements - Private Contractors Payment,1320,0,VENDOR
03-09-2023,Adults & Health,Grange Residential Care Ltd,Residential Placements - Private Contractors Payment,1320,0,VENDOR
03-09-2023,Adults & Health,Grange Residential Care Ltd,Residential Care Income,-120.8,0,VENDOR
03-09-2023,Adults & Health,Grange Residential Care Ltd,Residential Placements - Private Contractors Payment,1320,0,VENDOR
03-09-2023,Adults & Health,Grange Residential Care Ltd,Residential Care Income,-120.8,0,VENDOR
03-09-2023,Adults & Health,Runwood Homes Plc,Residential Placements - Private Contractors Payment,607.58,0,VENDOR
03-09-2023,Adults & Health,Runwood Homes Plc,Residential Placements - Private Contractors Payment,607.58,0,VENDOR
03-09-2023,Adults & Health,Runwood Homes Plc,Residential Placements - Private Contractors Payment,607.58,0,VENDOR
03-09-2023,Adults & Health,Runwood Homes Plc,Residential Placements - Private Contractors Payment,607.58,0,VENDOR
03-09-2023,Adults & Health,St Mungo's,Residential Placements - Private Contractors Payment,757.36,0,COMMERCIAL SUPPLIER
03-09-2023,Adults & Health,St Mungo's,Residential Placements - Private Contractors Payment,757.36,0,COMMERCIAL SUPPLIER
03-09-2023,Adults & Health,St Mungo's,Residential Placements - Private Contractors Payment,757.36,0,COMMERCIAL SUPPLIER
03-09-2023,Adults & Health,St Mungo's,Residential Placements - Private Contractors Payment,757.36,0,COMMERCIAL SUPPLIER
03-09-2023,Adults & Health,Barchester Healthcare Homes Limited t/a Westgate House,Nursing Homes - Private Contractors Payment,1000,0,NON COMMERCIAL SUPPLIER
03-09-2023,Adults & Health,Barchester Healthcare Homes Limited t/a Westgate House,Nursing Homes - Private Contractors Payment,1000,0,NON COMMERCIAL SUPPLIER
03-09-2023,Adults & Health,Barchester Healthcare Homes Limited t/a Westgate House,Nursing Homes - Private Contractors Payment,1000,0,NON COMMERCIAL SUPPLIER
03-09-2023,Adults & Health,Barchester Healthcare Homes Limited t/a Westgate House,Nursing Homes - Private Contractors Payment,1000,0,NON COMMERCIAL SUPPLIER
03-09-2023,Adults & Health,Notting Hill Genesis Rent Account,Supported Other Accommodation - Private Contractors Payment,298,0,COMMERCIAL SUPPLIER
03-09-2023,Adults & Health,Notting Hill Genesis Rent Account,Supported Other Accommodation - Private Contractors Payment,298,0,COMMERCIAL SUPPLIER
03-09-2023,Adults & Health,Notting Hill Genesis Rent Account,Supported Other Accommodation - Private Contractors Payment,298,0,COMMERCIAL SUPPLIER
03-09-2023,Adults & Health,Notting Hill Genesis Rent Account,Supported Other Accommodation - Private Contractors Payment,298,0,COMMERCIAL SUPPLIER
03-09-2023,Adults & Health,Notting Hill Genesis Rent Account,Supported Other Accommodation - Private Contractors Payment,354.53,0,COMMERCIAL SUPPLIER
03-09-2023,Adults & Health,Grange Residential Care Ltd,Residential Placements - Private Contractors Payment,1198.83,0,VENDOR
03-09-2023,Adults & Health,Notting Hill Genesis Rent Account,Supported Other Accommodation - Private Contractors Payment,354.53,0,COMMERCIAL SUPPLIER
03-09-2023,Adults & Health,Grange Residential Care Ltd,Residential Placements - Private Contractors Payment,1198.83,0,VENDOR
03-09-2023,Adults & Health,Notting Hill Genesis Rent Account,Supported Other Accommodation - Private Contractors Payment,354.53,0,COMMERCIAL SUPPLIER
03-09-2023,Adults & Health,Grange Residential Care Ltd,Residential Placements - Private Contractors Payment,1198.83,0,VENDOR
03-09-2023,Adults & Health,Notting Hill Genesis Rent Account,Supported Other Accommodation - Private Contractors Payment,354.53,0,COMMERCIAL SUPPLIER
03-09-2023,Adults & Health,Grange Residential Care Ltd,Residential Placements - Private Contractors Payment,1198.83,0,VENDOR
03-09-2023,Adults & Health,Lukka Care Homes Limited,Nursing Homes - Private Contractors Payment,816.08,0,VENDOR
03-09-2023,Adults & Health,Lukka Care Homes Limited,Nursing Homes - Private Contractors Payment,816.08,0,VENDOR
03-09-2023,Adults & Health,Lukka Care Homes Limited,Nursing Homes - Private Contractors Payment,816.08,0,VENDOR
03-09-2023,Adults & Health,Lukka Care Homes Limited,Nursing Homes - Private Contractors Payment,816.08,0,VENDOR
03-09-2023,Adults & Health,Folkestone Nursing Home,Respite Care - Private Contractors Payment,825.58,0,VENDOR
03-09-2023,Adults & Health,Folkestone Nursing Home,Respite Care - Private Contractors Payment,825.58,0,VENDOR
03-09-2023,Adults & Health,Folkestone Nursing Home,Respite Care - Private Contractors Payment,825.58,0,VENDOR
03-09-2023,Adults & Health,Folkestone Nursing Home,Respite Care - Private Contractors Payment,825.58,0,VENDOR
03-09-2023,Adults & Health,RoCCS Reseidential Community Care Services Ltd,Residential Placements - Private Contractors Payment,1763,0,NON COMMERCIAL SUPPLIER
03-09-2023,Adults & Health,RoCCS Reseidential Community Care Services Ltd,Residential Placements - Private Contractors Payment,1763,0,NON COMMERCIAL SUPPLIER
03-09-2023,Adults & Health,RoCCS Reseidential Community Care Services Ltd,Residential Placements - Private Contractors Payment,1763,0,NON COMMERCIAL SUPPLIER
03-09-2023,Adults & Health,RoCCS Reseidential Community Care Services Ltd,Residential Placements - Private Contractors Payment,1763,0,NON COMMERCIAL SUPPLIER
03-09-2023,Adults & Health,Oakwood Lodge,Residential Placements - Private Contractors Payment,1040,0,VENDOR
03-09-2023,Adults & Health,Oakwood Lodge,Residential Placements - Private Contractors Payment,1040,0,VENDOR
03-09-2023,Adults & Health,Oakwood Lodge,Residential Placements - Private Contractors Payment,1040,0,VENDOR
03-09-2023,Adults & Health,Oakwood Lodge,Residential Placements - Private Contractors Payment,1040,0,VENDOR
03-09-2023,Adults & Health,Bennetts Castle Ltd,Nursing Homes - Private Contractors Payment,1000,0,VENDOR
03-09-2023,Adults & Health,Bennetts Castle Ltd,Nursing Homes - Private Contractors Payment,1000,0,VENDOR
03-09-2023,Adults & Health,Bennetts Castle Ltd,Nursing Homes - Private Contractors Payment,1000,0,VENDOR
03-09-2023,Adults & Health,Bennetts Castle Ltd,Nursing Homes - Private Contractors Payment,1000,0,VENDOR
03-09-2023,Adults & Health,Ashgate House Ltd,Residential Placements - Private Contractors Payment,1613.93,0,COMMERCIAL SUPPLIER
03-09-2023,Adults & Health,Ashgate House Ltd,Residential Placements - Private Contractors Payment,1613.93,0,COMMERCIAL SUPPLIER
03-09-2023,Adults & Health,Ashgate House Ltd,Residential Placements - Private Contractors Payment,1613.93,0,COMMERCIAL SUPPLIER
03-09-2023,Adults & Health,Ashgate House Ltd,Residential Placements - Private Contractors Payment,1613.93,0,COMMERCIAL SUPPLIER
03-09-2023,Adults & Health,NAS Services Limited,Residential Placements - Private Contractors Payment,1039.3,0,COMMERCIAL SUPPLIER
03-09-2023,Adults & Health,NAS Services Limited,Residential Placements - Private Contractors Payment,1039.3,0,COMMERCIAL SUPPLIER
03-09-2023,Adults & Health,NAS Services Limited,Residential Placements - Private Contractors Payment,1039.3,0,COMMERCIAL SUPPLIER
03-09-2023,Adults & Health,NAS Services Limited,Residential Placements - Private Contractors Payment,1039.3,0,COMMERCIAL SUPPLIER
03-09-2023,Adults & Health,Lyncroft Residential Home,Residential Placements - Private Contractors Payment,530.44,0,COMMERCIAL SUPPLIER
03-09-2023,Adults & Health,Lyncroft Residential Home,Residential Care Income,-120.8,0,COMMERCIAL SUPPLIER
03-09-2023,Adults & Health,Lyncroft Residential Home,Residential Placements - Private Contractors Payment,517.7,0,COMMERCIAL SUPPLIER
03-09-2023,Adults & Health,Lyncroft Residential Home,Residential Care Income,-169.1,0,COMMERCIAL SUPPLIER
03-09-2023,Adults & Health,Ridley Community Project,Residential Care Income,-120.8,0,VENDOR
03-09-2023,Adults & Health,Ridley Community Project,Residential Placements - Private Contractors Payment,517.7,0,VENDOR
03-09-2023,Adults & Health,Lyncroft Residential Home,Residential Placements - Private Contractors Payment,739.32,0,COMMERCIAL SUPPLIER
03-09-2023,Adults & Health,Lyncroft Residential Home,Residential Care Income,-120.8,0,COMMERCIAL SUPPLIER
03-09-2023,Adults & Health,Lyncroft Residential Home,Residential Placements - Private Contractors Payment,530.44,0,COMMERCIAL SUPPLIER
03-09-2023,Adults & Health,Ridley Community Project,Residential Placements - Private Contractors Payment,517.7,0,VENDOR
03-09-2023,Adults & Health,Ridley Community Project,Residential Care Income,-120.8,0,VENDOR
03-09-2023,Adults & Health,Lyncroft Residential Home,Residential Care Income,-169.1,0,COMMERCIAL SUPPLIER
03-09-2023,Adults & Health,Lyncroft Residential Home,Residential Placements - Private Contractors Payment,517.7,0,COMMERCIAL SUPPLIER
03-09-2023,Adults & Health,Lyncroft Residential Home,Residential Placements - Private Contractors Payment,739.32,0,COMMERCIAL SUPPLIER
03-09-2023,Adults & Health,Ridley Community Project,Residential Placements - Private Contractors Payment,517.7,0,VENDOR
03-09-2023,Adults & Health,Ridley Community Project,Residential Care Income,-120.8,0,VENDOR
03-09-2023,Adults & Health,Lyncroft Residential Home,Residential Placements - Private Contractors Payment,530.44,0,COMMERCIAL SUPPLIER
03-09-2023,Adults & Health,Lyncroft Residential Home,Residential Care Income,-120.8,0,COMMERCIAL SUPPLIER
03-09-2023,Adults & Health,Lyncroft Residential Home,Residential Placements - Private Contractors Payment,517.7,0,COMMERCIAL SUPPLIER
03-09-2023,Adults & Health,Lyncroft Residential Home,Residential Care Income,-169.1,0,COMMERCIAL SUPPLIER
03-09-2023,Adults & Health,Ridley Community Project,Residential Care Income,-120.8,0,VENDOR
03-09-2023,Adults & Health,Ridley Community Project,Residential Placements - Private Contractors Payment,517.7,0,VENDOR
03-09-2023,Adults & Health,Lyncroft Residential Home,Residential Placements - Private Contractors Payment,739.32,0,COMMERCIAL SUPPLIER
03-09-2023,Adults & Health,Lyncroft Residential Home,Residential Placements - Private Contractors Payment,739.32,0,COMMERCIAL SUPPLIER
03-09-2023,Adults & Health,Lyncroft Residential Home,Residential Placements - Private Contractors Payment,530.44,0,COMMERCIAL SUPPLIER
03-09-2023,Adults & Health,Lyncroft Residential Home,Residential Care Income,-120.8,0,COMMERCIAL SUPPLIER
03-09-2023,Adults & Health,Lyncroft Residential Home,Residential Placements - Private Contractors Payment,517.7,0,COMMERCIAL SUPPLIER
03-09-2023,Adults & Health,Lyncroft Residential Home,Residential Care Income,-169.1,0,COMMERCIAL SUPPLIER
03-09-2023,Adults & Health,Carmen Lodge Residential Home,Residential Placements - Private Contractors Payment,517.7,0,VENDOR
03-09-2023,Adults & Health,Carmen Lodge Residential Home,Residential Placements - Private Contractors Payment,517.7,0,VENDOR
03-09-2023,Adults & Health,Carmen Lodge Residential Home,Residential Placements - Private Contractors Payment,634.38,0,VENDOR
03-09-2023,Adults & Health,Carmen Lodge Residential Home,Residential Placements - Private Contractors Payment,659.75,0,VENDOR
03-09-2023,Adults & Health,Carmen Lodge Residential Home,Residential Care Income,-173.59,0,VENDOR
03-09-2023,Adults & Health,Carmen Lodge Residential Home,Residential Placements - Private Contractors Payment,517.7,0,VENDOR
03-09-2023,Adults & Health,Carmen Lodge Residential Home,Residential Placements - Private Contractors Payment,634.38,0,VENDOR
03-09-2023,Adults & Health,Carmen Lodge Residential Home,Residential Placements - Private Contractors Payment,659.75,0,VENDOR
03-09-2023,Adults & Health,Carmen Lodge Residential Home,Residential Care Income,-173.59,0,VENDOR
03-09-2023,Adults & Health,Carmen Lodge Residential Home,Residential Placements - Private Contractors Payment,634.38,0,VENDOR
03-09-2023,Adults & Health,Carmen Lodge Residential Home,Residential Care Income,-173.59,0,VENDOR
03-09-2023,Adults & Health,Carmen Lodge Residential Home,Residential Placements - Private Contractors Payment,659.75,0,VENDOR
03-09-2023,Adults & Health,Carmen Lodge Residential Home,Residential Placements - Private Contractors Payment,517.7,0,VENDOR
03-09-2023,Adults & Health,Carmen Lodge Residential Home,Residential Placements - Private Contractors Payment,659.75,0,VENDOR
03-09-2023,Adults & Health,Carmen Lodge Residential Home,Residential Care Income,-173.59,0,VENDOR
03-09-2023,Adults & Health,Carmen Lodge Residential Home,Residential Placements - Private Contractors Payment,517.7,0,VENDOR
03-09-2023,Adults & Health,Carmen Lodge Residential Home,Residential Placements - Private Contractors Payment,517.7,0,VENDOR
03-09-2023,Adults & Health,Carmen Lodge Residential Home,Residential Placements - Private Contractors Payment,517.7,0,VENDOR
03-09-2023,Adults & Health,Carmen Lodge Residential Home,Residential Placements - Private Contractors Payment,517.7,0,VENDOR
03-09-2023,Adults & Health,Carmen Lodge Residential Home,Residential Placements - Private Contractors Payment,634.38,0,VENDOR
03-09-2023,Adults & Health,Homewards Care Ltd,Residential Placements - Private Contractors Payment,900,0,NON COMMERCIAL SUPPLIER
03-09-2023,Adults & Health,Homewards Care Ltd,Residential Placements - Private Contractors Payment,900,0,NON COMMERCIAL SUPPLIER
03-09-2023,Adults & Health,Homewards Care Ltd,Residential Placements - Private Contractors Payment,900,0,NON COMMERCIAL SUPPLIER
03-09-2023,Adults & Health,Homewards Care Ltd,Residential Placements - Private Contractors Payment,900,0,NON COMMERCIAL SUPPLIER
03-09-2023,Adults & Health,Barchester Healthcare Homes Limited t/a Westgate House,Nursing Homes - Private Contractors Payment,853.36,0,NON COMMERCIAL SUPPLIER
03-09-2023,Adults & Health,Barchester Healthcare Homes Limited t/a Westgate House,Residential Placements - Private Contractors Payment,968.31,0,NON COMMERCIAL SUPPLIER
03-09-2023,Adults & Health,Barchester Healthcare Homes Limited t/a Westgate House,Residential Placements - Private Contractors Payment,968.31,0,NON COMMERCIAL SUPPLIER
03-09-2023,Adults & Health,Barchester Healthcare Homes Limited t/a Westgate House,Nursing Homes - Private Contractors Payment,853.36,0,NON COMMERCIAL SUPPLIER
03-09-2023,Adults & Health,Barchester Healthcare Homes Limited t/a Westgate House,Nursing Homes - Private Contractors Payment,853.36,0,NON COMMERCIAL SUPPLIER
03-09-2023,Adults & Health,Barchester Healthcare Homes Limited t/a Westgate House,Residential Placements - Private Contractors Payment,968.31,0,NON COMMERCIAL SUPPLIER
03-09-2023,Adults & Health,Barchester Healthcare Homes Limited t/a Westgate House,Nursing Homes - Private Contractors Payment,853.36,0,NON COMMERCIAL SUPPLIER
03-09-2023,Adults & Health,Barchester Healthcare Homes Limited t/a Westgate House,Residential Placements - Private Contractors Payment,968.31,0,NON COMMERCIAL SUPPLIER
03-09-2023,Adults & Health,Leyton House Community Care Ltd,Residential Placements - Private Contractors Payment,502.43,0,COMMERCIAL SUPPLIER
03-09-2023,Adults & Health,Simiks Care Ltd,Residential Placements - Private Contractors Payment,633.66,0,NON COMMERCIAL SUPPLIER
03-09-2023,Adults & Health,Hillsview Wood House- Eastwood House,Residential Placements - Private Contractors Payment,710.5,0,COMMERCIAL SUPPLIER
03-09-2023,Adults & Health,Simiks Care Ltd,Residential Placements - Private Contractors Payment,633.66,0,NON COMMERCIAL SUPPLIER
03-09-2023,Adults & Health,Leyton House Community Care Ltd,Residential Placements - Private Contractors Payment,502.43,0,COMMERCIAL SUPPLIER
03-09-2023,Adults & Health,Simiks Care Ltd,Residential Placements - Private Contractors Payment,633.66,0,NON COMMERCIAL SUPPLIER
03-09-2023,Adults & Health,Hillsview Wood House- Eastwood House,Residential Placements - Private Contractors Payment,710.5,0,COMMERCIAL SUPPLIER
03-09-2023,Adults & Health,Leyton House Community Care Ltd,Residential Placements - Private Contractors Payment,502.43,0,COMMERCIAL SUPPLIER
03-09-2023,Adults & Health,Simiks Care Ltd,Residential Placements - Private Contractors Payment,633.66,0,NON COMMERCIAL SUPPLIER
03-09-2023,Adults & Health,Hillsview Wood House- Eastwood House,Residential Placements - Private Contractors Payment,710.5,0,COMMERCIAL SUPPLIER
03-09-2023,Adults & Health,Leyton House Community Care Ltd,Residential Placements - Private Contractors Payment,502.43,0,COMMERCIAL SUPPLIER
03-09-2023,Adults & Health,Hillsview Wood House- Eastwood House,Residential Placements - Private Contractors Payment,710.5,0,COMMERCIAL SUPPLIER
03-09-2023,Adults & Health,L & Q Living,Residential Placements - Private Contractors Payment,1138.3,0,VENDOR
03-09-2023,Adults & Health,CAS Learning Disabilities Ltd,Residential Care Income,-127.8,0,COMMERCIAL SUPPLIER
03-09-2023,Adults & Health,CAS Learning Disabilities Ltd,Residential Placements - Private Contractors Payment,1522.5,0,COMMERCIAL SUPPLIER
03-09-2023,Adults & Health,Jooma Care Homes Limited,Residential Placements - Private Contractors Payment,609.54,0,VENDOR
03-09-2023,Adults & Health,L & Q Living,Residential Placements - Private Contractors Payment,1550.45,0,VENDOR
03-09-2023,Adults & Health,L & Q Living,Residential Placements - Private Contractors Payment,1550.45,0,VENDOR
03-09-2023,Adults & Health,Jooma Care Homes Limited,Residential Placements - Private Contractors Payment,609.54,0,VENDOR
03-09-2023,Adults & Health,CAS Learning Disabilities Ltd,Residential Care Income,-127.8,0,COMMERCIAL SUPPLIER
03-09-2023,Adults & Health,CAS Learning Disabilities Ltd,Residential Placements - Private Contractors Payment,1522.5,0,COMMERCIAL SUPPLIER
03-09-2023,Adults & Health,L & Q Living,Residential Placements - Private Contractors Payment,1138.3,0,VENDOR
03-09-2023,Adults & Health,L & Q Living,Residential Placements - Private Contractors Payment,1138.3,0,VENDOR
03-09-2023,Adults & Health,CAS Learning Disabilities Ltd,Residential Care Income,-127.8,0,COMMERCIAL SUPPLIER
03-09-2023,Adults & Health,CAS Learning Disabilities Ltd,Residential Placements - Private Contractors Payment,1522.5,0,COMMERCIAL SUPPLIER
03-09-2023,Adults & Health,Jooma Care Homes Limited,Residential Placements - Private Contractors Payment,609.54,0,VENDOR
03-09-2023,Adults & Health,L & Q Living,Residential Placements - Private Contractors Payment,1550.45,0,VENDOR
03-09-2023,Adults & Health,Jooma Care Homes Limited,Residential Placements - Private Contractors Payment,609.54,0,VENDOR
03-09-2023,Adults & Health,L & Q Living,Residential Placements - Private Contractors Payment,1550.45,0,VENDOR
03-09-2023,Adults & Health,CAS Learning Disabilities Ltd,Residential Care Income,-127.8,0,COMMERCIAL SUPPLIER
03-09-2023,Adults & Health,CAS Learning Disabilities Ltd,Residential Placements - Private Contractors Payment,1522.5,0,COMMERCIAL SUPPLIER
03-09-2023,Adults & Health,L & Q Living,Residential Placements - Private Contractors Payment,1138.3,0,VENDOR
03-09-2023,Adults & Health,Churchill House,Residential Placements - Private Contractors Payment,964.25,0,NON COMMERCIAL SUPPLIER
03-09-2023,Adults & Health,Airthrie Homes,Residential Placements - Private Contractors Payment,1182.8,0,VENDOR
03-09-2023,Adults & Health,Airthrie Homes,Residential Care Income,-142.69,0,VENDOR
03-09-2023,Adults & Health,Barchester Healthcare Homes Limited t/a Westgate House,Residential Placements - Private Contractors Payment,1360.37,0,NON COMMERCIAL SUPPLIER
03-09-2023,Adults & Health,The Leonard Cheshire Foundation,Residential Placements - Private Contractors Payment,1019.14,0,VENDOR
03-09-2023,Adults & Health,The Leonard Cheshire Foundation,Residential Care Income,-109.8,0,VENDOR
03-09-2023,Adults & Health,Maison Moti Ltd,Residential Placements - Private Contractors Payment,804.9,0,COMMERCIAL SUPPLIER
03-09-2023,Adults & Health,Ruislip Nursing Home Ltd,Residential Care Income,-56.55,0,COMMERCIAL SUPPLIER
03-09-2023,Adults & Health,Ruislip Nursing Home Ltd,Nursing Homes - Private Contractors Payment,1827,0,COMMERCIAL SUPPLIER
03-09-2023,Adults & Health,Cambridge Nursing Home,Nursing Homes - Private Contractors Payment,553.35,0,VENDOR
03-09-2023,Adults & Health,Jem Care Home Services Ltd,Nursing Homes - Private Contractors Payment,659.75,0,COMMERCIAL SUPPLIER
03-09-2023,Adults & Health,Jem Care Home Services Ltd,Residential Care Income,-201.19,0,COMMERCIAL SUPPLIER
03-09-2023,Adults & Health,Blossomwood,Residential Placements - Private Contractors Payment,1029.92,0,COMMERCIAL SUPPLIER
03-09-2023,Adults & Health,Blossomwood,Residential Care Income,-120.8,0,COMMERCIAL SUPPLIER
03-09-2023,Adults & Health,Airthrie Homes,Residential Care Income,-142.69,0,VENDOR
03-09-2023,Adults & Health,Airthrie Homes,Residential Placements - Private Contractors Payment,1182.8,0,VENDOR
03-09-2023,Adults & Health,Barchester Healthcare Homes Limited t/a Westgate House,Residential Placements - Private Contractors Payment,1360.37,0,NON COMMERCIAL SUPPLIER
03-09-2023,Adults & Health,Cambridge Nursing Home,Nursing Homes - Private Contractors Payment,913.5,0,VENDOR
03-09-2023,Adults & Health,Maison Moti Ltd,Residential Placements - Private Contractors Payment,804.9,0,COMMERCIAL SUPPLIER
03-09-2023,Adults & Health,Churchill House,Residential Placements - Private Contractors Payment,964.25,0,NON COMMERCIAL SUPPLIER
03-09-2023,Adults & Health,Cambridge Nursing Home,Nursing Homes - Private Contractors Payment,553.35,0,VENDOR
03-09-2023,Adults & Health,Jem Care Home Services Ltd,Residential Care Income,-201.19,0,COMMERCIAL SUPPLIER
03-09-2023,Adults & Health,Jem Care Home Services Ltd,Nursing Homes - Private Contractors Payment,659.75,0,COMMERCIAL SUPPLIER
03-09-2023,Adults & Health,The Leonard Cheshire Foundation,Residential Placements - Private Contractors Payment,1019.14,0,VENDOR
03-09-2023,Adults & Health,The Leonard Cheshire Foundation,Residential Care Income,-109.8,0,VENDOR
03-09-2023,Adults & Health,Barchester Healthcare Homes Limited t/a Westgate House,Residential Placements - Private Contractors Payment,1360.37,0,NON COMMERCIAL SUPPLIER
03-09-2023,Adults & Health,Cambridge Nursing Home,Nursing Homes - Private Contractors Payment,913.5,0,VENDOR
03-09-2023,Adults & Health,Airthrie Homes,Residential Placements - Private Contractors Payment,1182.8,0,VENDOR
03-09-2023,Adults & Health,Airthrie Homes,Residential Care Income,-142.69,0,VENDOR
03-09-2023,Adults & Health,Ruislip Nursing Home Ltd,Nursing Homes - Private Contractors Payment,1827,0,COMMERCIAL SUPPLIER
03-09-2023,Adults & Health,Ruislip Nursing Home Ltd,Residential Care Income,-56.55,0,COMMERCIAL SUPPLIER
03-09-2023,Adults & Health,Blossomwood,Residential Placements - Private Contractors Payment,1029.92,0,COMMERCIAL SUPPLIER
03-09-2023,Adults & Health,Blossomwood,Residential Care Income,-120.8,0,COMMERCIAL SUPPLIER
03-09-2023,Adults & Health,Cambridge Nursing Home,Nursing Homes - Private Contractors Payment,553.35,0,VENDOR
03-09-2023,Adults & Health,Jem Care Home Services Ltd,Nursing Homes - Private Contractors Payment,659.75,0,COMMERCIAL SUPPLIER
03-09-2023,Adults & Health,Jem Care Home Services Ltd,Residential Care Income,-201.19,0,COMMERCIAL SUPPLIER
03-09-2023,Adults & Health,The Leonard Cheshire Foundation,Residential Placements - Private Contractors Payment,1019.14,0,VENDOR
03-09-2023,Adults & Health,The Leonard Cheshire Foundation,Residential Care Income,-109.8,0,VENDOR
03-09-2023,Adults & Health,Blossomwood,Residential Placements - Private Contractors Payment,1029.92,0,COMMERCIAL SUPPLIER
03-09-2023,Adults & Health,Blossomwood,Residential Care Income,-120.8,0,COMMERCIAL SUPPLIER
03-09-2023,Adults & Health,Cambridge Nursing Home,Nursing Homes - Private Contractors Payment,913.5,0,VENDOR
03-09-2023,Adults & Health,Churchill House,Residential Placements - Private Contractors Payment,964.25,0,NON COMMERCIAL SUPPLIER
03-09-2023,Adults & Health,Airthrie Homes,Residential Care Income,-142.69,0,VENDOR
03-09-2023,Adults & Health,Airthrie Homes,Residential Placements - Private Contractors Payment,1182.8,0,VENDOR
03-09-2023,Adults & Health,Maison Moti Ltd,Residential Placements - Private Contractors Payment,804.9,0,COMMERCIAL SUPPLIER
03-09-2023,Adults & Health,Ruislip Nursing Home Ltd,Nursing Homes - Private Contractors Payment,1827,0,COMMERCIAL SUPPLIER
03-09-2023,Adults & Health,Ruislip Nursing Home Ltd,Residential Care Income,-56.55,0,COMMERCIAL SUPPLIER
03-09-2023,Adults & Health,Barchester Healthcare Homes Limited t/a Westgate House,Residential Placements - Private Contractors Payment,1360.37,0,NON COMMERCIAL SUPPLIER
03-09-2023,Adults & Health,Cambridge Nursing Home,Nursing Homes - Private Contractors Payment,913.5,0,VENDOR
03-09-2023,Adults & Health,Churchill House,Residential Placements - Private Contractors Payment,964.25,0,NON COMMERCIAL SUPPLIER
03-09-2023,Adults & Health,Cambridge Nursing Home,Nursing Homes - Private Contractors Payment,553.35,0,VENDOR
03-09-2023,Adults & Health,Jem Care Home Services Ltd,Residential Care Income,-201.19,0,COMMERCIAL SUPPLIER
03-09-2023,Adults & Health,Jem Care Home Services Ltd,Nursing Homes - Private Contractors Payment,659.75,0,COMMERCIAL SUPPLIER
03-09-2023,Adults & Health,The Leonard Cheshire Foundation,Residential Care Income,-109.8,0,VENDOR
03-09-2023,Adults & Health,The Leonard Cheshire Foundation,Residential Placements - Private Contractors Payment,1019.14,0,VENDOR
03-09-2023,Adults & Health,Blossomwood,Residential Placements - Private Contractors Payment,1029.92,0,COMMERCIAL SUPPLIER
03-09-2023,Adults & Health,Blossomwood,Residential Care Income,-120.8,0,COMMERCIAL SUPPLIER
03-09-2023,Adults & Health,Maison Moti Ltd,Residential Placements - Private Contractors Payment,804.9,0,COMMERCIAL SUPPLIER
03-09-2023,Adults & Health,Ruislip Nursing Home Ltd,Nursing Homes - Private Contractors Payment,1827,0,COMMERCIAL SUPPLIER
03-09-2023,Adults & Health,Ruislip Nursing Home Ltd,Residential Care Income,-56.55,0,COMMERCIAL SUPPLIER
03-09-2023,Adults & Health,Churchill House,Residential Placements - Private Contractors Payment,913.5,0,NON COMMERCIAL SUPPLIER
03-09-2023,Adults & Health,L & Q Living,Residential Placements - Private Contractors Payment,1224.09,0,VENDOR
03-09-2023,Adults & Health,L & Q Living,Residential Placements - Private Contractors Payment,1107.37,0,VENDOR
03-09-2023,Adults & Health,Drs Care Homes Limited,Residential Placements - Private Contractors Payment,550.94,0,VENDOR
03-09-2023,Adults & Health,Drs Care Homes Limited,Residential Care Income,-183.81,0,VENDOR
03-09-2023,Adults & Health,A Better Carehome Ltd T/A Breton Court  Carehome,Residential Placements - Private Contractors Payment,1116.5,0,NON COMMERCIAL SUPPLIER
03-09-2023,Adults & Health,Care & Normalisation Ltd,Residential Placements - Private Contractors Payment,1116.5,0,VENDOR
03-09-2023,Adults & Health,L & Q Living,Residential Placements - Private Contractors Payment,981.51,0,VENDOR
03-09-2023,Adults & Health,Partnerships In Care Limited,Residential Placements - Private Contractors Payment,1409.84,0,VENDOR
03-09-2023,Adults & Health,Rafael Home,Residential Placements - Private Contractors Payment,839.63,0,COMMERCIAL SUPPLIER
03-09-2023,Adults & Health,Ashwood House,Residential Placements - Private Contractors Payment,609.68,0,VENDOR
03-09-2023,Adults & Health,Ashwood House,Residential Care Income,-174.16,0,VENDOR
03-09-2023,Adults & Health,Blossom House Specialized Care & Support Services Ltd,Residential Care Income,-118.65,0,VENDOR
03-09-2023,Adults & Health,Blossom House Specialized Care & Support Services Ltd,Residential Placements - Private Contractors Payment,1936.62,0,VENDOR
03-09-2023,Adults & Health,The Avenues Trust,Residential Placements - Private Contractors Payment,1564.04,0,COMMERCIAL SUPPLIER
03-09-2023,Adults & Health,Barchester Healthcare Homes Limited t/a Westgate House,Nursing Homes - Private Contractors Payment,832.3,0,NON COMMERCIAL SUPPLIER
03-09-2023,Adults & Health,Gable Court NH Ltd,Nursing Homes - Private Contractors Payment,749.07,0,COMMERCIAL SUPPLIER
03-09-2023,Adults & Health,Barchester Healthcare Homes Limited t/a Westgate House,Nursing Homes - Private Contractors Payment,923.55,0,NON COMMERCIAL SUPPLIER
03-09-2023,Adults & Health,Churchill House,Residential Placements - Private Contractors Payment,994.7,0,NON COMMERCIAL SUPPLIER
03-09-2023,Adults & Health,Faircross Care Home,Residential Placements - Private Contractors Payment,964.25,0,COMMERCIAL SUPPLIER
03-09-2023,Adults & Health,Jooma Care Homes Limited,Residential Placements - Private Contractors Payment,567.45,0,VENDOR
03-09-2023,Adults & Health,Oak House t/a Connifers Care Ltd,Residential Placements - Private Contractors Payment,812,0,COMMERCIAL SUPPLIER
03-09-2023,Adults & Health,Hillsview Wood House- Eastwood House,Residential Placements - Private Contractors Payment,710.5,0,COMMERCIAL SUPPLIER
03-09-2023,Adults & Health,Cambridge Nursing Home,Nursing Homes - Private Contractors Payment,710.5,0,VENDOR
03-09-2023,Adults & Health,Cambridge Nursing Home,Residential Care Income,-101.25,0,VENDOR
03-09-2023,Adults & Health,Barchester Healthcare Homes Limited t/a Westgate House,Residential Placements - Private Contractors Payment,1066.92,0,NON COMMERCIAL SUPPLIER
03-09-2023,Adults & Health,Drs Care Homes Limited,Residential Placements - Private Contractors Payment,1756.84,0,VENDOR
03-09-2023,Adults & Health,Independence Homes Limited,Residential Placements - Private Contractors Payment,2486.75,0,COMMERCIAL SUPPLIER
03-09-2023,Adults & Health,Eden Supported Services Ltd,Residential Placements - Private Contractors Payment,1975.75,0,COMMERCIAL SUPPLIER
03-09-2023,Adults & Health,The Cottage,Residential Placements - Private Contractors Payment,620.21,0,VENDOR
03-09-2023,Adults & Health,The Cottage,Residential Care Income,-101.25,0,VENDOR
03-09-2023,Adults & Health,Gable Court NH Ltd,Nursing Homes - Private Contractors Payment,710.5,0,COMMERCIAL SUPPLIER
03-09-2023,Adults & Health,Ebenezer Residential Care Home,Residential Placements - Private Contractors Payment,639.45,0,VENDOR
03-09-2023,Adults & Health,Churchill House,Residential Placements - Private Contractors Payment,994.7,0,NON COMMERCIAL SUPPLIER
03-09-2023,Adults & Health,L & Q Living,Residential Placements - Private Contractors Payment,1224.09,0,VENDOR
03-09-2023,Adults & Health,Churchill House,Residential Placements - Private Contractors Payment,913.5,0,NON COMMERCIAL SUPPLIER
03-09-2023,Adults & Health,Barchester Healthcare Homes Limited t/a Westgate House,Nursing Homes - Private Contractors Payment,832.3,0,NON COMMERCIAL SUPPLIER
03-09-2023,Adults & Health,The Enham Trust,Residential Care Income,-101.25,0,VENDOR
03-09-2023,Adults & Health,The Enham Trust,Residential Placements - Private Contractors Payment,742.88,0,VENDOR
03-09-2023,Adults & Health,L & Q Living,Residential Placements - Private Contractors Payment,981.51,0,VENDOR
03-09-2023,Adults & Health,Drs Care Homes Limited,Residential Placements - Private Contractors Payment,550.94,0,VENDOR
03-09-2023,Adults & Health,Drs Care Homes Limited,Residential Care Income,-183.81,0,VENDOR
03-09-2023,Adults & Health,A Better Carehome Ltd T/A Breton Court  Carehome,Residential Placements - Private Contractors Payment,1116.5,0,NON COMMERCIAL SUPPLIER
03-09-2023,Adults & Health,Care & Normalisation Ltd,Residential Placements - Private Contractors Payment,1116.5,0,VENDOR
03-09-2023,Adults & Health,Northbrook Homes Ltd,Residential Placements - Private Contractors Payment,1101.28,0,COMMERCIAL SUPPLIER
03-09-2023,Adults & Health,Northbrook Homes Ltd,Residential Care Income,-120.8,0,COMMERCIAL SUPPLIER
03-09-2023,Adults & Health,Ashlake Lodge Limited,Residential Placements - Private Contractors Payment,1065.75,0,VENDOR
03-09-2023,Adults & Health,L & Q Living,Residential Placements - Private Contractors Payment,942.94,0,VENDOR
03-09-2023,Adults & Health,Ashwood House,Residential Care Income,-174.16,0,VENDOR
03-09-2023,Adults & Health,Ashwood House,Residential Placements - Private Contractors Payment,609.68,0,VENDOR
03-09-2023,Adults & Health,Blossom House Specialized Care & Support Services Ltd,Residential Care Income,-118.65,0,VENDOR
03-09-2023,Adults & Health,Blossom House Specialized Care & Support Services Ltd,Residential Placements - Private Contractors Payment,1936.62,0,VENDOR
03-09-2023,Adults & Health,The Avenues Trust,Residential Placements - Private Contractors Payment,1564.04,0,COMMERCIAL SUPPLIER
03-09-2023,Adults & Health,Shepherds Corner,Residential Placements - Private Contractors Payment,1370.25,0,VENDOR
03-09-2023,Adults & Health,Gable Court NH Ltd,Nursing Homes - Private Contractors Payment,710.5,0,COMMERCIAL SUPPLIER
03-09-2023,Adults & Health,Faircross Care Home,Residential Placements - Private Contractors Payment,964.25,0,COMMERCIAL SUPPLIER
03-09-2023,Adults & Health,Jooma Care Homes Limited,Residential Placements - Private Contractors Payment,567.45,0,VENDOR
03-09-2023,Adults & Health,Hillsview Wood House- Eastwood House,Residential Placements - Private Contractors Payment,710.5,0,COMMERCIAL SUPPLIER
03-09-2023,Adults & Health,Hillsview Wood House- Eastwood House,Residential Placements - Private Contractors Payment,761.25,0,COMMERCIAL SUPPLIER
03-09-2023,Adults & Health,Cambridge Nursing Home,Nursing Homes - Private Contractors Payment,710.5,0,VENDOR
03-09-2023,Adults & Health,Cambridge Nursing Home,Residential Care Income,-101.25,0,VENDOR
03-09-2023,Adults & Health,Barchester Healthcare Homes Limited t/a Westgate House,Residential Placements - Private Contractors Payment,1066.92,0,NON COMMERCIAL SUPPLIER
03-09-2023,Adults & Health,Rafael Home,Residential Placements - Private Contractors Payment,839.63,0,COMMERCIAL SUPPLIER
03-09-2023,Adults & Health,Drs Care Homes Limited,Residential Placements - Private Contractors Payment,862.75,0,VENDOR
03-09-2023,Adults & Health,Drs Care Homes Limited,Residential Placements - Private Contractors Payment,1756.84,0,VENDOR
03-09-2023,Adults & Health,Eden Supported Services Ltd,Residential Placements - Private Contractors Payment,1975.75,0,COMMERCIAL SUPPLIER
03-09-2023,Adults & Health,Gable Court NH Ltd,Nursing Homes - Private Contractors Payment,749.07,0,COMMERCIAL SUPPLIER
03-09-2023,Adults & Health,Oak House t/a Connifers Care Ltd,Residential Placements - Private Contractors Payment,812,0,COMMERCIAL SUPPLIER
03-09-2023,Adults & Health,The Enham Trust,Residential Care Income,-101.25,0,VENDOR
03-09-2023,Adults & Health,The Enham Trust,Residential Placements - Private Contractors Payment,742.88,0,VENDOR
03-09-2023,Adults & Health,Drs Care Homes Limited,Residential Placements - Private Contractors Payment,550.94,0,VENDOR
03-09-2023,Adults & Health,Drs Care Homes Limited,Residential Care Income,-183.81,0,VENDOR
03-09-2023,Adults & Health,Care & Normalisation Ltd,Residential Placements - Private Contractors Payment,1116.5,0,VENDOR
03-09-2023,Adults & Health,Partnerships In Care Limited,Residential Placements - Private Contractors Payment,1409.84,0,VENDOR
03-09-2023,Adults & Health,L & Q Living,Residential Placements - Private Contractors Payment,942.94,0,VENDOR
03-09-2023,Adults & Health,Northbrook Homes Ltd,Residential Care Income,-120.8,0,COMMERCIAL SUPPLIER
03-09-2023,Adults & Health,Northbrook Homes Ltd,Residential Placements - Private Contractors Payment,1101.28,0,COMMERCIAL SUPPLIER
03-09-2023,Adults & Health,Ashlake Lodge Limited,Residential Placements - Private Contractors Payment,1065.75,0,VENDOR
03-09-2023,Adults & Health,L & Q Living,Residential Placements - Private Contractors Payment,1107.37,0,VENDOR
03-09-2023,Adults & Health,Ashwood House,Residential Placements - Private Contractors Payment,609.68,0,VENDOR
03-09-2023,Adults & Health,Ashwood House,Residential Care Income,-174.16,0,VENDOR
03-09-2023,Adults & Health,The Avenues Trust,Residential Placements - Private Contractors Payment,1564.04,0,COMMERCIAL SUPPLIER
03-09-2023,Adults & Health,Shepherds Corner,Residential Placements - Private Contractors Payment,1370.25,0,VENDOR
03-09-2023,Adults & Health,Gable Court NH Ltd,Nursing Homes - Private Contractors Payment,749.07,0,COMMERCIAL SUPPLIER
03-09-2023,Adults & Health,Barchester Healthcare Homes Limited t/a Westgate House,Nursing Homes - Private Contractors Payment,832.3,0,NON COMMERCIAL SUPPLIER
03-09-2023,Adults & Health,Barchester Healthcare Homes Limited t/a Westgate House,Nursing Homes - Private Contractors Payment,923.55,0,NON COMMERCIAL SUPPLIER
03-09-2023,Adults & Health,Churchill House,Residential Placements - Private Contractors Payment,913.5,0,NON COMMERCIAL SUPPLIER
03-09-2023,Adults & Health,Jooma Care Homes Limited,Residential Placements - Private Contractors Payment,567.45,0,VENDOR
03-09-2023,Adults & Health,Hillsview Wood House- Eastwood House,Residential Placements - Private Contractors Payment,761.25,0,COMMERCIAL SUPPLIER
03-09-2023,Adults & Health,A Better Carehome Ltd T/A Breton Court  Carehome,Residential Placements - Private Contractors Payment,1116.5,0,NON COMMERCIAL SUPPLIER
03-09-2023,Adults & Health,Barchester Healthcare Homes Limited t/a Westgate House,Residential Placements - Private Contractors Payment,1066.92,0,NON COMMERCIAL SUPPLIER
03-09-2023,Adults & Health,Drs Care Homes Limited,Residential Placements - Private Contractors Payment,1756.84,0,VENDOR
03-09-2023,Adults & Health,Rafael Home,Residential Placements - Private Contractors Payment,839.63,0,COMMERCIAL SUPPLIER
03-09-2023,Adults & Health,Independence Homes Limited,Residential Placements - Private Contractors Payment,2486.75,0,COMMERCIAL SUPPLIER
03-09-2023,Adults & Health,Drs Care Homes Limited,Residential Placements - Private Contractors Payment,862.75,0,VENDOR
03-09-2023,Adults & Health,Eden Supported Services Ltd,Residential Placements - Private Contractors Payment,1975.75,0,COMMERCIAL SUPPLIER
03-09-2023,Adults & Health,The Cottage,Residential Care Income,-101.25,0,VENDOR
03-09-2023,Adults & Health,The Cottage,Residential Placements - Private Contractors Payment,620.21,0,VENDOR
03-09-2023,Adults & Health,Gable Court NH Ltd,Nursing Homes - Private Contractors Payment,710.5,0,COMMERCIAL SUPPLIER
03-09-2023,Adults & Health,Ebenezer Residential Care Home,Residential Placements - Private Contractors Payment,639.45,0,VENDOR
03-09-2023,Adults & Health,Hillsview Wood House- Eastwood House,Residential Placements - Private Contractors Payment,710.5,0,COMMERCIAL SUPPLIER
03-09-2023,Adults & Health,Churchill House,Residential Placements - Private Contractors Payment,913.5,0,NON COMMERCIAL SUPPLIER
03-09-2023,Adults & Health,L & Q Living,Residential Placements - Private Contractors Payment,1224.09,0,VENDOR
03-09-2023,Adults & Health,The Enham Trust,Residential Care Income,-101.25,0,VENDOR
03-09-2023,Adults & Health,The Enham Trust,Residential Placements - Private Contractors Payment,742.88,0,VENDOR
03-09-2023,Adults & Health,L & Q Living,Residential Placements - Private Contractors Payment,942.94,0,VENDOR
03-09-2023,Adults & Health,Drs Care Homes Limited,Residential Care Income,-183.81,0,VENDOR
03-09-2023,Adults & Health,Drs Care Homes Limited,Residential Placements - Private Contractors Payment,550.94,0,VENDOR
03-09-2023,Adults & Health,Care & Normalisation Ltd,Residential Placements - Private Contractors Payment,1116.5,0,VENDOR
03-09-2023,Adults & Health,Partnerships In Care Limited,Residential Placements - Private Contractors Payment,1409.84,0,VENDOR
03-09-2023,Adults & Health,L & Q Living,Residential Placements - Private Contractors Payment,1107.37,0,VENDOR
03-09-2023,Adults & Health,Ashlake Lodge Limited,Residential Placements - Private Contractors Payment,1065.75,0,VENDOR
03-09-2023,Adults & Health,L & Q Living,Residential Placements - Private Contractors Payment,981.51,0,VENDOR
03-09-2023,Adults & Health,Blossom House Specialized Care & Support Services Ltd,Residential Care Income,-118.65,0,VENDOR
03-09-2023,Adults & Health,Blossom House Specialized Care & Support Services Ltd,Residential Placements - Private Contractors Payment,1936.62,0,VENDOR
03-09-2023,Adults & Health,Barchester Healthcare Homes Limited t/a Westgate House,Nursing Homes - Private Contractors Payment,923.55,0,NON COMMERCIAL SUPPLIER
03-09-2023,Adults & Health,Shepherds Corner,Residential Placements - Private Contractors Payment,1370.25,0,VENDOR
03-09-2023,Adults & Health,Churchill House,Residential Placements - Private Contractors Payment,994.7,0,NON COMMERCIAL SUPPLIER
03-09-2023,Adults & Health,Oak House t/a Connifers Care Ltd,Residential Placements - Private Contractors Payment,812,0,COMMERCIAL SUPPLIER
03-09-2023,Adults & Health,A Better Carehome Ltd T/A Breton Court  Carehome,Residential Placements - Private Contractors Payment,1116.5,0,NON COMMERCIAL SUPPLIER
03-09-2023,Adults & Health,Cambridge Nursing Home,Residential Care Income,-101.25,0,VENDOR
03-09-2023,Adults & Health,Cambridge Nursing Home,Nursing Homes - Private Contractors Payment,710.5,0,VENDOR
03-09-2023,Adults & Health,Northbrook Homes Ltd,Residential Care Income,-120.8,0,COMMERCIAL SUPPLIER
03-09-2023,Adults & Health,Northbrook Homes Ltd,Residential Placements - Private Contractors Payment,1101.28,0,COMMERCIAL SUPPLIER
03-09-2023,Adults & Health,Drs Care Homes Limited,Residential Placements - Private Contractors Payment,862.75,0,VENDOR
03-09-2023,Adults & Health,Independence Homes Limited,Residential Placements - Private Contractors Payment,2486.75,0,COMMERCIAL SUPPLIER
03-09-2023,Adults & Health,Drs Care Homes Limited,Residential Placements - Private Contractors Payment,1756.84,0,VENDOR
03-09-2023,Adults & Health,The Cottage,Residential Care Income,-101.25,0,VENDOR
03-09-2023,Adults & Health,The Cottage,Residential Placements - Private Contractors Payment,620.21,0,VENDOR
03-09-2023,Adults & Health,Gable Court NH Ltd,Nursing Homes - Private Contractors Payment,710.5,0,COMMERCIAL SUPPLIER
03-09-2023,Adults & Health,Ebenezer Residential Care Home,Residential Placements - Private Contractors Payment,639.45,0,VENDOR
03-09-2023,Adults & Health,Hillsview Wood House- Eastwood House,Residential Placements - Private Contractors Payment,710.5,0,COMMERCIAL SUPPLIER
03-09-2023,Adults & Health,Faircross Care Home,Residential Placements - Private Contractors Payment,964.25,0,COMMERCIAL SUPPLIER
03-09-2023,Adults & Health,Hillsview Wood House- Eastwood House,Residential Placements - Private Contractors Payment,761.25,0,COMMERCIAL SUPPLIER
03-09-2023,Adults & Health,Churchill House,Residential Placements - Private Contractors Payment,994.7,0,NON COMMERCIAL SUPPLIER
03-09-2023,Adults & Health,Barchester Healthcare Homes Limited t/a Westgate House,Nursing Homes - Private Contractors Payment,923.55,0,NON COMMERCIAL SUPPLIER
03-09-2023,Adults & Health,L & Q Living,Residential Placements - Private Contractors Payment,942.94,0,VENDOR
03-09-2023,Adults & Health,The Enham Trust,Residential Placements - Private Contractors Payment,742.88,0,VENDOR
03-09-2023,Adults & Health,The Enham Trust,Residential Care Income,-101.25,0,VENDOR
03-09-2023,Adults & Health,L & Q Living,Residential Placements - Private Contractors Payment,1107.37,0,VENDOR
03-09-2023,Adults & Health,Partnerships In Care Limited,Residential Placements - Private Contractors Payment,1409.84,0,VENDOR
03-09-2023,Adults & Health,L & Q Living,Residential Placements - Private Contractors Payment,981.51,0,VENDOR
03-09-2023,Adults & Health,Rafael Home,Residential Placements - Private Contractors Payment,839.63,0,COMMERCIAL SUPPLIER
03-09-2023,Adults & Health,Ashlake Lodge Limited,Residential Placements - Private Contractors Payment,1065.75,0,VENDOR
03-09-2023,Adults & Health,Ashwood House,Residential Placements - Private Contractors Payment,609.68,0,VENDOR
03-09-2023,Adults & Health,Ashwood House,Residential Care Income,-174.16,0,VENDOR
03-09-2023,Adults & Health,Blossom House Specialized Care & Support Services Ltd,Residential Placements - Private Contractors Payment,1936.62,0,VENDOR
03-09-2023,Adults & Health,Blossom House Specialized Care & Support Services Ltd,Residential Care Income,-118.65,0,VENDOR
03-09-2023,Adults & Health,The Avenues Trust,Residential Placements - Private Contractors Payment,1564.04,0,COMMERCIAL SUPPLIER
03-09-2023,Adults & Health,Shepherds Corner,Residential Placements - Private Contractors Payment,1370.25,0,VENDOR
03-09-2023,Adults & Health,L & Q Living,Residential Placements - Private Contractors Payment,1224.09,0,VENDOR
03-09-2023,Adults & Health,Barchester Healthcare Homes Limited t/a Westgate House,Nursing Homes - Private Contractors Payment,832.3,0,NON COMMERCIAL SUPPLIER
03-09-2023,Adults & Health,Oak House t/a Connifers Care Ltd,Residential Placements - Private Contractors Payment,812,0,COMMERCIAL SUPPLIER
03-09-2023,Adults & Health,Cambridge Nursing Home,Nursing Homes - Private Contractors Payment,710.5,0,VENDOR
03-09-2023,Adults & Health,Cambridge Nursing Home,Residential Care Income,-101.25,0,VENDOR
03-09-2023,Adults & Health,Barchester Healthcare Homes Limited t/a Westgate House,Residential Placements - Private Contractors Payment,1066.92,0,NON COMMERCIAL SUPPLIER
03-09-2023,Adults & Health,Northbrook Homes Ltd,Residential Care Income,-120.8,0,COMMERCIAL SUPPLIER
03-09-2023,Adults & Health,Northbrook Homes Ltd,Residential Placements - Private Contractors Payment,1101.28,0,COMMERCIAL SUPPLIER
03-09-2023,Adults & Health,Independence Homes Limited,Residential Placements - Private Contractors Payment,2486.75,0,COMMERCIAL SUPPLIER
03-09-2023,Adults & Health,Drs Care Homes Limited,Residential Placements - Private Contractors Payment,862.75,0,VENDOR
03-09-2023,Adults & Health,Eden Supported Services Ltd,Residential Placements - Private Contractors Payment,1975.75,0,COMMERCIAL SUPPLIER
03-09-2023,Adults & Health,The Cottage,Residential Care Income,-101.25,0,VENDOR
03-09-2023,Adults & Health,The Cottage,Residential Placements - Private Contractors Payment,620.21,0,VENDOR
03-09-2023,Adults & Health,Gable Court NH Ltd,Nursing Homes - Private Contractors Payment,749.07,0,COMMERCIAL SUPPLIER
03-09-2023,Adults & Health,Hillsview Wood House- Eastwood House,Residential Placements - Private Contractors Payment,761.25,0,COMMERCIAL SUPPLIER
03-09-2023,Adults & Health,Faircross Care Home,Residential Placements - Private Contractors Payment,964.25,0,COMMERCIAL SUPPLIER
03-09-2023,Adults & Health,Jooma Care Homes Limited,Residential Placements - Private Contractors Payment,567.45,0,VENDOR
03-09-2023,Adults & Health,Ebenezer Residential Care Home,Residential Placements - Private Contractors Payment,639.45,0,VENDOR
03-09-2023,Adults & Health,Carmen Lodge Residential Home,Residential Placements - Private Contractors Payment,710.5,0,VENDOR
03-09-2023,Adults & Health,Carmen Lodge Residential Home,Residential Placements - Private Contractors Payment,710.5,0,VENDOR
03-09-2023,Adults & Health,Carmen Lodge Residential Home,Residential Placements - Private Contractors Payment,710.5,0,VENDOR
03-09-2023,Adults & Health,Carmen Lodge Residential Home,Residential Placements - Private Contractors Payment,710.5,0,VENDOR
03-09-2023,Adults & Health,Mornington Care Ltd,Residential Placements - Private Contractors Payment,835.15,0,NON COMMERCIAL SUPPLIER
03-09-2023,Adults & Health,Mornington Care Ltd,Residential Placements - Private Contractors Payment,835.15,0,NON COMMERCIAL SUPPLIER
03-09-2023,Adults & Health,Mornington Care Ltd,Residential Placements - Private Contractors Payment,835.15,0,NON COMMERCIAL SUPPLIER
03-09-2023,Adults & Health,Mornington Care Ltd,Residential Placements - Private Contractors Payment,835.15,0,NON COMMERCIAL SUPPLIER
03-09-2023,Adults & Health,DMP Healthcare (Cherry Orchard) Ltd,Residential Placements - Private Contractors Payment,850,0,COMMERCIAL SUPPLIER
03-09-2023,Adults & Health,DMP Healthcare (Cherry Orchard) Ltd,Residential Placements - Private Contractors Payment,850,0,COMMERCIAL SUPPLIER
03-09-2023,Adults & Health,DMP Healthcare (Cherry Orchard) Ltd,Residential Placements - Private Contractors Payment,850,0,COMMERCIAL SUPPLIER
03-09-2023,Adults & Health,DMP Healthcare (Cherry Orchard) Ltd,Residential Placements - Private Contractors Payment,850,0,COMMERCIAL SUPPLIER
03-09-2023,Adults & Health,Hillsview Wood House- Eastwood House,Residential Placements - Private Contractors Payment,1450,0,COMMERCIAL SUPPLIER
03-09-2023,Adults & Health,Hillsview Wood House- Eastwood House,Residential Placements - Private Contractors Payment,1450,0,COMMERCIAL SUPPLIER
03-09-2023,Adults & Health,Hillsview Wood House- Eastwood House,Residential Placements - Private Contractors Payment,1450,0,COMMERCIAL SUPPLIER
03-09-2023,Adults & Health,Hillsview Wood House- Eastwood House,Residential Placements - Private Contractors Payment,1450,0,COMMERCIAL SUPPLIER
03-09-2023,Adults & Health,Leyton House Community Care Ltd,Supported Other Accommodation - Private Contractors Payment,816.56,0,COMMERCIAL SUPPLIER
03-09-2023,Adults & Health,Leyton House Community Care Ltd,Supported Other Accommodation - Private Contractors Payment,816.56,0,COMMERCIAL SUPPLIER
03-09-2023,Adults & Health,Leyton House Community Care Ltd,Supported Other Accommodation - Private Contractors Payment,816.56,0,COMMERCIAL SUPPLIER
03-09-2023,Adults & Health,Leyton House Community Care Ltd,Supported Other Accommodation - Private Contractors Payment,816.56,0,COMMERCIAL SUPPLIER
03-09-2023,Adults & Health,MINSA Care Limited,Residential Placements - Private Contractors Payment,775,0,COMMERCIAL SUPPLIER
03-09-2023,Adults & Health,MINSA Care Limited,Residential Placements - Private Contractors Payment,775,0,COMMERCIAL SUPPLIER
03-09-2023,Adults & Health,MINSA Care Limited,Residential Placements - Private Contractors Payment,775,0,COMMERCIAL SUPPLIER
03-09-2023,Adults & Health,MINSA Care Limited,Residential Placements - Private Contractors Payment,775,0,COMMERCIAL SUPPLIER
03-09-2023,Adults & Health,Twinglobe Care Homes,Nursing Homes - Private Contractors Payment,1300,0,NON COMMERCIAL SUPPLIER
03-09-2023,Adults & Health,Twinglobe Care Homes,Nursing Homes - Private Contractors Payment,1300,0,NON COMMERCIAL SUPPLIER
03-09-2023,Adults & Health,Twinglobe Care Homes,Nursing Homes - Private Contractors Payment,1300,0,NON COMMERCIAL SUPPLIER
03-09-2023,Adults & Health,Twinglobe Care Homes,Nursing Homes - Private Contractors Payment,1300,0,NON COMMERCIAL SUPPLIER
03-09-2023,Adults & Health,Bondcare(London)Brook House,Nursing Homes - Private Contractors Payment,640.95,0,NON COMMERCIAL SUPPLIER
03-09-2023,Adults & Health,Bondcare(London)Brook House,Nursing Homes - Private Contractors Payment,640.95,0,NON COMMERCIAL SUPPLIER
03-09-2023,Adults & Health,Bondcare(London)Brook House,Nursing Homes - Private Contractors Payment,640.95,0,NON COMMERCIAL SUPPLIER
03-09-2023,Adults & Health,Bondcare(London)Brook House,Nursing Homes - Private Contractors Payment,640.95,0,NON COMMERCIAL SUPPLIER
03-09-2023,Adults & Health,Barchester Healthcare Homes Limited t/a Westgate House,Nursing Homes - Private Contractors Payment,1062.4,0,NON COMMERCIAL SUPPLIER
03-09-2023,Adults & Health,Barchester Healthcare Homes Limited t/a Westgate House,Nursing Homes - Private Contractors Payment,1062.4,0,NON COMMERCIAL SUPPLIER
03-09-2023,Adults & Health,Barchester Healthcare Homes Limited t/a Westgate House,Nursing Homes - Private Contractors Payment,1062.4,0,NON COMMERCIAL SUPPLIER
03-09-2023,Adults & Health,Barchester Healthcare Homes Limited t/a Westgate House,Nursing Homes - Private Contractors Payment,1062.4,0,NON COMMERCIAL SUPPLIER
03-09-2023,Adults & Health,Trees Park (Eastham) Limited,Nursing Homes - Private Contractors Payment,1070.31,0,VENDOR
03-09-2023,Adults & Health,Trees Park (Eastham) Limited,Nursing Homes - Private Contractors Payment,1070.31,0,VENDOR
03-09-2023,Adults & Health,Trees Park (Eastham) Limited,Nursing Homes - Private Contractors Payment,1070.31,0,VENDOR
03-09-2023,Adults & Health,Trees Park (Eastham) Limited,Nursing Homes - Private Contractors Payment,1070.31,0,VENDOR
03-09-2023,Adults & Health,HC-One,Nursing Homes - Private Contractors Payment,596,0,COMMERCIAL SUPPLIER
03-09-2023,Adults & Health,HC-One,Nursing Homes - Private Contractors Payment,596,0,COMMERCIAL SUPPLIER
03-09-2023,Adults & Health,HC-One,Nursing Homes - Private Contractors Payment,596,0,COMMERCIAL SUPPLIER
03-09-2023,Adults & Health,HC-One,Nursing Homes - Private Contractors Payment,596,0,COMMERCIAL SUPPLIER
03-09-2023,Adults & Health,Maison Moti Ltd,Residential Placements - Private Contractors Payment,625,0,COMMERCIAL SUPPLIER
03-09-2023,Adults & Health,Maison Moti Ltd,Residential Placements - Private Contractors Payment,625,0,COMMERCIAL SUPPLIER
03-09-2023,Adults & Health,Maison Moti Ltd,Residential Placements - Private Contractors Payment,625,0,COMMERCIAL SUPPLIER
03-09-2023,Adults & Health,Maison Moti Ltd,Residential Placements - Private Contractors Payment,625,0,COMMERCIAL SUPPLIER
03-09-2023,Adults & Health,Nightingale Residential Care Home Ltd,Nursing Homes - Private Contractors Payment,950,0,COMMERCIAL SUPPLIER
03-09-2023,Adults & Health,Nightingale Residential Care Home Ltd,Nursing Homes - Private Contractors Payment,950,0,COMMERCIAL SUPPLIER
03-09-2023,Adults & Health,Nightingale Residential Care Home Ltd,Nursing Homes - Private Contractors Payment,950,0,COMMERCIAL SUPPLIER
03-09-2023,Adults & Health,Nightingale Residential Care Home Ltd,Nursing Homes - Private Contractors Payment,950,0,COMMERCIAL SUPPLIER
03-09-2023,Adults & Health,HC One Ltd t/a Aspen Court,Nursing Homes - Private Contractors Payment,893.27,0,COMMERCIAL SUPPLIER
03-09-2023,Adults & Health,HC One Ltd t/a Aspen Court,Residential Care Income,-408.19,0,COMMERCIAL SUPPLIER
03-09-2023,Adults & Health,HC One Ltd t/a Aspen Court,Nursing Homes - Private Contractors Payment,893.27,0,COMMERCIAL SUPPLIER
03-09-2023,Adults & Health,HC One Ltd t/a Aspen Court,Residential Care Income,-408.19,0,COMMERCIAL SUPPLIER
03-09-2023,Adults & Health,HC One Ltd t/a Aspen Court,Residential Care Income,-408.19,0,COMMERCIAL SUPPLIER
03-09-2023,Adults & Health,HC One Ltd t/a Aspen Court,Nursing Homes - Private Contractors Payment,893.27,0,COMMERCIAL SUPPLIER
03-09-2023,Adults & Health,HC One Ltd t/a Aspen Court,Residential Care Income,-408.19,0,COMMERCIAL SUPPLIER
03-09-2023,Adults & Health,HC One Ltd t/a Aspen Court,Nursing Homes - Private Contractors Payment,893.27,0,COMMERCIAL SUPPLIER
03-09-2023,Adults & Health,Ebenezer Residential Care Home,Supported Other Accommodation - Private Contractors Payment,810,0,VENDOR
03-09-2023,Adults & Health,Barchester Healthcare Homes Limited t/a Westgate House,Residential Placements - Private Contractors Payment,1150,0,NON COMMERCIAL SUPPLIER
03-09-2023,Adults & Health,Ebenezer Residential Care Home,Supported Other Accommodation - Private Contractors Payment,810,0,VENDOR
03-09-2023,Adults & Health,Barchester Healthcare Homes Limited t/a Westgate House,Residential Placements - Private Contractors Payment,1150,0,NON COMMERCIAL SUPPLIER
03-09-2023,Adults & Health,Ebenezer Residential Care Home,Supported Other Accommodation - Private Contractors Payment,810,0,VENDOR
03-09-2023,Adults & Health,Barchester Healthcare Homes Limited t/a Westgate House,Residential Placements - Private Contractors Payment,1150,0,NON COMMERCIAL SUPPLIER
03-09-2023,Adults & Health,Barchester Healthcare Homes Limited t/a Westgate House,Residential Placements - Private Contractors Payment,1150,0,NON COMMERCIAL SUPPLIER
03-09-2023,Adults & Health,Ebenezer Residential Care Home,Supported Other Accommodation - Private Contractors Payment,810,0,VENDOR
03-09-2023,Adults & Health,Nightingale Residential Care Home Ltd,Residential Placements - Private Contractors Payment,950,0,COMMERCIAL SUPPLIER
03-09-2023,Adults & Health,Nightingale Residential Care Home Ltd,Residential Care Income,-292.21,0,COMMERCIAL SUPPLIER
03-09-2023,Adults & Health,Nightingale Residential Care Home Ltd,Residential Care Income,-292.21,0,COMMERCIAL SUPPLIER
03-09-2023,Adults & Health,Nightingale Residential Care Home Ltd,Residential Placements - Private Contractors Payment,950,0,COMMERCIAL SUPPLIER
03-09-2023,Adults & Health,Nightingale Residential Care Home Ltd,Residential Placements - Private Contractors Payment,950,0,COMMERCIAL SUPPLIER
03-09-2023,Adults & Health,Nightingale Residential Care Home Ltd,Residential Care Income,-292.21,0,COMMERCIAL SUPPLIER
03-09-2023,Adults & Health,Nightingale Residential Care Home Ltd,Residential Placements - Private Contractors Payment,950,0,COMMERCIAL SUPPLIER
03-09-2023,Adults & Health,Nightingale Residential Care Home Ltd,Residential Care Income,-292.21,0,COMMERCIAL SUPPLIER
03-09-2023,Adults & Health,Bondcare(London)Beech Court,Residential Care Income,-357.81,0,NON COMMERCIAL SUPPLIER
03-09-2023,Adults & Health,Bondcare(London)Beech Court,Nursing Homes - Private Contractors Payment,640,0,NON COMMERCIAL SUPPLIER
03-09-2023,Adults & Health,Bondcare(London)Beech Court,Residential Care Income,-357.81,0,NON COMMERCIAL SUPPLIER
03-09-2023,Adults & Health,Bondcare(London)Beech Court,Nursing Homes - Private Contractors Payment,640,0,NON COMMERCIAL SUPPLIER
03-09-2023,Adults & Health,Bondcare(London)Beech Court,Nursing Homes - Private Contractors Payment,640,0,NON COMMERCIAL SUPPLIER
03-09-2023,Adults & Health,Bondcare(London)Beech Court,Residential Care Income,-357.81,0,NON COMMERCIAL SUPPLIER
03-09-2023,Adults & Health,Bondcare(London)Beech Court,Nursing Homes - Private Contractors Payment,640,0,NON COMMERCIAL SUPPLIER
03-09-2023,Adults & Health,Bondcare(London)Beech Court,Residential Care Income,-357.81,0,NON COMMERCIAL SUPPLIER
03-09-2023,Adults & Health,Affinia Health Care,Supported Other Accommodation - Private Contractors Payment,497.75,0,VENDOR
03-09-2023,Adults & Health,Leyton House Community Care Ltd,Supported Other Accommodation - Private Contractors Payment,547.48,0,COMMERCIAL SUPPLIER
03-09-2023,Adults & Health,Kalsi Care,Supported Other Accommodation - Private Contractors Payment,718.92,0,VENDOR
03-09-2023,Adults & Health,Aldanat Care,Supported Other Accommodation - Private Contractors Payment,1855.07,0,VENDOR
03-09-2023,Adults & Health,Leyton House Community Care Ltd,Supported Other Accommodation - Private Contractors Payment,718.92,0,COMMERCIAL SUPPLIER
03-09-2023,Adults & Health,Kalsi Care,Supported Other Accommodation - Private Contractors Payment,626.05,0,VENDOR
03-09-2023,Adults & Health,Liberty Centre Ltd,Supported Other Accommodation - Private Contractors Payment,2986.27,0,COMMERCIAL SUPPLIER
03-09-2023,Adults & Health,Woodlands Villa,Supported Other Accommodation - Private Contractors Payment,911.36,0,NON COMMERCIAL SUPPLIER
03-09-2023,Adults & Health,Liberty Centre Ltd,Supported Other Accommodation - Private Contractors Payment,2803.59,0,COMMERCIAL SUPPLIER
03-09-2023,Adults & Health,First Care Lodge Ltd,Supported Other Accommodation - Private Contractors Payment,718.92,0,COMMERCIAL SUPPLIER
03-09-2023,Adults & Health,Inclusive Care Support Ltd,Supported Other Accommodation - Private Contractors Payment,1100.49,0,COMMERCIAL SUPPLIER
03-09-2023,Adults & Health,Havilah Prospects Ltd,Supported Other Accommodation - Private Contractors Payment,847.03,0,COMMERCIAL SUPPLIER
03-09-2023,Adults & Health,Kalsi Care,Supported Other Accommodation - Private Contractors Payment,663.62,0,VENDOR
03-09-2023,Adults & Health,S & E Housing,Supported Other Accommodation - Private Contractors Payment,718.92,0,VENDOR
03-09-2023,Adults & Health,Kalsi Care,Supported Other Accommodation - Private Contractors Payment,442.41,0,VENDOR
03-09-2023,Adults & Health,Fern Leaf Care Limited,Supported Other Accommodation - Private Contractors Payment,1180.87,0,COMMERCIAL SUPPLIER
03-09-2023,Adults & Health,Kalsi Care,Supported Other Accommodation - Private Contractors Payment,718.92,0,VENDOR
03-09-2023,Adults & Health,Affinia Health Care,Supported Other Accommodation - Private Contractors Payment,497.75,0,VENDOR
03-09-2023,Adults & Health,Kalsi Care,Supported Other Accommodation - Private Contractors Payment,626.05,0,VENDOR
03-09-2023,Adults & Health,Affinia Health Care,Supported Other Accommodation - Private Contractors Payment,569.6,0,VENDOR
03-09-2023,Adults & Health,Inclusive Care Support Ltd,Supported Other Accommodation - Private Contractors Payment,1100.49,0,COMMERCIAL SUPPLIER
03-09-2023,Adults & Health,Leyton House Community Care Ltd,Supported Other Accommodation - Private Contractors Payment,718.92,0,COMMERCIAL SUPPLIER
03-09-2023,Adults & Health,Aldanat Care,Supported Other Accommodation - Private Contractors Payment,1855.07,0,VENDOR
03-09-2023,Adults & Health,First Choice Supported Living,Supported Other Accommodation - Private Contractors Payment,503.3,0,VENDOR
03-09-2023,Adults & Health,Leyton House Community Care Ltd,Supported Other Accommodation - Private Contractors Payment,547.48,0,COMMERCIAL SUPPLIER
03-09-2023,Adults & Health,Kalsi Care,Supported Other Accommodation - Private Contractors Payment,464.53,0,VENDOR
03-09-2023,Adults & Health,Liberty Centre Ltd,Supported Other Accommodation - Private Contractors Payment,2803.59,0,COMMERCIAL SUPPLIER
03-09-2023,Adults & Health,Woodlands Villa,Supported Other Accommodation - Private Contractors Payment,911.36,0,NON COMMERCIAL SUPPLIER
03-09-2023,Adults & Health,Liberty Centre Ltd,Supported Other Accommodation - Private Contractors Payment,2986.27,0,COMMERCIAL SUPPLIER
03-09-2023,Adults & Health,Kalsi Care,Supported Other Accommodation - Private Contractors Payment,442.41,0,VENDOR
03-09-2023,Adults & Health,Fern Leaf Care Limited,Supported Other Accommodation - Private Contractors Payment,1180.87,0,COMMERCIAL SUPPLIER
03-09-2023,Adults & Health,Voyage 1 Ltd,Supported Other Accommodation - Private Contractors Payment,1091.93,0,COMMERCIAL SUPPLIER
03-09-2023,Adults & Health,S & E Housing,Supported Other Accommodation - Private Contractors Payment,718.92,0,VENDOR
03-09-2023,Adults & Health,Affinia Health Care,Supported Other Accommodation - Private Contractors Payment,569.6,0,VENDOR
03-09-2023,Adults & Health,Kalsi Care,Supported Other Accommodation - Private Contractors Payment,464.53,0,VENDOR
03-09-2023,Adults & Health,Affinia Health Care,Supported Other Accommodation - Private Contractors Payment,497.75,0,VENDOR
03-09-2023,Adults & Health,Leyton House Community Care Ltd,Supported Other Accommodation - Private Contractors Payment,547.48,0,COMMERCIAL SUPPLIER
03-09-2023,Adults & Health,Aldanat Care,Supported Other Accommodation - Private Contractors Payment,1855.07,0,VENDOR
03-09-2023,Adults & Health,First Choice Supported Living,Supported Other Accommodation - Private Contractors Payment,503.3,0,VENDOR
03-09-2023,Adults & Health,Leyton House Community Care Ltd,Supported Other Accommodation - Private Contractors Payment,718.92,0,COMMERCIAL SUPPLIER
03-09-2023,Adults & Health,Kalsi Care,Supported Other Accommodation - Private Contractors Payment,663.62,0,VENDOR
03-09-2023,Adults & Health,Inclusive Care Support Ltd,Supported Other Accommodation - Private Contractors Payment,1100.49,0,COMMERCIAL SUPPLIER
03-09-2023,Adults & Health,Liberty Centre Ltd,Supported Other Accommodation - Private Contractors Payment,2986.27,0,COMMERCIAL SUPPLIER
03-09-2023,Adults & Health,Woodlands Villa,Supported Other Accommodation - Private Contractors Payment,911.36,0,NON COMMERCIAL SUPPLIER
03-09-2023,Adults & Health,First Care Lodge Ltd,Supported Other Accommodation - Private Contractors Payment,718.92,0,COMMERCIAL SUPPLIER
03-09-2023,Adults & Health,Havilah Prospects Ltd,Supported Other Accommodation - Private Contractors Payment,847.03,0,COMMERCIAL SUPPLIER
03-09-2023,Adults & Health,Kalsi Care,Supported Other Accommodation - Private Contractors Payment,718.92,0,VENDOR
03-09-2023,Adults & Health,S & E Housing,Supported Other Accommodation - Private Contractors Payment,718.92,0,VENDOR
03-09-2023,Adults & Health,Kalsi Care,Supported Other Accommodation - Private Contractors Payment,626.05,0,VENDOR
03-09-2023,Adults & Health,Fern Leaf Care Limited,Supported Other Accommodation - Private Contractors Payment,1180.87,0,COMMERCIAL SUPPLIER
03-09-2023,Adults & Health,Voyage 1 Ltd,Supported Other Accommodation - Private Contractors Payment,1091.93,0,COMMERCIAL SUPPLIER
03-09-2023,Adults & Health,Affinia Health Care,Supported Other Accommodation - Private Contractors Payment,497.75,0,VENDOR
03-09-2023,Adults & Health,Kalsi Care,Supported Other Accommodation - Private Contractors Payment,663.62,0,VENDOR
03-09-2023,Adults & Health,Affinia Health Care,Supported Other Accommodation - Private Contractors Payment,569.6,0,VENDOR
03-09-2023,Adults & Health,Leyton House Community Care Ltd,Supported Other Accommodation - Private Contractors Payment,718.92,0,COMMERCIAL SUPPLIER
03-09-2023,Adults & Health,Kalsi Care,Supported Other Accommodation - Private Contractors Payment,442.41,0,VENDOR
03-09-2023,Adults & Health,First Choice Supported Living,Supported Other Accommodation - Private Contractors Payment,503.3,0,VENDOR
03-09-2023,Adults & Health,Liberty Centre Ltd,Supported Other Accommodation - Private Contractors Payment,2803.59,0,COMMERCIAL SUPPLIER
03-09-2023,Adults & Health,First Care Lodge Ltd,Supported Other Accommodation - Private Contractors Payment,718.92,0,COMMERCIAL SUPPLIER
03-09-2023,Adults & Health,Havilah Prospects Ltd,Supported Other Accommodation - Private Contractors Payment,847.03,0,COMMERCIAL SUPPLIER
03-09-2023,Adults & Health,Kalsi Care,Supported Other Accommodation - Private Contractors Payment,626.05,0,VENDOR
03-09-2023,Adults & Health,Inclusive Care Support Ltd,Supported Other Accommodation - Private Contractors Payment,1100.49,0,COMMERCIAL SUPPLIER
03-09-2023,Adults & Health,Kalsi Care,Supported Other Accommodation - Private Contractors Payment,464.53,0,VENDOR
03-09-2023,Adults & Health,Fern Leaf Care Limited,Supported Other Accommodation - Private Contractors Payment,1180.87,0,COMMERCIAL SUPPLIER
03-09-2023,Adults & Health,Voyage 1 Ltd,Supported Other Accommodation - Private Contractors Payment,1091.93,0,COMMERCIAL SUPPLIER
03-09-2023,Adults & Health,Kalsi Care,Supported Other Accommodation - Private Contractors Payment,442.41,0,VENDOR
03-09-2023,Adults & Health,Affinia Health Care,Supported Other Accommodation - Private Contractors Payment,569.6,0,VENDOR
03-09-2023,Adults & Health,Aldanat Care,Supported Other Accommodation - Private Contractors Payment,1855.07,0,VENDOR
03-09-2023,Adults & Health,Leyton House Community Care Ltd,Supported Other Accommodation - Private Contractors Payment,547.48,0,COMMERCIAL SUPPLIER
03-09-2023,Adults & Health,First Choice Supported Living,Supported Other Accommodation - Private Contractors Payment,503.3,0,VENDOR
03-09-2023,Adults & Health,Liberty Centre Ltd,Supported Other Accommodation - Private Contractors Payment,2803.59,0,COMMERCIAL SUPPLIER
03-09-2023,Adults & Health,Woodlands Villa,Supported Other Accommodation - Private Contractors Payment,911.36,0,NON COMMERCIAL SUPPLIER
03-09-2023,Adults & Health,Kalsi Care,Supported Other Accommodation - Private Contractors Payment,718.92,0,VENDOR
03-09-2023,Adults & Health,Liberty Centre Ltd,Supported Other Accommodation - Private Contractors Payment,2986.27,0,COMMERCIAL SUPPLIER
03-09-2023,Adults & Health,First Care Lodge Ltd,Supported Other Accommodation - Private Contractors Payment,718.92,0,COMMERCIAL SUPPLIER
03-09-2023,Adults & Health,Havilah Prospects Ltd,Supported Other Accommodation - Private Contractors Payment,847.03,0,COMMERCIAL SUPPLIER
03-09-2023,Adults & Health,Kalsi Care,Supported Other Accommodation - Private Contractors Payment,464.53,0,VENDOR
03-09-2023,Adults & Health,S & E Housing,Supported Other Accommodation - Private Contractors Payment,718.92,0,VENDOR
03-09-2023,Adults & Health,Kalsi Care,Supported Other Accommodation - Private Contractors Payment,663.62,0,VENDOR
03-09-2023,Adults & Health,Voyage 1 Ltd,Supported Other Accommodation - Private Contractors Payment,1091.93,0,COMMERCIAL SUPPLIER
03-09-2023,Adults & Health,Kalsi Care,Supported Other Accommodation - Private Contractors Payment,678.22,0,VENDOR
03-09-2023,Adults & Health,Normanshire Care Services,Supported Other Accommodation - Private Contractors Payment,3088.52,0,COMMERCIAL SUPPLIER
03-09-2023,Adults & Health,Leyton House Community Care Ltd,Supported Other Accommodation - Private Contractors Payment,718.92,0,COMMERCIAL SUPPLIER
03-09-2023,Adults & Health,Step Ahead Care Services Ltd,Supported Other Accommodation - Private Contractors Payment,899.5,0,COMMERCIAL SUPPLIER
03-09-2023,Adults & Health,Leyton House Community Care Ltd,Supported Other Accommodation - Private Contractors Payment,718.92,0,COMMERCIAL SUPPLIER
03-09-2023,Adults & Health,Normanshire Care Services,Supported Other Accommodation - Private Contractors Payment,3088.52,0,COMMERCIAL SUPPLIER
03-09-2023,Adults & Health,Leyton House Community Care Ltd,Supported Other Accommodation - Private Contractors Payment,873.8,0,COMMERCIAL SUPPLIER
03-09-2023,Adults & Health,Independant Community Support T/A Heaton Lodge,Supported Other Accommodation - Private Contractors Payment,608.32,0,NON COMMERCIAL SUPPLIER
03-09-2023,Adults & Health,Kalsi Care,Supported Other Accommodation - Private Contractors Payment,553.01,0,VENDOR
03-09-2023,Adults & Health,Springfield Supported Services Limited,Supported Other Accommodation - Private Contractors Payment,1918.06,0,COMMERCIAL SUPPLIER
03-09-2023,Adults & Health,Kalsi Care,Supported Other Accommodation - Private Contractors Payment,685.74,0,VENDOR
03-09-2023,Adults & Health,Kalsi Care,Supported Other Accommodation - Private Contractors Payment,553.01,0,VENDOR
03-09-2023,Adults & Health,Leyton House Community Care Ltd,Supported Other Accommodation - Private Contractors Payment,718.92,0,COMMERCIAL SUPPLIER
03-09-2023,Adults & Health,Fern Leaf Care Limited,Supported Other Accommodation - Private Contractors Payment,940.13,0,COMMERCIAL SUPPLIER
03-09-2023,Adults & Health,Drs Care Homes Limited,Supported Other Accommodation - Private Contractors Payment,800.42,0,VENDOR
03-09-2023,Adults & Health,Kalsi Care,Supported Other Accommodation - Private Contractors Payment,820.34,0,VENDOR
03-09-2023,Adults & Health,Drs Care Homes Limited,Supported Other Accommodation - Private Contractors Payment,975.6,0,VENDOR
03-09-2023,Adults & Health,Care London Ltd,Supported Other Accommodation - Private Contractors Payment,873.8,0,VENDOR
03-09-2023,Adults & Health,Kalsi Care,Supported Other Accommodation - Private Contractors Payment,678.22,0,VENDOR
03-09-2023,Adults & Health,Fari Care,Supported Other Accommodation - Private Contractors Payment,1659.04,0,COMMERCIAL SUPPLIER
03-09-2023,Adults & Health,Leyton House Community Care Ltd,Supported Other Accommodation - Private Contractors Payment,718.92,0,COMMERCIAL SUPPLIER
03-09-2023,Adults & Health,Leyton House Community Care Ltd,Supported Other Accommodation - Private Contractors Payment,718.92,0,COMMERCIAL SUPPLIER
03-09-2023,Adults & Health,Kalsi Care,Supported Other Accommodation - Private Contractors Payment,497.72,0,VENDOR
03-09-2023,Adults & Health,Normanshire Care Services,Supported Other Accommodation - Private Contractors Payment,3088.52,0,COMMERCIAL SUPPLIER
03-09-2023,Adults & Health,Leyton House Community Care Ltd,Supported Other Accommodation - Private Contractors Payment,873.8,0,COMMERCIAL SUPPLIER
03-09-2023,Adults & Health,Step Ahead Care Services Ltd,Supported Other Accommodation - Private Contractors Payment,755.58,0,COMMERCIAL SUPPLIER
03-09-2023,Adults & Health,Leyton House Community Care Ltd,Supported Other Accommodation - Private Contractors Payment,718.92,0,COMMERCIAL SUPPLIER
03-09-2023,Adults & Health,Normanshire Care Services,Supported Other Accommodation - Private Contractors Payment,3088.52,0,COMMERCIAL SUPPLIER
03-09-2023,Adults & Health,Leyton House Community Care Ltd,Supported Other Accommodation - Private Contractors Payment,873.8,0,COMMERCIAL SUPPLIER
03-09-2023,Adults & Health,S & E Housing,Supported Other Accommodation - Private Contractors Payment,873.8,0,VENDOR
03-09-2023,Adults & Health,S & E Housing,Supported Other Accommodation - Private Contractors Payment,718.92,0,VENDOR
03-09-2023,Adults & Health,Care London Ltd,Supported Other Accommodation - Private Contractors Payment,718.92,0,VENDOR
03-09-2023,Adults & Health,Kalsi Care,Supported Other Accommodation - Private Contractors Payment,616.8,0,VENDOR
03-09-2023,Adults & Health,Normanshire Care Services,Supported Other Accommodation - Private Contractors Payment,2240.58,0,COMMERCIAL SUPPLIER
03-09-2023,Adults & Health,Leyton House Community Care Ltd,Supported Other Accommodation - Private Contractors Payment,718.92,0,COMMERCIAL SUPPLIER
03-09-2023,Adults & Health,Kalsi Care,Supported Other Accommodation - Private Contractors Payment,685.74,0,VENDOR
03-09-2023,Adults & Health,Leyton House Community Care Ltd,Supported Other Accommodation - Private Contractors Payment,886.91,0,COMMERCIAL SUPPLIER
03-09-2023,Adults & Health,Normanshire Care Services,Supported Other Accommodation - Private Contractors Payment,2240.58,0,COMMERCIAL SUPPLIER
03-09-2023,Adults & Health,Leyton House Community Care Ltd,Supported Other Accommodation - Private Contractors Payment,873.8,0,COMMERCIAL SUPPLIER
03-09-2023,Adults & Health,Independant Community Support T/A Heaton Lodge,Supported Other Accommodation - Private Contractors Payment,608.32,0,NON COMMERCIAL SUPPLIER
03-09-2023,Adults & Health,Leyton House Community Care Ltd,Supported Other Accommodation - Private Contractors Payment,873.8,0,COMMERCIAL SUPPLIER
03-09-2023,Adults & Health,Springfield Supported Services Limited,Supported Other Accommodation - Private Contractors Payment,1918.06,0,COMMERCIAL SUPPLIER
03-09-2023,Adults & Health,Kalsi Care,Supported Other Accommodation - Private Contractors Payment,820.34,0,VENDOR
03-09-2023,Adults & Health,Leyton House Community Care Ltd,Supported Other Accommodation - Private Contractors Payment,886.91,0,COMMERCIAL SUPPLIER
03-09-2023,Adults & Health,Kalsi Care,Supported Other Accommodation - Private Contractors Payment,718.92,0,VENDOR
03-09-2023,Adults & Health,Kalsi Care,Supported Other Accommodation - Private Contractors Payment,497.72,0,VENDOR
03-09-2023,Adults & Health,Kalsi Care,Supported Other Accommodation - Private Contractors Payment,573.88,0,VENDOR
03-09-2023,Adults & Health,Fari Care,Supported Other Accommodation - Private Contractors Payment,1659.04,0,COMMERCIAL SUPPLIER
03-09-2023,Adults & Health,Fern Leaf Care Limited,Supported Other Accommodation - Private Contractors Payment,940.13,0,COMMERCIAL SUPPLIER
03-09-2023,Adults & Health,Drs Care Homes Limited,Supported Other Accommodation - Private Contractors Payment,800.42,0,VENDOR
03-09-2023,Adults & Health,Step Ahead Care Services Ltd,Supported Other Accommodation - Private Contractors Payment,755.58,0,COMMERCIAL SUPPLIER
03-09-2023,Adults & Health,Care London Ltd,Supported Other Accommodation - Private Contractors Payment,822.4,0,VENDOR
03-09-2023,Adults & Health,Leyton House Community Care Ltd,Supported Other Accommodation - Private Contractors Payment,886.91,0,COMMERCIAL SUPPLIER
03-09-2023,Adults & Health,Care London Ltd,Supported Other Accommodation - Private Contractors Payment,873.8,0,VENDOR
03-09-2023,Adults & Health,Normanshire Care Services,Supported Other Accommodation - Private Contractors Payment,2240.58,0,COMMERCIAL SUPPLIER
03-09-2023,Adults & Health,Leyton House Community Care Ltd,Supported Other Accommodation - Private Contractors Payment,718.92,0,COMMERCIAL SUPPLIER
03-09-2023,Adults & Health,Step Ahead Care Services Ltd,Supported Other Accommodation - Private Contractors Payment,899.5,0,COMMERCIAL SUPPLIER
03-09-2023,Adults & Health,Leyton House Community Care Ltd,Supported Other Accommodation - Private Contractors Payment,886.91,0,COMMERCIAL SUPPLIER
03-09-2023,Adults & Health,Normanshire Care Services,Supported Other Accommodation - Private Contractors Payment,2240.58,0,COMMERCIAL SUPPLIER
03-09-2023,Adults & Health,Leyton House Community Care Ltd,Supported Other Accommodation - Private Contractors Payment,1017.72,0,COMMERCIAL SUPPLIER
03-09-2023,Adults & Health,S & E Housing,Supported Other Accommodation - Private Contractors Payment,873.8,0,VENDOR
03-09-2023,Adults & Health,S & E Housing,Supported Other Accommodation - Private Contractors Payment,718.92,0,VENDOR
03-09-2023,Adults & Health,Fari Care,Supported Other Accommodation - Private Contractors Payment,1659.04,0,COMMERCIAL SUPPLIER
03-09-2023,Adults & Health,Liberty Centre Ltd,Supported Other Accommodation - Private Contractors Payment,1196.72,0,COMMERCIAL SUPPLIER
03-09-2023,Adults & Health,Kalsi Care,Supported Other Accommodation - Private Contractors Payment,820.34,0,VENDOR
03-09-2023,Adults & Health,Kalsi Care,Supported Other Accommodation - Private Contractors Payment,718.92,0,VENDOR
03-09-2023,Adults & Health,Leyton House Community Care Ltd,Supported Other Accommodation - Private Contractors Payment,718.92,0,COMMERCIAL SUPPLIER
03-09-2023,Adults & Health,Independant Community Support T/A Heaton Lodge,Supported Other Accommodation - Private Contractors Payment,608.32,0,NON COMMERCIAL SUPPLIER
03-09-2023,Adults & Health,Kalsi Care,Supported Other Accommodation - Private Contractors Payment,573.88,0,VENDOR
03-09-2023,Adults & Health,Leyton House Community Care Ltd,Supported Other Accommodation - Private Contractors Payment,1017.72,0,COMMERCIAL SUPPLIER
03-09-2023,Adults & Health,Springfield Supported Services Limited,Supported Other Accommodation - Private Contractors Payment,1918.06,0,COMMERCIAL SUPPLIER
03-09-2023,Adults & Health,Step Ahead Care Services Ltd,Supported Other Accommodation - Private Contractors Payment,755.58,0,COMMERCIAL SUPPLIER
03-09-2023,Adults & Health,Kalsi Care,Supported Other Accommodation - Private Contractors Payment,678.22,0,VENDOR
03-09-2023,Adults & Health,Fern Leaf Care Limited,Supported Other Accommodation - Private Contractors Payment,940.13,0,COMMERCIAL SUPPLIER
03-09-2023,Adults & Health,Drs Care Homes Limited,Supported Other Accommodation - Private Contractors Payment,975.6,0,VENDOR
03-09-2023,Adults & Health,Care London Ltd,Supported Other Accommodation - Private Contractors Payment,873.8,0,VENDOR
03-09-2023,Adults & Health,Step Ahead Care Services Ltd,Supported Other Accommodation - Private Contractors Payment,899.5,0,COMMERCIAL SUPPLIER
03-09-2023,Adults & Health,Kalsi Care,Supported Other Accommodation - Private Contractors Payment,616.8,0,VENDOR
03-09-2023,Adults & Health,Leyton House Community Care Ltd,Supported Other Accommodation - Private Contractors Payment,873.8,0,COMMERCIAL SUPPLIER
03-09-2023,Adults & Health,Care London Ltd,Supported Other Accommodation - Private Contractors Payment,822.4,0,VENDOR
03-09-2023,Adults & Health,Leyton House Community Care Ltd,Supported Other Accommodation - Private Contractors Payment,718.92,0,COMMERCIAL SUPPLIER
03-09-2023,Adults & Health,Leyton House Community Care Ltd,Supported Other Accommodation - Private Contractors Payment,873.8,0,COMMERCIAL SUPPLIER
03-09-2023,Adults & Health,S & E Housing,Supported Other Accommodation - Private Contractors Payment,873.8,0,VENDOR
03-09-2023,Adults & Health,Fari Care,Supported Other Accommodation - Private Contractors Payment,682.92,0,COMMERCIAL SUPPLIER
03-09-2023,Adults & Health,Fari Care,Supported Other Accommodation - Private Contractors Payment,682.92,0,COMMERCIAL SUPPLIER
03-09-2023,Adults & Health,Care London Ltd,Supported Other Accommodation - Private Contractors Payment,718.92,0,VENDOR
03-09-2023,Adults & Health,Liberty Centre Ltd,Supported Other Accommodation - Private Contractors Payment,1196.72,0,COMMERCIAL SUPPLIER
03-09-2023,Adults & Health,Kalsi Care,Supported Other Accommodation - Private Contractors Payment,553.01,0,VENDOR
03-09-2023,Adults & Health,S & E Housing,Supported Other Accommodation - Private Contractors Payment,718.92,0,VENDOR
03-09-2023,Adults & Health,Leyton House Community Care Ltd,Supported Other Accommodation - Private Contractors Payment,873.8,0,COMMERCIAL SUPPLIER
03-09-2023,Adults & Health,Leyton House Community Care Ltd,Supported Other Accommodation - Private Contractors Payment,718.92,0,COMMERCIAL SUPPLIER
03-09-2023,Adults & Health,Leyton House Community Care Ltd,Supported Other Accommodation - Private Contractors Payment,777.35,0,COMMERCIAL SUPPLIER
03-09-2023,Adults & Health,Leyton House Community Care Ltd,Supported Other Accommodation - Private Contractors Payment,718.92,0,COMMERCIAL SUPPLIER
03-09-2023,Adults & Health,Kalsi Care,Supported Other Accommodation - Private Contractors Payment,678.22,0,VENDOR
03-09-2023,Adults & Health,Leyton House Community Care Ltd,Supported Other Accommodation - Private Contractors Payment,873.8,0,COMMERCIAL SUPPLIER
03-09-2023,Adults & Health,Springfield Supported Services Limited,Supported Other Accommodation - Private Contractors Payment,1918.06,0,COMMERCIAL SUPPLIER
03-09-2023,Adults & Health,Kalsi Care,Supported Other Accommodation - Private Contractors Payment,497.72,0,VENDOR
03-09-2023,Adults & Health,Leyton House Community Care Ltd,Supported Other Accommodation - Private Contractors Payment,777.35,0,COMMERCIAL SUPPLIER
03-09-2023,Adults & Health,Step Ahead Care Services Ltd,Supported Other Accommodation - Private Contractors Payment,899.5,0,COMMERCIAL SUPPLIER
03-09-2023,Adults & Health,Kalsi Care,Supported Other Accommodation - Private Contractors Payment,685.74,0,VENDOR
03-09-2023,Adults & Health,Kalsi Care,Supported Other Accommodation - Private Contractors Payment,616.8,0,VENDOR
03-09-2023,Adults & Health,Leyton House Community Care Ltd,Supported Other Accommodation - Private Contractors Payment,718.92,0,COMMERCIAL SUPPLIER
03-09-2023,Adults & Health,Drs Care Homes Limited,Supported Other Accommodation - Private Contractors Payment,800.42,0,VENDOR
03-09-2023,Adults & Health,Care London Ltd,Supported Other Accommodation - Private Contractors Payment,822.4,0,VENDOR
03-09-2023,Adults & Health,Kalsi Care,Supported Other Accommodation - Private Contractors Payment,553.01,0,VENDOR
03-09-2023,Adults & Health,Drs Care Homes Limited,Supported Other Accommodation - Private Contractors Payment,975.6,0,VENDOR
03-09-2023,Adults & Health,Leyton House Community Care Ltd,Supported Other Accommodation - Private Contractors Payment,718.92,0,COMMERCIAL SUPPLIER
03-09-2023,Adults & Health,Care London Ltd,Supported Other Accommodation - Private Contractors Payment,873.8,0,VENDOR
03-09-2023,Adults & Health,Kalsi Care,Supported Other Accommodation - Private Contractors Payment,820.34,0,VENDOR
03-09-2023,Adults & Health,Leyton House Community Care Ltd,Supported Other Accommodation - Private Contractors Payment,718.92,0,COMMERCIAL SUPPLIER
03-09-2023,Adults & Health,Leyton House Community Care Ltd,Supported Other Accommodation - Private Contractors Payment,777.35,0,COMMERCIAL SUPPLIER
03-09-2023,Adults & Health,Leyton House Community Care Ltd,Supported Other Accommodation - Private Contractors Payment,1017.72,0,COMMERCIAL SUPPLIER
03-09-2023,Adults & Health,Kalsi Care,Supported Other Accommodation - Private Contractors Payment,685.74,0,VENDOR
03-09-2023,Adults & Health,Leyton House Community Care Ltd,Supported Other Accommodation - Private Contractors Payment,718.92,0,COMMERCIAL SUPPLIER
03-09-2023,Adults & Health,Leyton House Community Care Ltd,Supported Other Accommodation - Private Contractors Payment,777.35,0,COMMERCIAL SUPPLIER
03-09-2023,Adults & Health,Leyton House Community Care Ltd,Supported Other Accommodation - Private Contractors Payment,718.92,0,COMMERCIAL SUPPLIER
03-09-2023,Adults & Health,Leyton House Community Care Ltd,Supported Other Accommodation - Private Contractors Payment,873.8,0,COMMERCIAL SUPPLIER
03-09-2023,Adults & Health,Care London Ltd,Supported Other Accommodation - Private Contractors Payment,718.92,0,VENDOR
03-09-2023,Adults & Health,Fari Care,Supported Other Accommodation - Private Contractors Payment,1659.04,0,COMMERCIAL SUPPLIER
03-09-2023,Adults & Health,Fari Care,Supported Other Accommodation - Private Contractors Payment,682.92,0,COMMERCIAL SUPPLIER
03-09-2023,Adults & Health,S & E Housing,Supported Other Accommodation - Private Contractors Payment,718.92,0,VENDOR
03-09-2023,Adults & Health,Liberty Centre Ltd,Supported Other Accommodation - Private Contractors Payment,1196.72,0,COMMERCIAL SUPPLIER
03-09-2023,Adults & Health,Oaklodge Supporting Living Ltd,Supported Other Accommodation - Private Contractors Payment,964.59,0,VENDOR
03-09-2023,Adults & Health,Kalsi Care,Supported Other Accommodation - Private Contractors Payment,497.72,0,VENDOR
03-09-2023,Adults & Health,Leyton House Community Care Ltd,Supported Other Accommodation - Private Contractors Payment,777.35,0,COMMERCIAL SUPPLIER
03-09-2023,Adults & Health,Leyton House Community Care Ltd,Supported Other Accommodation - Private Contractors Payment,1017.72,0,COMMERCIAL SUPPLIER
03-09-2023,Adults & Health,Oaklodge Supporting Living Ltd,Supported Other Accommodation - Private Contractors Payment,964.59,0,VENDOR
03-09-2023,Adults & Health,Independant Community Support T/A Heaton Lodge,Supported Other Accommodation - Private Contractors Payment,608.32,0,NON COMMERCIAL SUPPLIER
03-09-2023,Adults & Health,Leyton House Community Care Ltd,Supported Other Accommodation - Private Contractors Payment,718.92,0,COMMERCIAL SUPPLIER
03-09-2023,Adults & Health,Leyton House Community Care Ltd,Supported Other Accommodation - Private Contractors Payment,777.35,0,COMMERCIAL SUPPLIER
03-09-2023,Adults & Health,Leyton House Community Care Ltd,Supported Other Accommodation - Private Contractors Payment,718.92,0,COMMERCIAL SUPPLIER
03-09-2023,Adults & Health,Oaklodge Supporting Living Ltd,Supported Other Accommodation - Private Contractors Payment,964.59,0,VENDOR
03-09-2023,Adults & Health,Kalsi Care,Supported Other Accommodation - Private Contractors Payment,616.8,0,VENDOR
03-09-2023,Adults & Health,Leyton House Community Care Ltd,Supported Other Accommodation - Private Contractors Payment,777.35,0,COMMERCIAL SUPPLIER
03-09-2023,Adults & Health,Leyton House Community Care Ltd,Supported Other Accommodation - Private Contractors Payment,873.8,0,COMMERCIAL SUPPLIER
03-09-2023,Adults & Health,Leyton House Community Care Ltd,Supported Other Accommodation - Private Contractors Payment,777.35,0,COMMERCIAL SUPPLIER
03-09-2023,Adults & Health,Drs Care Homes Limited,Supported Other Accommodation - Private Contractors Payment,975.6,0,VENDOR
03-09-2023,Adults & Health,Kalsi Care,Supported Other Accommodation - Private Contractors Payment,718.92,0,VENDOR
03-09-2023,Adults & Health,Leyton House Community Care Ltd,Supported Other Accommodation - Private Contractors Payment,718.92,0,COMMERCIAL SUPPLIER
03-09-2023,Adults & Health,Fern Leaf Care Limited,Supported Other Accommodation - Private Contractors Payment,940.13,0,COMMERCIAL SUPPLIER
03-09-2023,Adults & Health,Kalsi Care,Supported Other Accommodation - Private Contractors Payment,573.88,0,VENDOR
03-09-2023,Adults & Health,Leyton House Community Care Ltd,Supported Other Accommodation - Private Contractors Payment,777.35,0,COMMERCIAL SUPPLIER
03-09-2023,Adults & Health,Drs Care Homes Limited,Supported Other Accommodation - Private Contractors Payment,800.42,0,VENDOR
03-09-2023,Adults & Health,Leyton House Community Care Ltd,Supported Other Accommodation - Private Contractors Payment,718.92,0,COMMERCIAL SUPPLIER
03-09-2023,Adults & Health,Care London Ltd,Supported Other Accommodation - Private Contractors Payment,822.4,0,VENDOR
03-09-2023,Adults & Health,Leyton House Community Care Ltd,Supported Other Accommodation - Private Contractors Payment,718.92,0,COMMERCIAL SUPPLIER
03-09-2023,Adults & Health,Leyton House Community Care Ltd,Supported Other Accommodation - Private Contractors Payment,777.35,0,COMMERCIAL SUPPLIER
03-09-2023,Adults & Health,Leyton House Community Care Ltd,Supported Other Accommodation - Private Contractors Payment,873.8,0,COMMERCIAL SUPPLIER
03-09-2023,Adults & Health,Kalsi Care,Supported Other Accommodation - Private Contractors Payment,718.92,0,VENDOR
03-09-2023,Adults & Health,Leyton House Community Care Ltd,Supported Other Accommodation - Private Contractors Payment,777.35,0,COMMERCIAL SUPPLIER
03-09-2023,Adults & Health,S & E Housing,Supported Other Accommodation - Private Contractors Payment,873.8,0,VENDOR
03-09-2023,Adults & Health,Oaklodge Supporting Living Ltd,Supported Other Accommodation - Private Contractors Payment,964.59,0,VENDOR
03-09-2023,Adults & Health,Kalsi Care,Supported Other Accommodation - Private Contractors Payment,573.88,0,VENDOR
03-09-2023,Adults & Health,Leyton House Community Care Ltd,Supported Other Accommodation - Private Contractors Payment,777.35,0,COMMERCIAL SUPPLIER
03-09-2023,Adults & Health,Leyton House Community Care Ltd,Supported Other Accommodation - Private Contractors Payment,718.92,0,COMMERCIAL SUPPLIER
03-09-2023,Adults & Health,Leyton House Community Care Ltd,Supported Other Accommodation - Private Contractors Payment,718.92,0,COMMERCIAL SUPPLIER
03-09-2023,Adults & Health,Step Ahead Care Services Ltd,Supported Other Accommodation - Private Contractors Payment,755.58,0,COMMERCIAL SUPPLIER
03-09-2023,Adults & Health,Care London Ltd,Supported Other Accommodation - Private Contractors Payment,718.92,0,VENDOR
03-09-2023,Adults & Health,Fari Care,Supported Other Accommodation - Private Contractors Payment,682.92,0,COMMERCIAL SUPPLIER
03-09-2023,Adults & Health,Liberty Centre Ltd,Supported Other Accommodation - Private Contractors Payment,1196.72,0,COMMERCIAL SUPPLIER
03-09-2023,Adults & Health,Mencap_g,Supported Other Accommodation - Private Contractors Payment,1279.07,0,COMMERCIAL SUPPLIER
03-09-2023,Adults & Health,Heath Care Services Ltd,Supported Other Accommodation - Private Contractors Payment,1026.97,0,COMMERCIAL SUPPLIER
03-09-2023,Adults & Health,Inclusive Care Support Ltd,Supported Other Accommodation - Private Contractors Payment,1085.57,0,COMMERCIAL SUPPLIER
03-09-2023,Adults & Health,Hillsview Wood House- Eastwood House,Supported Other Accommodation - Private Contractors Payment,1267.01,0,COMMERCIAL SUPPLIER
03-09-2023,Adults & Health,Voyage 1 Ltd,Supported Other Accommodation - Private Contractors Payment,2539.83,0,COMMERCIAL SUPPLIER
03-09-2023,Adults & Health,Heath Care Services Ltd,Supported Other Accommodation - Private Contractors Payment,1026.97,0,COMMERCIAL SUPPLIER
03-09-2023,Adults & Health,Hillsview Wood House- Eastwood House,Supported Other Accommodation - Private Contractors Payment,1267.01,0,COMMERCIAL SUPPLIER
03-09-2023,Adults & Health,Cygnet (NW) Ltd,Supported Other Accommodation - Private Contractors Payment,5372.86,0,COMMERCIAL SUPPLIER
03-09-2023,Adults & Health,Voyage 1 Ltd,Supported Other Accommodation - Private Contractors Payment,2539.83,0,COMMERCIAL SUPPLIER
03-09-2023,Adults & Health,Heath Care Services Ltd,Supported Other Accommodation - Private Contractors Payment,1026.97,0,COMMERCIAL SUPPLIER
03-09-2023,Adults & Health,Hillsview Wood House- Eastwood House,Supported Other Accommodation - Private Contractors Payment,1267.01,0,COMMERCIAL SUPPLIER
03-09-2023,Adults & Health,Cygnet (NW) Ltd,Supported Other Accommodation - Private Contractors Payment,5372.86,0,COMMERCIAL SUPPLIER
03-09-2023,Adults & Health,Inclusive Care Support Ltd,Supported Other Accommodation - Private Contractors Payment,1085.57,0,COMMERCIAL SUPPLIER
03-09-2023,Adults & Health,Mencap_g,Supported Other Accommodation - Private Contractors Payment,1279.07,0,COMMERCIAL SUPPLIER
03-09-2023,Adults & Health,Hillsview Wood House- Eastwood House,Supported Other Accommodation - Private Contractors Payment,1267.01,0,COMMERCIAL SUPPLIER
03-09-2023,Adults & Health,Inclusive Care Support Ltd,Supported Other Accommodation - Private Contractors Payment,1085.57,0,COMMERCIAL SUPPLIER
03-09-2023,Adults & Health,Cygnet (NW) Ltd,Supported Other Accommodation - Private Contractors Payment,5372.86,0,COMMERCIAL SUPPLIER
03-09-2023,Adults & Health,Voyage 1 Ltd,Supported Other Accommodation - Private Contractors Payment,2539.83,0,COMMERCIAL SUPPLIER
03-09-2023,Adults & Health,Mencap_g,Supported Other Accommodation - Private Contractors Payment,1279.07,0,COMMERCIAL SUPPLIER
03-09-2023,Adults & Health,Heath Care Services Ltd,Supported Other Accommodation - Private Contractors Payment,1026.97,0,COMMERCIAL SUPPLIER
03-09-2023,Adults & Health,Inclusive Care Support Ltd,Supported Other Accommodation - Private Contractors Payment,1085.57,0,COMMERCIAL SUPPLIER
03-09-2023,Adults & Health,Cygnet (NW) Ltd,Supported Other Accommodation - Private Contractors Payment,5372.86,0,COMMERCIAL SUPPLIER
03-09-2023,Adults & Health,Voyage 1 Ltd,Supported Other Accommodation - Private Contractors Payment,2539.83,0,COMMERCIAL SUPPLIER
03-09-2023,Adults & Health,Mencap_g,Supported Other Accommodation - Private Contractors Payment,1279.07,0,COMMERCIAL SUPPLIER
03-09-2023,Adults & Health,Advance Housing & Support Ltd,Residential Placements - Private Contractors Payment,5143.72,0,VENDOR
03-09-2023,Adults & Health,Advance Housing & Support Ltd,Residential Placements - Private Contractors Payment,5143.72,0,VENDOR
03-09-2023,Adults & Health,Advance Housing & Support Ltd,Residential Placements - Private Contractors Payment,5143.72,0,VENDOR
03-09-2023,Adults & Health,Advance Housing & Support Ltd,Residential Placements - Private Contractors Payment,5143.72,0,VENDOR
03-09-2023,Adults & Health,Barchester Healthcare Homes Limited t/a Westgate House,Residential Placements - Private Contractors Payment,954,0,NON COMMERCIAL SUPPLIER
03-09-2023,Adults & Health,Barchester Healthcare Homes Limited t/a Westgate House,Residential Placements - Private Contractors Payment,954,0,NON COMMERCIAL SUPPLIER
03-09-2023,Adults & Health,Barchester Healthcare Homes Limited t/a Westgate House,Residential Placements - Private Contractors Payment,954,0,NON COMMERCIAL SUPPLIER
03-09-2023,Adults & Health,Barchester Healthcare Homes Limited t/a Westgate House,Residential Placements - Private Contractors Payment,954,0,NON COMMERCIAL SUPPLIER
03-09-2023,Adults & Health,Runwood Homes Plc,Residential Placements - Private Contractors Payment,658.65,0,VENDOR
03-09-2023,Adults & Health,Runwood Homes Plc,Residential Care Income,-265.88,0,VENDOR
03-09-2023,Adults & Health,Runwood Homes Plc,Residential Care Income,-265.88,0,VENDOR
03-09-2023,Adults & Health,Runwood Homes Plc,Residential Placements - Private Contractors Payment,658.65,0,VENDOR
03-09-2023,Adults & Health,Runwood Homes Plc,Residential Placements - Private Contractors Payment,658.65,0,VENDOR
03-09-2023,Adults & Health,Runwood Homes Plc,Residential Care Income,-265.88,0,VENDOR
03-09-2023,Adults & Health,Runwood Homes Plc,Residential Placements - Private Contractors Payment,658.65,0,VENDOR
03-09-2023,Adults & Health,Runwood Homes Plc,Residential Care Income,-265.88,0,VENDOR
03-09-2023,Adults & Health,Healthcare Homes (LSC) Ltd,Nursing Homes - Private Contractors Payment,656.76,0,NON COMMERCIAL SUPPLIER
03-09-2023,Adults & Health,Healthcare Homes (LSC) Ltd,Nursing Homes - Private Contractors Payment,656.76,0,NON COMMERCIAL SUPPLIER
03-09-2023,Adults & Health,Healthcare Homes (LSC) Ltd,Nursing Homes - Private Contractors Payment,656.76,0,NON COMMERCIAL SUPPLIER
03-09-2023,Adults & Health,Healthcare Homes (LSC) Ltd,Nursing Homes - Private Contractors Payment,656.76,0,NON COMMERCIAL SUPPLIER
03-09-2023,Adults & Health,H Ramparsad t/a Woodlands Residential Care Home,Residential Placements - Private Contractors Payment,800,0,NON COMMERCIAL SUPPLIER
03-09-2023,Adults & Health,H Ramparsad t/a Woodlands Residential Care Home,Residential Placements - Private Contractors Payment,800,0,NON COMMERCIAL SUPPLIER
03-09-2023,Adults & Health,H Ramparsad t/a Woodlands Residential Care Home,Residential Placements - Private Contractors Payment,800,0,NON COMMERCIAL SUPPLIER
03-09-2023,Adults & Health,H Ramparsad t/a Woodlands Residential Care Home,Residential Placements - Private Contractors Payment,800,0,NON COMMERCIAL SUPPLIER
03-09-2023,Adults & Health,Beaumont Court Care Home,Residential Placements - Private Contractors Payment,900,0,COMMERCIAL SUPPLIER
03-09-2023,Adults & Health,Beaumont Court Care Home,Residential Placements - Private Contractors Payment,900,0,COMMERCIAL SUPPLIER
03-09-2023,Adults & Health,Beaumont Court Care Home,Residential Placements - Private Contractors Payment,900,0,COMMERCIAL SUPPLIER
03-09-2023,Adults & Health,Beaumont Court Care Home,Residential Placements - Private Contractors Payment,900,0,COMMERCIAL SUPPLIER
03-09-2023,Adults & Health,Trees Park (Eastham) Limited,Nursing Homes - Private Contractors Payment,850,0,VENDOR
03-09-2023,Adults & Health,Trees Park (Eastham) Limited,Nursing Homes - Private Contractors Payment,850,0,VENDOR
03-09-2023,Adults & Health,Trees Park (Eastham) Limited,Nursing Homes - Private Contractors Payment,850,0,VENDOR
03-09-2023,Adults & Health,Trees Park (Eastham) Limited,Nursing Homes - Private Contractors Payment,850,0,VENDOR
03-09-2023,Adults & Health,Ferrolake Ltd t/a Westport Care Home,Residential Placements - Private Contractors Payment,850,0,NON COMMERCIAL SUPPLIER
03-09-2023,Adults & Health,Ferrolake Ltd t/a Westport Care Home,Residential Placements - Private Contractors Payment,850,0,NON COMMERCIAL SUPPLIER
03-09-2023,Adults & Health,Ferrolake Ltd t/a Westport Care Home,Residential Placements - Private Contractors Payment,850,0,NON COMMERCIAL SUPPLIER
03-09-2023,Adults & Health,Ferrolake Ltd t/a Westport Care Home,Residential Placements - Private Contractors Payment,850,0,NON COMMERCIAL SUPPLIER
03-09-2023,Adults & Health,Precious Homes Ltd,Residential Placements - Private Contractors Payment,3921,0,COMMERCIAL SUPPLIER
03-09-2023,Adults & Health,Precious Homes Ltd,Residential Care Income,-101.25,0,COMMERCIAL SUPPLIER
03-09-2023,Adults & Health,Precious Homes Ltd,Residential Placements - Private Contractors Payment,3921,0,COMMERCIAL SUPPLIER
03-09-2023,Adults & Health,Precious Homes Ltd,Residential Care Income,-101.25,0,COMMERCIAL SUPPLIER
03-09-2023,Adults & Health,Precious Homes Ltd,Residential Placements - Private Contractors Payment,3921,0,COMMERCIAL SUPPLIER
03-09-2023,Adults & Health,Precious Homes Ltd,Residential Care Income,-101.25,0,COMMERCIAL SUPPLIER
03-09-2023,Adults & Health,Precious Homes Ltd,Residential Placements - Private Contractors Payment,3921,0,COMMERCIAL SUPPLIER
03-09-2023,Adults & Health,Precious Homes Ltd,Residential Care Income,-101.25,0,COMMERCIAL SUPPLIER
03-09-2023,Adults & Health,BNTL Care Ltd t/a Summerdale Court,Nursing Homes - Private Contractors Payment,997,0,NON COMMERCIAL SUPPLIER
03-09-2023,Adults & Health,BNTL Care Ltd t/a Summerdale Court,Nursing Homes - Private Contractors Payment,997,0,NON COMMERCIAL SUPPLIER
03-09-2023,Adults & Health,BNTL Care Ltd t/a Summerdale Court,Nursing Homes - Private Contractors Payment,997,0,NON COMMERCIAL SUPPLIER
03-09-2023,Adults & Health,BNTL Care Ltd t/a Summerdale Court,Nursing Homes - Private Contractors Payment,997,0,NON COMMERCIAL SUPPLIER
03-09-2023,Adults & Health,Barchester Healthcare Homes Limited t/a Westgate House,Residential Placements - Private Contractors Payment,1250,0,NON COMMERCIAL SUPPLIER
03-09-2023,Adults & Health,Barchester Healthcare Homes Limited t/a Westgate House,Residential Care Income,-197.2,0,NON COMMERCIAL SUPPLIER
03-09-2023,Adults & Health,Barchester Healthcare Homes Limited t/a Westgate House,Residential Placements - Private Contractors Payment,1250,0,NON COMMERCIAL SUPPLIER
03-09-2023,Adults & Health,Barchester Healthcare Homes Limited t/a Westgate House,Residential Care Income,-197.2,0,NON COMMERCIAL SUPPLIER
03-09-2023,Adults & Health,Barchester Healthcare Homes Limited t/a Westgate House,Residential Placements - Private Contractors Payment,1250,0,NON COMMERCIAL SUPPLIER
03-09-2023,Adults & Health,Barchester Healthcare Homes Limited t/a Westgate House,Residential Care Income,-197.2,0,NON COMMERCIAL SUPPLIER
03-09-2023,Adults & Health,Barchester Healthcare Homes Limited t/a Westgate House,Residential Care Income,-197.2,0,NON COMMERCIAL SUPPLIER
03-09-2023,Adults & Health,Barchester Healthcare Homes Limited t/a Westgate House,Residential Placements - Private Contractors Payment,1250,0,NON COMMERCIAL SUPPLIER
03-09-2023,Adults & Health,Ashking House,Residential Care Income,-172.8,0,VENDOR
03-09-2023,Adults & Health,Ashking House,Residential Placements - Private Contractors Payment,1600,0,VENDOR
03-09-2023,Adults & Health,Ashking House,Residential Placements - Private Contractors Payment,1600,0,VENDOR
03-09-2023,Adults & Health,Ashking House,Residential Care Income,-172.8,0,VENDOR
03-09-2023,Adults & Health,Ashking House,Residential Care Income,-172.8,0,VENDOR
03-09-2023,Adults & Health,Ashking House,Residential Placements - Private Contractors Payment,1600,0,VENDOR
03-09-2023,Adults & Health,Ashking House,Residential Care Income,-172.8,0,VENDOR
03-09-2023,Adults & Health,Ashking House,Residential Placements - Private Contractors Payment,1600,0,VENDOR
03-09-2023,Adults & Health,Barchester Healthcare Homes Limited t/a Westgate House,Nursing Homes - Private Contractors Payment,1459.19,0,NON COMMERCIAL SUPPLIER
03-09-2023,Adults & Health,Barchester Healthcare Homes Limited t/a Westgate House,Nursing Homes - Private Contractors Payment,1459.19,0,NON COMMERCIAL SUPPLIER
03-09-2023,Adults & Health,Barchester Healthcare Homes Limited t/a Westgate House,Nursing Homes - Private Contractors Payment,1459.19,0,NON COMMERCIAL SUPPLIER
03-09-2023,Adults & Health,Barchester Healthcare Homes Limited t/a Westgate House,Nursing Homes - Private Contractors Payment,1459.19,0,NON COMMERCIAL SUPPLIER
03-09-2023,Adults & Health,Barchester Healthcare Homes Limited t/a Westgate House,Residential Placements - Private Contractors Payment,1000,0,NON COMMERCIAL SUPPLIER
03-09-2023,Adults & Health,Barchester Healthcare Homes Limited t/a Westgate House,Residential Placements - Private Contractors Payment,1000,0,NON COMMERCIAL SUPPLIER
03-09-2023,Adults & Health,Barchester Healthcare Homes Limited t/a Westgate House,Residential Placements - Private Contractors Payment,1000,0,NON COMMERCIAL SUPPLIER
03-09-2023,Adults & Health,Barchester Healthcare Homes Limited t/a Westgate House,Residential Placements - Private Contractors Payment,1000,0,NON COMMERCIAL SUPPLIER
03-09-2023,Adults & Health,Oakland Primecare Ltd t/a Woodland Grove,Nursing Homes - Private Contractors Payment,1015.81,0,NON COMMERCIAL SUPPLIER
03-09-2023,Adults & Health,Oakland Primecare Ltd t/a Woodland Grove,Nursing Homes - Private Contractors Payment,1015.81,0,NON COMMERCIAL SUPPLIER
03-09-2023,Adults & Health,Oakland Primecare Ltd t/a Woodland Grove,Nursing Homes - Private Contractors Payment,1015.81,0,NON COMMERCIAL SUPPLIER
03-09-2023,Adults & Health,Oakland Primecare Ltd t/a Woodland Grove,Nursing Homes - Private Contractors Payment,1015.81,0,NON COMMERCIAL SUPPLIER
03-09-2023,Adults & Health,Hillsview Wood House- Eastwood House,Nursing Homes - Private Contractors Payment,1100,0,COMMERCIAL SUPPLIER
03-09-2023,Adults & Health,Hillsview Wood House- Eastwood House,Nursing Homes - Private Contractors Payment,1100,0,COMMERCIAL SUPPLIER
03-09-2023,Adults & Health,Hillsview Wood House- Eastwood House,Nursing Homes - Private Contractors Payment,1100,0,COMMERCIAL SUPPLIER
03-09-2023,Adults & Health,Hillsview Wood House- Eastwood House,Nursing Homes - Private Contractors Payment,1100,0,COMMERCIAL SUPPLIER
03-09-2023,Adults & Health,MENCAP,Residential Placements - Private Contractors Payment,2242.24,0,NON COMMERCIAL SUPPLIER
03-09-2023,Adults & Health,MENCAP,Residential Placements - Private Contractors Payment,2242.24,0,NON COMMERCIAL SUPPLIER
03-09-2023,Adults & Health,MENCAP,Residential Placements - Private Contractors Payment,2242.24,0,NON COMMERCIAL SUPPLIER
03-09-2023,Adults & Health,MENCAP,Residential Placements - Private Contractors Payment,2242.24,0,NON COMMERCIAL SUPPLIER
03-09-2023,Adults & Health,Wortley Lodge,Residential Placements - Private Contractors Payment,2408,0,VENDOR
03-09-2023,Adults & Health,Wortley Lodge,Residential Placements - Private Contractors Payment,2408,0,VENDOR
03-09-2023,Adults & Health,Wortley Lodge,Residential Placements - Private Contractors Payment,2408,0,VENDOR
03-09-2023,Adults & Health,Wortley Lodge,Residential Placements - Private Contractors Payment,2408,0,VENDOR
03-09-2023,Adults & Health,Abbey Care Complex,Residential Placements - Private Contractors Payment,1050,0,NON COMMERCIAL SUPPLIER
03-09-2023,Adults & Health,Abbey Care Complex,Residential Placements - Private Contractors Payment,1050,0,NON COMMERCIAL SUPPLIER
03-09-2023,Adults & Health,Abbey Care Complex,Residential Placements - Private Contractors Payment,1050,0,NON COMMERCIAL SUPPLIER
03-09-2023,Adults & Health,Abbey Care Complex,Residential Placements - Private Contractors Payment,1050,0,NON COMMERCIAL SUPPLIER
03-09-2023,Adults & Health,Oakley Care Homes Ltd,Residential Placements - Private Contractors Payment,656,0,COMMERCIAL SUPPLIER
03-09-2023,Adults & Health,Oakley Care Homes Ltd,Residential Placements - Private Contractors Payment,656,0,COMMERCIAL SUPPLIER
03-09-2023,Adults & Health,Oakley Care Homes Ltd,Residential Placements - Private Contractors Payment,656,0,COMMERCIAL SUPPLIER
03-09-2023,Adults & Health,Oakley Care Homes Ltd,Residential Placements - Private Contractors Payment,656,0,COMMERCIAL SUPPLIER
03-09-2023,Adults & Health,Leyton House Community Care Ltd,Supported Other Accommodation - Private Contractors Payment,850,0,COMMERCIAL SUPPLIER
03-09-2023,Adults & Health,Leyton House Community Care Ltd,Supported Other Accommodation - Private Contractors Payment,850,0,COMMERCIAL SUPPLIER
03-09-2023,Adults & Health,Leyton House Community Care Ltd,Supported Other Accommodation - Private Contractors Payment,850,0,COMMERCIAL SUPPLIER
03-09-2023,Adults & Health,Leyton House Community Care Ltd,Supported Other Accommodation - Private Contractors Payment,850,0,COMMERCIAL SUPPLIER
03-09-2023,Adults & Health,Angel Support Living Ltd,Supported Other Accommodation - Private Contractors Payment,929.07,0,NON COMMERCIAL SUPPLIER
03-09-2023,Adults & Health,Barchester Healthcare Homes Limited t/a Westgate House,Nursing Homes - Private Contractors Payment,1050,0,NON COMMERCIAL SUPPLIER
03-09-2023,Adults & Health,Barchester Healthcare Homes Limited t/a Westgate House,Residential Care Income,-222.81,0,NON COMMERCIAL SUPPLIER
03-09-2023,Adults & Health,Barchester Healthcare Homes Limited t/a Westgate House,Residential Care Income,-222.81,0,NON COMMERCIAL SUPPLIER
03-09-2023,Adults & Health,Barchester Healthcare Homes Limited t/a Westgate House,Nursing Homes - Private Contractors Payment,1050,0,NON COMMERCIAL SUPPLIER
03-09-2023,Adults & Health,Angel Support Living Ltd,Supported Other Accommodation - Private Contractors Payment,929.07,0,NON COMMERCIAL SUPPLIER
03-09-2023,Adults & Health,Barchester Healthcare Homes Limited t/a Westgate House,Nursing Homes - Private Contractors Payment,1050,0,NON COMMERCIAL SUPPLIER
03-09-2023,Adults & Health,Barchester Healthcare Homes Limited t/a Westgate House,Residential Care Income,-222.81,0,NON COMMERCIAL SUPPLIER
03-09-2023,Adults & Health,Angel Support Living Ltd,Supported Other Accommodation - Private Contractors Payment,929.07,0,NON COMMERCIAL SUPPLIER
03-09-2023,Adults & Health,Barchester Healthcare Homes Limited t/a Westgate House,Nursing Homes - Private Contractors Payment,1050,0,NON COMMERCIAL SUPPLIER
03-09-2023,Adults & Health,Barchester Healthcare Homes Limited t/a Westgate House,Residential Care Income,-222.81,0,NON COMMERCIAL SUPPLIER
03-09-2023,Adults & Health,Angel Support Living Ltd,Supported Other Accommodation - Private Contractors Payment,929.07,0,NON COMMERCIAL SUPPLIER
03-09-2023,Adults & Health,Bennetts Castle Ltd,Nursing Homes - Private Contractors Payment,816.08,0,VENDOR
03-09-2023,Adults & Health,Bennetts Castle Ltd,Nursing Homes - Private Contractors Payment,816.08,0,VENDOR
03-09-2023,Adults & Health,Bennetts Castle Ltd,Nursing Homes - Private Contractors Payment,816.08,0,VENDOR
03-09-2023,Adults & Health,Bennetts Castle Ltd,Nursing Homes - Private Contractors Payment,816.08,0,VENDOR
03-09-2023,Adults & Health,Barchester Healthcare Homes Limited t/a Westgate House,Nursing Homes - Private Contractors Payment,1300,0,NON COMMERCIAL SUPPLIER
03-09-2023,Adults & Health,Barchester Healthcare Homes Limited t/a Westgate House,Nursing Homes - Private Contractors Payment,1300,0,NON COMMERCIAL SUPPLIER
03-09-2023,Adults & Health,Barchester Healthcare Homes Limited t/a Westgate House,Nursing Homes - Private Contractors Payment,1300,0,NON COMMERCIAL SUPPLIER
03-09-2023,Adults & Health,Barchester Healthcare Homes Limited t/a Westgate House,Nursing Homes - Private Contractors Payment,1300,0,NON COMMERCIAL SUPPLIER
03-09-2023,Adults & Health,Barchester Healthcare Homes Limited t/a Westgate House,Residential Care Income,-56.84,0,NON COMMERCIAL SUPPLIER
03-09-2023,Adults & Health,Barchester Healthcare Homes Limited t/a Westgate House,Nursing Homes - Private Contractors Payment,1200,0,NON COMMERCIAL SUPPLIER
03-09-2023,Adults & Health,Barchester Healthcare Homes Limited t/a Westgate House,Residential Care Income,-56.84,0,NON COMMERCIAL SUPPLIER
03-09-2023,Adults & Health,Barchester Healthcare Homes Limited t/a Westgate House,Nursing Homes - Private Contractors Payment,1200,0,NON COMMERCIAL SUPPLIER
03-09-2023,Adults & Health,Barchester Healthcare Homes Limited t/a Westgate House,Nursing Homes - Private Contractors Payment,1200,0,NON COMMERCIAL SUPPLIER
03-09-2023,Adults & Health,Barchester Healthcare Homes Limited t/a Westgate House,Residential Care Income,-56.84,0,NON COMMERCIAL SUPPLIER
03-09-2023,Adults & Health,Barchester Healthcare Homes Limited t/a Westgate House,Nursing Homes - Private Contractors Payment,1200,0,NON COMMERCIAL SUPPLIER
03-09-2023,Adults & Health,Barchester Healthcare Homes Limited t/a Westgate House,Residential Care Income,-56.84,0,NON COMMERCIAL SUPPLIER
03-09-2023,Adults & Health,Tealk Services Ltd,Residential Placements - Private Contractors Payment,1500,0,NON COMMERCIAL SUPPLIER
03-09-2023,Adults & Health,Tealk Services Ltd,Residential Placements - Private Contractors Payment,1500,0,NON COMMERCIAL SUPPLIER
03-09-2023,Adults & Health,Tealk Services Ltd,Residential Placements - Private Contractors Payment,1500,0,NON COMMERCIAL SUPPLIER
03-09-2023,Adults & Health,Tealk Services Ltd,Residential Placements - Private Contractors Payment,1500,0,NON COMMERCIAL SUPPLIER
03-09-2023,Adults & Health,Barchester Healthcare Homes Limited t/a Westgate House,Residential Placements - Private Contractors Payment,1300,0,NON COMMERCIAL SUPPLIER
03-09-2023,Adults & Health,Barchester Healthcare Homes Limited t/a Westgate House,Residential Placements - Private Contractors Payment,1300,0,NON COMMERCIAL SUPPLIER
03-09-2023,Adults & Health,Barchester Healthcare Homes Limited t/a Westgate House,Residential Placements - Private Contractors Payment,1300,0,NON COMMERCIAL SUPPLIER
03-09-2023,Adults & Health,Barchester Healthcare Homes Limited t/a Westgate House,Residential Placements - Private Contractors Payment,1300,0,NON COMMERCIAL SUPPLIER
03-09-2023,Adults & Health,Inclusive Care Support Ltd,Supported Other Accommodation - Private Contractors Payment,1963,0,COMMERCIAL SUPPLIER
03-09-2023,Adults & Health,Inclusive Care Support Ltd,Supported Other Accommodation - Private Contractors Payment,1963,0,COMMERCIAL SUPPLIER
03-09-2023,Adults & Health,Inclusive Care Support Ltd,Supported Other Accommodation - Private Contractors Payment,1963,0,COMMERCIAL SUPPLIER
03-09-2023,Adults & Health,Inclusive Care Support Ltd,Supported Other Accommodation - Private Contractors Payment,1963,0,COMMERCIAL SUPPLIER
03-09-2023,Adults & Health,Westminster Health Care Limited,Residential Placements - Private Contractors Payment,1250,0,COMMERCIAL SUPPLIER
03-09-2023,Adults & Health,Westminster Health Care Limited,Residential Placements - Private Contractors Payment,1250,0,COMMERCIAL SUPPLIER
03-09-2023,Adults & Health,Westminster Health Care Limited,Residential Placements - Private Contractors Payment,1250,0,COMMERCIAL SUPPLIER
03-09-2023,Adults & Health,Westminster Health Care Limited,Residential Placements - Private Contractors Payment,1250,0,COMMERCIAL SUPPLIER
03-09-2023,Adults & Health,Lukka Care Homes Limited,Nursing Homes - Private Contractors Payment,632,0,VENDOR
03-09-2023,Adults & Health,Lukka Care Homes Limited,Nursing Homes - Private Contractors Payment,632,0,VENDOR
03-09-2023,Adults & Health,Lukka Care Homes Limited,Nursing Homes - Private Contractors Payment,632,0,VENDOR
03-09-2023,Adults & Health,Lukka Care Homes Limited,Nursing Homes - Private Contractors Payment,632,0,VENDOR
03-09-2023,Adults & Health,Sanctuary Care.,Residential Placements - Private Contractors Payment,620.1,0,COMMERCIAL SUPPLIER
03-09-2023,Adults & Health,Bondcare(London)Beech Court,Nursing Homes - Private Contractors Payment,632,0,NON COMMERCIAL SUPPLIER
03-09-2023,Adults & Health,Sanctuary Care.,Residential Placements - Private Contractors Payment,707,0,COMMERCIAL SUPPLIER
03-09-2023,Adults & Health,Sanctuary Care.,Residential Placements - Private Contractors Payment,620.1,0,COMMERCIAL SUPPLIER
03-09-2023,Adults & Health,Bondcare(London)Beech Court,Residential Care Income,-273.68,0,NON COMMERCIAL SUPPLIER
03-09-2023,Adults & Health,Bondcare(London)Beech Court,Nursing Homes - Private Contractors Payment,678,0,NON COMMERCIAL SUPPLIER
03-09-2023,Adults & Health,Bondcare(London)Beech Court,Nursing Homes - Private Contractors Payment,632,0,NON COMMERCIAL SUPPLIER
03-09-2023,Adults & Health,Sanctuary Care.,Residential Placements - Private Contractors Payment,707,0,COMMERCIAL SUPPLIER
03-09-2023,Adults & Health,Sanctuary Care.,Residential Placements - Private Contractors Payment,620.1,0,COMMERCIAL SUPPLIER
03-09-2023,Adults & Health,Bondcare(London)Beech Court,Nursing Homes - Private Contractors Payment,678,0,NON COMMERCIAL SUPPLIER
03-09-2023,Adults & Health,Bondcare(London)Beech Court,Residential Care Income,-273.68,0,NON COMMERCIAL SUPPLIER
03-09-2023,Adults & Health,Sanctuary Care.,Residential Placements - Private Contractors Payment,707,0,COMMERCIAL SUPPLIER
03-09-2023,Adults & Health,Bondcare(London)Beech Court,Nursing Homes - Private Contractors Payment,678,0,NON COMMERCIAL SUPPLIER
03-09-2023,Adults & Health,Bondcare(London)Beech Court,Residential Care Income,-273.68,0,NON COMMERCIAL SUPPLIER
03-09-2023,Adults & Health,Bondcare(London)Beech Court,Nursing Homes - Private Contractors Payment,632,0,NON COMMERCIAL SUPPLIER
03-09-2023,Adults & Health,Sanctuary Care.,Residential Placements - Private Contractors Payment,707,0,COMMERCIAL SUPPLIER
03-09-2023,Adults & Health,Sanctuary Care.,Residential Placements - Private Contractors Payment,620.1,0,COMMERCIAL SUPPLIER
03-09-2023,Adults & Health,Bondcare(London)Beech Court,Nursing Homes - Private Contractors Payment,678,0,NON COMMERCIAL SUPPLIER
03-09-2023,Adults & Health,Bondcare(London)Beech Court,Residential Care Income,-273.68,0,NON COMMERCIAL SUPPLIER
03-09-2023,Adults & Health,Bondcare(London)Beech Court,Nursing Homes - Private Contractors Payment,632,0,NON COMMERCIAL SUPPLIER
03-09-2023,Adults & Health,Rosewood Lodge,Residential Placements - Private Contractors Payment,700,0,VENDOR
03-09-2023,Adults & Health,Rosewood Lodge,Residential Placements - Private Contractors Payment,700,0,VENDOR
03-09-2023,Adults & Health,Rosewood Lodge,Residential Placements - Private Contractors Payment,700,0,VENDOR
03-09-2023,Adults & Health,Rosewood Lodge,Residential Placements - Private Contractors Payment,700,0,VENDOR
03-09-2023,Adults & Health,L & Q Living,Residential Placements - Private Contractors Payment,1397.58,0,VENDOR
03-09-2023,Adults & Health,L & Q Living,Residential Placements - Private Contractors Payment,1397.58,0,VENDOR
03-09-2023,Adults & Health,L & Q Living,Residential Placements - Private Contractors Payment,1397.58,0,VENDOR
03-09-2023,Adults & Health,L & Q Living,Residential Placements - Private Contractors Payment,1397.58,0,VENDOR
03-09-2023,Adults & Health,Seabrooke Manor Ltd t/a Seabrooke Manor Care Home,Nursing Homes - Private Contractors Payment,975,0,NON COMMERCIAL SUPPLIER
03-09-2023,Adults & Health,Seabrooke Manor Ltd t/a Seabrooke Manor Care Home,Nursing Homes - Private Contractors Payment,975,0,NON COMMERCIAL SUPPLIER
03-09-2023,Adults & Health,Seabrooke Manor Ltd t/a Seabrooke Manor Care Home,Nursing Homes - Private Contractors Payment,975,0,NON COMMERCIAL SUPPLIER
03-09-2023,Adults & Health,Seabrooke Manor Ltd t/a Seabrooke Manor Care Home,Nursing Homes - Private Contractors Payment,975,0,NON COMMERCIAL SUPPLIER
03-09-2023,Adults & Health,Seabrooke Manor Ltd t/a Seabrooke Manor Care Home,Residential Placements - Private Contractors Payment,632.98,0,NON COMMERCIAL SUPPLIER
03-09-2023,Adults & Health,Seabrooke Manor Ltd t/a Seabrooke Manor Care Home,Residential Placements - Private Contractors Payment,632.98,0,NON COMMERCIAL SUPPLIER
03-09-2023,Adults & Health,Seabrooke Manor Ltd t/a Seabrooke Manor Care Home,Residential Placements - Private Contractors Payment,632.98,0,NON COMMERCIAL SUPPLIER
03-09-2023,Adults & Health,Seabrooke Manor Ltd t/a Seabrooke Manor Care Home,Residential Placements - Private Contractors Payment,632.98,0,NON COMMERCIAL SUPPLIER
03-09-2023,Adults & Health,HRH Healthcare Limited T/A Hollywood Rest Home,Residential Care Income,-101.32,0,NON COMMERCIAL SUPPLIER
03-09-2023,Adults & Health,HRH Healthcare Limited T/A Hollywood Rest Home,Residential Placements - Private Contractors Payment,625,0,NON COMMERCIAL SUPPLIER
03-09-2023,Adults & Health,HRH Healthcare Limited T/A Hollywood Rest Home,Residential Care Income,-101.32,0,NON COMMERCIAL SUPPLIER
03-09-2023,Adults & Health,HRH Healthcare Limited T/A Hollywood Rest Home,Residential Placements - Private Contractors Payment,625,0,NON COMMERCIAL SUPPLIER
03-09-2023,Adults & Health,HRH Healthcare Limited T/A Hollywood Rest Home,Residential Care Income,-101.32,0,NON COMMERCIAL SUPPLIER
03-09-2023,Adults & Health,HRH Healthcare Limited T/A Hollywood Rest Home,Residential Placements - Private Contractors Payment,625,0,NON COMMERCIAL SUPPLIER
03-09-2023,Adults & Health,HRH Healthcare Limited T/A Hollywood Rest Home,Residential Placements - Private Contractors Payment,625,0,NON COMMERCIAL SUPPLIER
03-09-2023,Adults & Health,HRH Healthcare Limited T/A Hollywood Rest Home,Residential Care Income,-101.32,0,NON COMMERCIAL SUPPLIER
03-09-2023,Adults & Health,Seabrooke Manor Ltd t/a Seabrooke Manor Care Home,Residential Placements - Private Contractors Payment,804,0,NON COMMERCIAL SUPPLIER
03-09-2023,Adults & Health,Seabrooke Manor Ltd t/a Seabrooke Manor Care Home,Residential Placements - Private Contractors Payment,804,0,NON COMMERCIAL SUPPLIER
03-09-2023,Adults & Health,Seabrooke Manor Ltd t/a Seabrooke Manor Care Home,Residential Placements - Private Contractors Payment,804,0,NON COMMERCIAL SUPPLIER
03-09-2023,Adults & Health,Seabrooke Manor Ltd t/a Seabrooke Manor Care Home,Residential Placements - Private Contractors Payment,804,0,NON COMMERCIAL SUPPLIER
03-09-2023,Adults & Health,Angel Support Living (UK) Limited,Supported Other Accommodation - Private Contractors Payment,900,0,NON COMMERCIAL SUPPLIER
03-09-2023,Adults & Health,Angel Support Living (UK) Limited,Supported Other Accommodation - Private Contractors Payment,900,0,NON COMMERCIAL SUPPLIER
03-09-2023,Adults & Health,Angel Support Living (UK) Limited,Supported Other Accommodation - Private Contractors Payment,900,0,NON COMMERCIAL SUPPLIER
03-09-2023,Adults & Health,Angel Support Living (UK) Limited,Supported Other Accommodation - Private Contractors Payment,900,0,NON COMMERCIAL SUPPLIER
03-09-2023,Adults & Health,Alliance Care Homes Ltd,Residential Placements - Private Contractors Payment,660,0,NON COMMERCIAL SUPPLIER
03-09-2023,Adults & Health,Folkestone Nursing Home,Residential Placements - Private Contractors Payment,831.47,0,VENDOR
03-09-2023,Adults & Health,Alliance Care Homes Ltd,Residential Placements - Private Contractors Payment,660,0,NON COMMERCIAL SUPPLIER
03-09-2023,Adults & Health,Folkestone Nursing Home,Residential Placements - Private Contractors Payment,831.47,0,VENDOR
03-09-2023,Adults & Health,Alliance Care Homes Ltd,Residential Placements - Private Contractors Payment,660,0,NON COMMERCIAL SUPPLIER
03-09-2023,Adults & Health,Folkestone Nursing Home,Residential Placements - Private Contractors Payment,831.47,0,VENDOR
03-09-2023,Adults & Health,Alliance Care Homes Ltd,Residential Placements - Private Contractors Payment,660,0,NON COMMERCIAL SUPPLIER
03-09-2023,Adults & Health,Folkestone Nursing Home,Residential Placements - Private Contractors Payment,831.47,0,VENDOR
03-09-2023,Adults & Health,Runwood Homes Plc,Residential Placements - Private Contractors Payment,639.53,0,VENDOR
03-09-2023,Adults & Health,Runwood Homes Plc,Residential Placements - Private Contractors Payment,639.53,0,VENDOR
03-09-2023,Adults & Health,Runwood Homes Plc,Residential Placements - Private Contractors Payment,639.53,0,VENDOR
03-09-2023,Adults & Health,Runwood Homes Plc,Residential Placements - Private Contractors Payment,639.53,0,VENDOR
03-09-2023,Adults & Health,Leyton House Community Care Ltd,Supported Other Accommodation - Private Contractors Payment,950,0,COMMERCIAL SUPPLIER
03-09-2023,Adults & Health,Leyton House Community Care Ltd,Supported Other Accommodation - Private Contractors Payment,950,0,COMMERCIAL SUPPLIER
03-09-2023,Adults & Health,Leyton House Community Care Ltd,Supported Other Accommodation - Private Contractors Payment,950,0,COMMERCIAL SUPPLIER
03-09-2023,Adults & Health,Leyton House Community Care Ltd,Supported Other Accommodation - Private Contractors Payment,950,0,COMMERCIAL SUPPLIER
03-09-2023,Adults & Health,Mornington Care Ltd,Nursing Homes - Private Contractors Payment,1050,0,NON COMMERCIAL SUPPLIER
03-09-2023,Adults & Health,Mornington Care Ltd,Nursing Homes - Private Contractors Payment,1050,0,NON COMMERCIAL SUPPLIER
03-09-2023,Adults & Health,Mornington Care Ltd,Nursing Homes - Private Contractors Payment,1050,0,NON COMMERCIAL SUPPLIER
03-09-2023,Adults & Health,Mornington Care Ltd,Nursing Homes - Private Contractors Payment,1050,0,NON COMMERCIAL SUPPLIER
03-09-2023,Adults & Health,Seabrooke Manor Ltd t/a Seabrooke Manor Care Home,Residential Placements - Private Contractors Payment,804,0,NON COMMERCIAL SUPPLIER
03-09-2023,Adults & Health,Seabrooke Manor Ltd t/a Seabrooke Manor Care Home,Residential Placements - Private Contractors Payment,804,0,NON COMMERCIAL SUPPLIER
03-09-2023,Adults & Health,Seabrooke Manor Ltd t/a Seabrooke Manor Care Home,Residential Placements - Private Contractors Payment,804,0,NON COMMERCIAL SUPPLIER
03-09-2023,Adults & Health,Seabrooke Manor Ltd t/a Seabrooke Manor Care Home,Residential Placements - Private Contractors Payment,804,0,NON COMMERCIAL SUPPLIER
03-09-2023,Adults & Health,Towertrend Ltd t/a Honey Lane Care Home,Residential Placements - Private Contractors Payment,1050,0,NON COMMERCIAL SUPPLIER
03-09-2023,Adults & Health,Towertrend Ltd t/a Honey Lane Care Home,Residential Placements - Private Contractors Payment,1050,0,NON COMMERCIAL SUPPLIER
03-09-2023,Adults & Health,Towertrend Ltd t/a Honey Lane Care Home,Residential Placements - Private Contractors Payment,1050,0,NON COMMERCIAL SUPPLIER
03-09-2023,Adults & Health,Towertrend Ltd t/a Honey Lane Care Home,Residential Placements - Private Contractors Payment,1050,0,NON COMMERCIAL SUPPLIER
03-09-2023,Adults & Health,Cambridge Nursing Home,Nursing Homes - Private Contractors Payment,1050,0,VENDOR
03-09-2023,Adults & Health,Cambridge Nursing Home,Nursing Homes - Private Contractors Payment,1050,0,VENDOR
03-09-2023,Adults & Health,Cambridge Nursing Home,Nursing Homes - Private Contractors Payment,1050,0,VENDOR
03-09-2023,Adults & Health,Cambridge Nursing Home,Nursing Homes - Private Contractors Payment,1050,0,VENDOR
03-09-2023,Adults & Health,Rosewood Lodge,Residential Placements - Private Contractors Payment,750,0,VENDOR
03-09-2023,Adults & Health,Rosewood Lodge,Residential Placements - Private Contractors Payment,750,0,VENDOR
03-09-2023,Adults & Health,Rosewood Lodge,Residential Placements - Private Contractors Payment,750,0,VENDOR
03-09-2023,Adults & Health,Rosewood Lodge,Residential Placements - Private Contractors Payment,750,0,VENDOR
03-09-2023,Adults & Health,Heath Care Services Ltd,Supported Other Accommodation - Private Contractors Payment,2398,0,COMMERCIAL SUPPLIER
03-09-2023,Adults & Health,Heath Care Services Ltd,Supported Other Accommodation - Private Contractors Payment,2398,0,COMMERCIAL SUPPLIER
03-09-2023,Adults & Health,Heath Care Services Ltd,Supported Other Accommodation - Private Contractors Payment,2398,0,COMMERCIAL SUPPLIER
03-09-2023,Adults & Health,Heath Care Services Ltd,Supported Other Accommodation - Private Contractors Payment,2398,0,COMMERCIAL SUPPLIER
03-09-2023,Adults & Health,Seabrooke Manor Ltd t/a Seabrooke Manor Care Home,Nursing Homes - Private Contractors Payment,1200,0,NON COMMERCIAL SUPPLIER
03-09-2023,Adults & Health,Seabrooke Manor Ltd t/a Seabrooke Manor Care Home,Nursing Homes - Private Contractors Payment,1200,0,NON COMMERCIAL SUPPLIER
03-09-2023,Adults & Health,Seabrooke Manor Ltd t/a Seabrooke Manor Care Home,Nursing Homes - Private Contractors Payment,1200,0,NON COMMERCIAL SUPPLIER
03-09-2023,Adults & Health,Seabrooke Manor Ltd t/a Seabrooke Manor Care Home,Nursing Homes - Private Contractors Payment,1200,0,NON COMMERCIAL SUPPLIER
03-09-2023,Adults & Health,TLC Care Homes Ltd,Supported Other Accommodation - Private Contractors Payment,1543.44,0,COMMERCIAL SUPPLIER
03-09-2023,Adults & Health,TLC Care Homes Ltd,Supported Other Accommodation - Private Contractors Payment,1543.44,0,COMMERCIAL SUPPLIER
03-09-2023,Adults & Health,TLC Care Homes Ltd,Supported Other Accommodation - Private Contractors Payment,1543.44,0,COMMERCIAL SUPPLIER
03-09-2023,Adults & Health,TLC Care Homes Ltd,Supported Other Accommodation - Private Contractors Payment,1543.44,0,COMMERCIAL SUPPLIER
03-09-2023,Adults & Health,The Abbeyfield East London Extra Care Society Ltd,Residential Placements - Private Contractors Payment,683,0,VENDOR
03-09-2023,Adults & Health,The Abbeyfield East London Extra Care Society Ltd,Residential Placements - Private Contractors Payment,683,0,VENDOR
03-09-2023,Adults & Health,The Abbeyfield East London Extra Care Society Ltd,Residential Placements - Private Contractors Payment,683,0,VENDOR
03-09-2023,Adults & Health,The Abbeyfield East London Extra Care Society Ltd,Residential Placements - Private Contractors Payment,683,0,VENDOR
03-09-2023,Adults & Health,Nightingale Residential Care Home Ltd,Residential Placements - Private Contractors Payment,900,0,COMMERCIAL SUPPLIER
03-09-2023,Adults & Health,Hillsview Wood House- Eastwood House,Residential Placements - Private Contractors Payment,1753,0,COMMERCIAL SUPPLIER
03-09-2023,Adults & Health,Hillsview Wood House- Eastwood House,Residential Placements - Private Contractors Payment,1753,0,COMMERCIAL SUPPLIER
03-09-2023,Adults & Health,Nightingale Residential Care Home Ltd,Residential Placements - Private Contractors Payment,900,0,COMMERCIAL SUPPLIER
03-09-2023,Adults & Health,Hillsview Wood House- Eastwood House,Residential Placements - Private Contractors Payment,1753,0,COMMERCIAL SUPPLIER
03-09-2023,Adults & Health,Nightingale Residential Care Home Ltd,Residential Placements - Private Contractors Payment,900,0,COMMERCIAL SUPPLIER
03-09-2023,Adults & Health,Hillsview Wood House- Eastwood House,Residential Placements - Private Contractors Payment,1753,0,COMMERCIAL SUPPLIER
03-09-2023,Adults & Health,Nightingale Residential Care Home Ltd,Residential Placements - Private Contractors Payment,900,0,COMMERCIAL SUPPLIER
03-09-2023,Adults & Health,Seabrooke Manor Ltd t/a Seabrooke Manor Care Home,Nursing Homes - Private Contractors Payment,1250,0,NON COMMERCIAL SUPPLIER
03-09-2023,Adults & Health,Seabrooke Manor Ltd t/a Seabrooke Manor Care Home,Nursing Homes - Private Contractors Payment,1250,0,NON COMMERCIAL SUPPLIER
03-09-2023,Adults & Health,Seabrooke Manor Ltd t/a Seabrooke Manor Care Home,Nursing Homes - Private Contractors Payment,1250,0,NON COMMERCIAL SUPPLIER
03-09-2023,Adults & Health,Seabrooke Manor Ltd t/a Seabrooke Manor Care Home,Nursing Homes - Private Contractors Payment,1250,0,NON COMMERCIAL SUPPLIER
03-09-2023,Adults & Health,Kalsi Care,Supported Other Accommodation - Private Contractors Payment,750,0,VENDOR
03-09-2023,Adults & Health,Kalsi Care,Supported Other Accommodation - Private Contractors Payment,750,0,VENDOR
03-09-2023,Adults & Health,Kalsi Care,Supported Other Accommodation - Private Contractors Payment,750,0,VENDOR
03-09-2023,Adults & Health,Kalsi Care,Supported Other Accommodation - Private Contractors Payment,750,0,VENDOR
03-09-2023,Adults & Health,Step Ahead Care Services Ltd,Supported Other Accommodation - Private Contractors Payment,950,0,COMMERCIAL SUPPLIER
03-09-2023,Adults & Health,Step Ahead Care Services Ltd,Supported Other Accommodation - Private Contractors Payment,950,0,COMMERCIAL SUPPLIER
03-09-2023,Adults & Health,Step Ahead Care Services Ltd,Supported Other Accommodation - Private Contractors Payment,950,0,COMMERCIAL SUPPLIER
03-09-2023,Adults & Health,Step Ahead Care Services Ltd,Supported Other Accommodation - Private Contractors Payment,950,0,COMMERCIAL SUPPLIER
03-09-2023,Adults & Health,Step Ahead Care Services Ltd,Supported Other Accommodation - Private Contractors Payment,900,0,COMMERCIAL SUPPLIER
03-09-2023,Adults & Health,BNTL Care Ltd t/a Summerdale Court,Nursing Homes - Private Contractors Payment,878,0,NON COMMERCIAL SUPPLIER
03-09-2023,Adults & Health,Step Ahead Care Services Ltd,Supported Other Accommodation - Private Contractors Payment,900,0,COMMERCIAL SUPPLIER
03-09-2023,Adults & Health,BNTL Care Ltd t/a Summerdale Court,Nursing Homes - Private Contractors Payment,878,0,NON COMMERCIAL SUPPLIER
03-09-2023,Adults & Health,BNTL Care Ltd t/a Summerdale Court,Nursing Homes - Private Contractors Payment,878,0,NON COMMERCIAL SUPPLIER
03-09-2023,Adults & Health,Step Ahead Care Services Ltd,Supported Other Accommodation - Private Contractors Payment,900,0,COMMERCIAL SUPPLIER
03-09-2023,Adults & Health,Step Ahead Care Services Ltd,Supported Other Accommodation - Private Contractors Payment,900,0,COMMERCIAL SUPPLIER
03-09-2023,Adults & Health,BNTL Care Ltd t/a Summerdale Court,Nursing Homes - Private Contractors Payment,878,0,NON COMMERCIAL SUPPLIER
03-09-2023,Adults & Health,Angel Support Living (UK) Limited,Supported Other Accommodation - Private Contractors Payment,992,0,NON COMMERCIAL SUPPLIER
03-09-2023,Adults & Health,Angel Support Living (UK) Limited,Supported Other Accommodation - Private Contractors Payment,992,0,NON COMMERCIAL SUPPLIER
03-09-2023,Adults & Health,Angel Support Living (UK) Limited,Supported Other Accommodation - Private Contractors Payment,992,0,NON COMMERCIAL SUPPLIER
03-09-2023,Adults & Health,Angel Support Living (UK) Limited,Supported Other Accommodation - Private Contractors Payment,992,0,NON COMMERCIAL SUPPLIER
03-09-2023,Adults & Health,Larchwood Care Homes (South) Ltd t/a Great Horkesley Manor Park,Residential Placements - Private Contractors Payment,595,0,COMMERCIAL SUPPLIER
03-09-2023,Adults & Health,Larchwood Care Homes (South) Ltd t/a Great Horkesley Manor Park,Residential Care Income,-177.35,0,COMMERCIAL SUPPLIER
03-09-2023,Adults & Health,Larchwood Care Homes (South) Ltd t/a Great Horkesley Manor Park,Residential Placements - Private Contractors Payment,595,0,COMMERCIAL SUPPLIER
03-09-2023,Adults & Health,Larchwood Care Homes (South) Ltd t/a Great Horkesley Manor Park,Residential Care Income,-177.35,0,COMMERCIAL SUPPLIER
03-09-2023,Adults & Health,Larchwood Care Homes (South) Ltd t/a Great Horkesley Manor Park,Residential Care Income,-177.35,0,COMMERCIAL SUPPLIER
03-09-2023,Adults & Health,Larchwood Care Homes (South) Ltd t/a Great Horkesley Manor Park,Residential Placements - Private Contractors Payment,595,0,COMMERCIAL SUPPLIER
03-09-2023,Adults & Health,Larchwood Care Homes (South) Ltd t/a Great Horkesley Manor Park,Residential Placements - Private Contractors Payment,595,0,COMMERCIAL SUPPLIER
03-09-2023,Adults & Health,Larchwood Care Homes (South) Ltd t/a Great Horkesley Manor Park,Residential Care Income,-177.35,0,COMMERCIAL SUPPLIER
03-09-2023,Adults & Health,Angel Support Living (UK) Limited,Supported Other Accommodation - Private Contractors Payment,850,0,NON COMMERCIAL SUPPLIER
03-09-2023,Adults & Health,Angel Support Living (UK) Limited,Supported Other Accommodation - Private Contractors Payment,850,0,NON COMMERCIAL SUPPLIER
03-09-2023,Adults & Health,Angel Support Living (UK) Limited,Supported Other Accommodation - Private Contractors Payment,850,0,NON COMMERCIAL SUPPLIER
